Workbook

Sheet Présentation
C3: Indicateur Santé Social
C4: à La Réunion
B12: Dans le cadre du groupe de travail "Indicateurs Santé-Social", l'ORS Océan Indien a été chargé de poursuivre l'actualisation des indicateurs Santé-Social à l'échelon communal et régional et par micro-région, dont la 1ère diffusion sous ce format a eu lieu en septembre 2011.
B14: OBJECTIF
B16: Ce travail a pour objectif de mettre à disposition un fichier de données rassemblant les indicateurs Santé-Social sur différentes thématiques (Cadrage, Finance, Chômage, Formation et Santé) à l'échelon des communal, régional et par micro-régions.
B19: PRESENTATION DU DOCUMENT
B21: Le fichier de données est organisé autour de 6 grandes thématiques.
B23: Un onglet "Sommaire" reprenant la liste des indicateurs : thématique, descriptif de l'indicateur, dernière année disponible, source
B25: Un onglet "Méthodologie" recense les producteurs de données et décrit les principales sources utilisées et les méthodes de calculs des indicateurs (taux bruts, taux standardisés,…).
B27: Un onglet "Définitions" reprend les principales définitions des indicateurs et concepts présentés dans ce document.

Sheet Sommaire
B32: THEMATIQUE | C32: DESCRIPTIF DE L'INDICATEUR | D32: ANNEE/PERIODE | E32: SOURCES | F32: LIEN
B33: 01. Cadrage | C33: Population totale | D33: 2016 | E33: Insee, Recencement de la population | F33: https://www.insee.fr/fr/information/2008354
B34: 01. Cadrage | C34: Population 0-14 ans | D34: 2016 | E34: Insee, Recencement de la population | F34: https://www.insee.fr/fr/information/2008355
B35: 01. Cadrage | C35: Population 15-29 ans | D35: 2016 | E35: Insee, Recencement de la population | F35: https://www.insee.fr/fr/information/2008356
B36: 01. Cadrage | C36: Population 30-44 ans | D36: 2016 | E36: Insee, Recencement de la population | F36: https://www.insee.fr/fr/information/2008357
B37: 01. Cadrage | C37: Population 45-59 ans | D37: 2016 | E37: Insee, Recencement de la population | F37: https://www.insee.fr/fr/information/2008358
B38: 01. Cadrage | C38: Population 60-74 ans | D38: 2016 | E38: Insee, Recencement de la population | F38: https://www.insee.fr/fr/information/2008359
B39: 01. Cadrage | C39: Population 75 ans ou plus | D39: 2016 | E39: Insee, Recencement de la population | F39: https://www.insee.fr/fr/information/2008360
B40: 01. Cadrage | C40: Population Hommes | D40: 2016 | E40: Insee, Recencement de la population | F40: https://www.insee.fr/fr/information/2008361
B41: 01. Cadrage | C41: Population Hommes 0-14 ans | D41: 2016 | E41: Insee, Recencement de la population | F41: https://www.insee.fr/fr/information/2008362
B42: 01. Cadrage | C42: Population Hommes 15-29 ans | D42: 2016 | E42: Insee, Recencement de la population | F42: https://www.insee.fr/fr/information/2008363
B43: 01. Cadrage | C43: Population Hommes 30-44 ans | D43: 2016 | E43: Insee, Recencement de la population | F43: https://www.insee.fr/fr/information/2008364
B44: 01. Cadrage | C44: Population Hommes 45-59 ans | D44: 2016 | E44: Insee, Recencement de la population | F44: https://www.insee.fr/fr/information/2008365
B45: 01. Cadrage | C45: Population Hommes 60-74 ans | D45: 2016 | E45: Insee, Recencement de la population | F45: https://www.insee.fr/fr/information/2008366
B46: 01. Cadrage | C46: Population Hommes 75 ans ou plus | D46: 2016 | E46: Insee, Recencement de la population | F46: https://www.insee.fr/fr/information/2008367
B47: 01. Cadrage | C47: Population Femmes | D47: 2016 | E47: Insee, Recencement de la population | F47: https://www.insee.fr/fr/information/2008368
B48: 01. Cadrage | C48: Population Femmes 0-14 ans | D48: 2016 | E48: Insee, Recencement de la population | F48: https://www.insee.fr/fr/information/2008369
B49: 01. Cadrage | C49: Population Femmes 15-29 ans | D49: 2016 | E49: Insee, Recencement de la population | F49: https://www.insee.fr/fr/information/2008370
B50: 01. Cadrage | C50: Population Femmes 30-44 ans | D50: 2016 | E50: Insee, Recencement de la population | F50: https://www.insee.fr/fr/information/2008371
B51: 01. Cadrage | C51: Population Femmes 45-59 ans | D51: 2016 | E51: Insee, Recencement de la population | F51: https://www.insee.fr/fr/information/2008372
B52: 01. Cadrage | C52: Population Femmes 60-74 ans | D52: 2016 | E52: Insee, Recencement de la population | F52: https://www.insee.fr/fr/information/2008373
B53: 01. Cadrage | C53: Population Femmes 75 ans ou plus | D53: 2016 | E53: Insee, Recencement de la population | F53: https://www.insee.fr/fr/information/2008374
B54: 01. Cadrage | C54: Nombre de naissances domiciliées | D54: 2018 | E54: INSEE, Etat-Civil
B55: 01. Cadrage | C55: Nombre de décès domiciliés | D55: 2018 | E55: INSEE, Etat-Civil
B56: 02. Précarité Financière | C56: Nombre de bénéficiaires de l'APA à domicile au 1er janvier | D56: 2019 | E56: Conseil Départemental de La Réunion
B57: 02. Précarité Financière | C57: Nombre de bénéficiaires de l'APA en établissement au 1er janvier | D57: 2019 | E57: Conseil Départemental de La Réunion
B58: 02. Précarité Financière | C58: Nombre de bénéficiaires de l'APA en famille d'accueil au 1er janvier | D58: 2019 | E58: Conseil Départemental de La Réunion
B59: 02. Précarité Financière | C59: Nombre de bénéficiaires de l'APA au 1er janvier | D59: 2019 | E59: Conseil Départemental de La Réunion
B60: 02. Précarité Financière | C60: Part de bénéficiaires de l'APA au 1er janvier pour 100 habitants de 60 ans et plus | D60: 2019 | E60: Conseil Départemental de La Réunion, Insee
B61: 02. Précarité Financière | C61: Nombre d'allocataires d'au moins un minimum social (RSA socle et/ou RSO et/ou AAH et/ou complément AAH sans AAH) au 1er janvier | D61: 2019 | E61: CAF Réunion | F61: http://www.caf.fr/partenaires/caf-de-la-reunion/partenaires-locaux/les-statistiques-etudes-et-publications-de-la-caf-de-la-reunion
B62: 02. Précarité Financière | C62: Part d'allocataires d'au moins un minimum social (RSA socle et/ou RSO et/ou AAH et/ou complément AAH sans AAH) au 1er janvier pour 100 ménages | D62: 2019 | E62: CAF Réunion, Insee
B63: 02. Précarité Financière | C63: Nombre de personnes couvertes par au moins un minimum social (RSA socle et/ou RSO et/ou AAH et/ou complément AAH sans AAH) au 1er janvier | D63: 2019 | E63: CAF Réunion | F63: http://www.caf.fr/partenaires/caf-de-la-reunion/partenaires-locaux/les-statistiques-etudes-et-publications-de-la-caf-de-la-reunion
B64: 02. Précarité Financière | C64: Taux de personnes couvertes par au moins un minimum social (RSA socle et/ou RSO et/ou AAH et/ou complément AAH sans AAH) au 1er janvier pour 100 habitants | D64: 2019 | E64: CAF Réunion, Insee
B65: 02. Précarité Financière | C65: Nombre d'allocataires du RSA (socle et/ou activité) au 1er janvier | D65: 2019 | E65: CAF Réunion | F65: http://www.caf.fr/partenaires/caf-de-la-reunion/partenaires-locaux/les-statistiques-etudes-et-publications-de-la-caf-de-la-reunion
B66: 02. Précarité Financière | C66: Part d'allocataires du RSA (socle et/ou activité) au 1er janvier pour 100 habitants de 25 à 59 ans | D66: 2019 | E66: CAF Réunion, Insee
B67: 02. Précarité Financière | C67: Nombre de personnes couvertes par le RSA (socle et/ou activité) au 1er janvier | D67: 2019 | E67: CAF Réunion | F67: http://www.caf.fr/partenaires/caf-de-la-reunion/partenaires-locaux/les-statistiques-etudes-et-publications-de-la-caf-de-la-reunion
B68: 02. Précarité Financière | C68: Part de personnes couvertes par le RSA (socle et/ou activité) au 1er janvier pour 100 habitants | D68: 2019 | E68: CAF Réunion, Insee
B69: 02. Précarité Financière | C69: Nombre d'allocataires du RSO au 1er janvier | D69: 2019 | E69: CAF Réunion | F69: http://www.caf.fr/partenaires/caf-de-la-reunion/partenaires-locaux/les-statistiques-etudes-et-publications-de-la-caf-de-la-reunion
B70: 02. Précarité Financière | C70: Part d'allocataires du RSO au 1er janvier pour 100 habitants de 55 ans et plus | D70: 2019 | E70: CAF Réunion, Insee
B71: 02. Précarité Financière | C71: Nombre de personnes couvertes par le RSO au 1er janvier | D71: 2019 | E71: CAF Réunion | F71: http://www.caf.fr/partenaires/caf-de-la-reunion/partenaires-locaux/les-statistiques-etudes-et-publications-de-la-caf-de-la-reunion
B72: 02. Précarité Financière | C72: Part de personnes couvertes par le RSO au 1er janvier pour 100 habitants de 55 ans et plus | D72: 2019 | E72: CAF Réunion, Insee
B73: 02. Précarité Financière | C73: Nombre d'allocataires de l'AAH au 1er janvier | D73: 2019 | E73: CAF Réunion | F73: http://www.caf.fr/partenaires/caf-de-la-reunion/partenaires-locaux/les-statistiques-etudes-et-publications-de-la-caf-de-la-reunion
B74: 02. Précarité Financière | C74: Part d'allocataires de l'AAH au 1er janvier pour 100 habitants de 20 à 59 ans | D74: 2019 | E74: CAF Réunion, Insee
B75: 02. Précarité Financière | C75: Nombre de personnes couvertes par l'AAH au 1er janvier | D75: 2019 | E75: CAF Réunion | F75: http://www.caf.fr/partenaires/caf-de-la-reunion/partenaires-locaux/les-statistiques-etudes-et-publications-de-la-caf-de-la-reunion
B76: 02. Précarité Financière | C76: Part de personnes couvertes par l'AAH au 1er janvier pour 100 habitants de 20 à 59 ans | D76: 2019 | E76: CAF Réunion, Insee
B77: 02. Précarité Financière | C77: Nombre de bénéficiaires du minimum vieillesse (régime général et régime agricole) au 1er janvier | D77: 2019 | E77: CGSS de La Réunion
B78: 02. Précarité Financière | C78: Part de bénéficiaires du minimum vieillesse (régime général et régime agricole) au 1er janvier pour 100 habitants de 60 ans et plus | D78: 2019 | E78: CGSS de La Réunion, Insee
B79: 03. Chômage et Emploi | C79: Demandeurs d’emploi inscrits en fin de mois à Pôle emploi de catégories A et B au 1er janvier | D79: 2019 | E79: Pôle emploi - STMT, Données brutes | F79: https://statistiques.pole-emploi.org/stmt/defm?ff=A,B&fh=2&fi=04&lb=0&nk=0&pp=201812&ss=1
B80: 03. Chômage et Emploi | C80: Demandeurs d’emploi en fin de mois de catégories AB de moins de 25 ans au 1er janvier | D80: 2019 | E80: Pôle emploi - STMT, Données brutes | F80: https://statistiques.pole-emploi.org/stmt/defm?ff=A,B&fh=2&fi=04&lb=0&nk=0&pp=201812&ss=2
B81: 03. Chômage et Emploi | C81: Demandeurs d’emploi en fin de mois de catégories AB de 25 à 49 ans au 1er janvier | D81: 2019 | E81: Pôle emploi - STMT, Données brutes | F81: https://statistiques.pole-emploi.org/stmt/defm?ff=A,B&fh=2&fi=04&lb=0&nk=0&pp=201812&ss=3
B82: 03. Chômage et Emploi | C82: Demandeurs d’emploi en fin de mois de catégories AB de 50 ans ou plus au 1er janvier | D82: 2019 | E82: Pôle emploi - STMT, Données brutes | F82: https://statistiques.pole-emploi.org/stmt/defm?ff=A,B&fh=2&fi=04&lb=0&nk=0&pp=201812&ss=4
B83: 03. Chômage et Emploi | C83: Demandeurs d’emploi en fin de mois de catégories AB hommes au 1er janvier | D83: 2019 | E83: Pôle emploi - STMT, Données brutes | F83: https://statistiques.pole-emploi.org/stmt/defm?ff=A,B&fh=2&fi=04&lb=0&nk=0&pp=201812&ss=5
B84: 03. Chômage et Emploi | C84: Demandeurs d’emploi en fin de mois de catégories AB hommes de 15 à 24 ans au 1er janvier | D84: 2019 | E84: Pôle emploi - STMT, Données brutes | F84: https://statistiques.pole-emploi.org/stmt/defm?ff=A,B&fh=2&fi=04&lb=0&nk=0&pp=201812&ss=6
B85: 03. Chômage et Emploi | C85: Demandeurs d’emploi en fin de mois de catégories AB hommes de 25 à 49 ans au 1er janvier | D85: 2019 | E85: Pôle emploi - STMT, Données brutes | F85: https://statistiques.pole-emploi.org/stmt/defm?ff=A,B&fh=2&fi=04&lb=0&nk=0&pp=201812&ss=7
B86: 03. Chômage et Emploi | C86: Demandeurs d’emploi en fin de mois de catégories AB hommes de 50 ans ou plus au 1er janvier | D86: 2019 | E86: Pôle emploi - STMT, Données brutes | F86: https://statistiques.pole-emploi.org/stmt/defm?ff=A,B&fh=2&fi=04&lb=0&nk=0&pp=201812&ss=8
B87: 03. Chômage et Emploi | C87: Demandeurs d’emploi en fin de mois de catégories AB femmes au 1er janvier | D87: 2019 | E87: Pôle emploi - STMT, Données brutes | F87: https://statistiques.pole-emploi.org/stmt/defm?ff=A,B&fh=2&fi=04&lb=0&nk=0&pp=201812&ss=9
B88: 03. Chômage et Emploi | C88: Demandeurs d’emploi en fin de mois de catégories AB femmes de 15 à 24 ans au 1er janvier | D88: 2019 | E88: Pôle emploi - STMT, Données brutes | F88: https://statistiques.pole-emploi.org/stmt/defm?ff=A,B&fh=2&fi=04&lb=0&nk=0&pp=201812&ss=10
B89: 03. Chômage et Emploi | C89: Demandeurs d’emploi en fin de mois de catégories AB femmes de 25 à 49 ans au 1er janvier | D89: 2019 | E89: Pôle emploi - STMT, Données brutes | F89: https://statistiques.pole-emploi.org/stmt/defm?ff=A,B&fh=2&fi=04&lb=0&nk=0&pp=201812&ss=11
B90: 03. Chômage et Emploi | C90: Demandeurs d’emploi en fin de mois de catégories AB femmes de 50 ans ou plus au 1er janvier | D90: 2019 | E90: Pôle emploi - STMT, Données brutes | F90: https://statistiques.pole-emploi.org/stmt/defm?ff=A,B&fh=2&fi=04&lb=0&nk=0&pp=201812&ss=12
B91: 04. Formation et Scolarité | C91: Nombre d'enfants bénéficiaires de l'Allocation de Rentrée Scolaire (ARS) au 1er janvier | D91: 2019 | E91: CAF Réunion | F91: http://www.caf.fr/partenaires/caf-de-la-reunion/partenaires-locaux/les-statistiques-etudes-et-publications-de-la-caf-de-la-reunion
B92: 04. Formation et Scolarité | C92: Effectif des 15 ans ou plus non scolarisés ne possédant aucun diplôme ou au plus BEPC, brevet des collèges, DNB | D92: 2016 | E92: Insee, Recencement de la population | F92: https://www.insee.fr/fr/information/2008354
B93: 04. Formation et Scolarité | C93: Part des 15 ans ou plus non scolarisés ne possédant aucun diplôme ou au plus BEPC, brevet des collèges, DNB | D93: 2016 | E93: Insee, Recencement de la population | F93: https://www.insee.fr/fr/information/2008355
B94: 04. Formation et Scolarité | C94: Effectif des 15-34 ans non scolarisés ne possédant aucun diplôme ou au plus BEPC, brevet des collèges, DNB | D94: 2016 | E94: Insee, Recencement de la population | F94: https://www.insee.fr/fr/statistiques/4171399?sommaire=4171407
B95: 04. Formation et Scolarité | C95: Part des 15-34 ans non scolarisés ne possédant aucun diplôme ou au plus BEPC, brevet des collèges, DNB | D95: 2016 | E95: Insee, Recencement de la population | F95: https://www.insee.fr/fr/information/2008357
B96: 05. Logement | C96: Nombre d'allocataires d'aides au logement (ALS et ALF) au 1er janvier | D96: 2018 | E96: CAF Réunion | F96: http://www.caf.fr/partenaires/caf-de-la-reunion/partenaires-locaux/les-statistiques-etudes-et-publications-de-la-caf-de-la-reunion
B97: 05. Logement | C97: Part d'allocataires d'aides au logement (ALS et ALF) au 1er janvier pour 100 ménages | D97: 2018 | E97: CAF Réunion, Insee | F97: http://www.caf.fr/partenaires/caf-de-la-reunion/partenaires-locaux/les-statistiques-etudes-et-publications-de-la-caf-de-la-reunion
B98: 05. Logement | C98: Nombre de logements sociaux au 1er janvier | D98: 2018 | E98: ARMOS-oi | F98: https://www.armos-oi.re/rapport.php
B99: 05. Logement | C99: Nombre de logements sociaux au 1er janvier pour 100 habitations principales | D99: 2018 | E99: ARMOS-oi
B100: 05. Logement | C100: Nombre de demandeurs actifs de logements sociaux au 1er janvier | D100: 2019 | E100: DEAL
B101: 05. Logement | C101: Part de ménages demandeurs de logements sociaux au 1er janvier pour 100 ménages | D101: 2019 | E101: DEAL
B102: 05. Logement | C102: Part de demandeurs de logements sociaux au 1er janvier pour 100 logements sociaux existants | D102: 2019 | E102: DEAL
B103: 06. Santé générale | C103: Nombre de naissances chez des mères mineures | D103: 2018 | E103: INSEE, Etat-civil
B104: 06. Santé générale | C104: Nombre de naissances chez des mères mineures pour 100 naissances vivantes | D104: 2018 | E104: INSEE, Etat-civil
B105: 06. Santé générale | C105: Nombre de décès d'enfants de moins de un an | D105: 2018 | E105: INSEE, Etat-civil
B106: 06. Santé générale | C106: Taux de mortalité infantile pour 1 000 naissances vivantes | D106: 2018 | E106: INSEE, Etat-civil
B107: 07. Accès aux soins | C107: Nombre de bénéficiaires de la PUMA au 1er janvier | D107: 2019 | E107: CGSS de La Réunion
B108: 07. Accès aux soins | C108: Nombre d'hommes bénéficiaires de la PUMA au 1er janvier | D108: 2019 | E108: CGSS de La Réunion
B109: 07. Accès aux soins | C109: Nombre de femmes bénéficiaires de la PUMA au 1er janvier | D109: 2019 | E109: CGSS de La Réunion
B110: 07. Accès aux soins | C110: Part de bénéficiaires de la PUMA pour 100 habitants | D110: 2019 | E110: CGSS de La Réunion
B111: 07. Accès aux soins | C111: Nombre de bénéficiaires de la CMU complémentaire au 1er janvier | D111: 2019 | E111: CGSS de La Réunion
B112: 07. Accès aux soins | C112: Nombre d'hommes bénéficiaires de la CMU complémentaire au 1er janvier | D112: 2019 | E112: CGSS de La Réunion
B113: 07. Accès aux soins | C113: Nombre de femmes bénéficiaires de la CMU complémentaire au 1er janvier | D113: 2019 | E113: CGSS de La Réunion
B114: 07. Accès aux soins | C114: Part de bénéficiaires de la CMU complémentaire au 1er janvier pour 100 habitants | D114: 2019 | E114: CGSS de La Réunion - Insee, RP 2016
B115: 08. Offre de soins | C115: Nombre de médecins généralistes libéraux au 1er janvier | D115: 2018 | E115: ARS OI, RPPS
B116: 08. Offre de soins | C116: Densité de médecins généralistes libéraux au 1er janvier pour 100 000 habitants | D116: 2018 | E116: ARS OI, RPPS - Insee, RP 2016
B117: 08. Offre de soins | C117: Nombre de médecins spécialistes libéraux au 1er janvier | D117: 2018 | E117: ARS OI, RPPS
B118: 08. Offre de soins | C118: Densité de médecins spécialistes libéraux au 1er janvier pour 100 000 habitants | D118: 2018 | E118: ARS OI, RPPS - Insee, RP 2016
B119: 08. Offre de soins | C119: Nombre de médecins libéraux au 1er janvier | D119: 2018 | E119: ARS OI, RPPS
B120: 08. Offre de soins | C120: Densité de médecins libéraux au 1er janvier pour 100 000 habitants | D120: 2018 | E120: ARS OI, RPPS - Insee, RP 2016
B121: 08. Offre de soins | C121: Nombre de chirurgiens-dentistes libéraux au 1er janvier | D121: 2018 | E121: ARS OI, RPPS
B122: 08. Offre de soins | C122: Densité de chirurgiens-dentistes libéraux au 1er janvier pour 100 000 habitants | D122: 2018 | E122: ARS OI, RPPS - Insee, RP 2016
B123: 08. Offre de soins | C123: Nombre d'infirmiers libéraux au 1er janvier | D123: 2016 | E123: ADELI, ARS OI, RPPS
B124: 08. Offre de soins | C124: Densité d'infirmiers libéraux au 1er janvier pour 100 000 habitants | D124: 2016 | E124: ADELI, ARS OI, INSEE,RPPS (Recensement 2015)
B125: 08. Offre de soins | C125: Nombre de masseurs-kinésithérapeutes libéraux au 1er janvier | D125: 2018 | E125: ADELI, ARS OI, RPPS
B126: 08. Offre de soins | C126: Densité de masseurs-kinésithérapeutes libéraux au 1er janvier pour 100 000 habitants | D126: 2018 | E126: ADELI, ARS OI, INSEE,RPPS (Recensement 2015)
B127: 08. Offre de soins | C127: Nombre d'orthophonistes au 1er janvier | D127: 2018 | E127: ADELI, ARS OI, RPPS
B128: 08. Offre de soins | C128: Densité d'orthophonistes au 1er janvier pour 100 000 habitants | D128: 2018 | E128: ADELI, ARS OI, INSEE,RPPS (Recensement 2015)
B129: 08. Offre de soins | C129: Nombre de psychologues au 1er janvier | D129: 2018 | E129: ADELI, ARS OI, RPPS
B130: 08. Offre de soins | C130: Densité de psychologues au 1er janvier pour 100 000 habitants | D130: 2018 | E130: ADELI, ARS OI, INSEE,RPPS (Recensement 2015)
B131: 09. Hospitalisation | C131: Nombre de séjours hospitaliers (hospitalisation complète) chez les femmes | D131: 2018 | E131: PMSI
B132: 09. Hospitalisation | C132: Nombre de séjours hospitaliers (hospitalisation complète) chez les hommes | D132: 2018 | E132: PMSI
B133: 09. Hospitalisation | C133: Nombre de séjours hospitaliers (hospitalisation complète) | D133: 2018 | E133: PMSI
B134: 09. Hospitalisation | C134: Nombre de séjours hospitaliers (hospitalisation complète) pour maladies cardiovasculaires chez les femmes | D134: 2018 | E134: PMSI
B135: 09. Hospitalisation | C135: Nombre de séjours hospitaliers (hospitalisation complète) pour maladies cardiovasculaires chez les hommes | D135: 2018 | E135: PMSI
B136: 09. Hospitalisation | C136: Nombre de séjours hospitaliers (hospitalisation complète) pour maladies cardiovasculaires | D136: 2018 | E136: PMSI
B137: 09. Hospitalisation | C137: Nombre de séjours hospitaliers (hospitalisation complète) pour diabète chez les femmes | D137: 2018 | E137: PMSI
B138: 09. Hospitalisation | C138: Nombre de séjours hospitaliers (hospitalisation complète) pour diabète chez les hommes | D138: 2018 | E138: PMSI
B139: 09. Hospitalisation | C139: Nombre de séjours hospitaliers (hospitalisation complète) pour diabète | D139: 2018 | E139: PMSI
B140: 09. Hospitalisation | C140: Nombre de séjours hospitaliers (hospitalisation complète) pour tumeur chez les femmes | D140: 2018 | E140: PMSI
B141: 09. Hospitalisation | C141: Nombre de séjours hospitaliers (hospitalisation complète) pour tumeur chez les hommes | D141: 2018 | E141: PMSI
B142: 09. Hospitalisation | C142: Nombre de séjours hospitaliers (hospitalisation complète) pour tumeur | D142: 2018 | E142: PMSI
B143: 09. Hospitalisation | C143: Nombre de séjours hospitaliers (hospitalisation complète) chez les femmes de moins de 15 ans | D143: 2018 | E143: PMSI
B144: 09. Hospitalisation | C144: Nombre de séjours hospitaliers (hospitalisation complète) chez les hommes de moins de 15 ans | D144: 2018 | E144: PMSI
B145: 09. Hospitalisation | C145: Nombre de séjours hospitaliers (hospitalisation complète) chez les moins de 15 ans | D145: 2018 | E145: PMSI
B146: 09. Hospitalisation | C146: Nombre de séjours hospitaliers (hospitalisation complète) chez les femmes de 15-44 ans | D146: 2018 | E146: PMSI
B147: 09. Hospitalisation | C147: Nombre de séjours hospitaliers (hospitalisation complète) chez les hommes de 15-44 ans | D147: 2018 | E147: PMSI
B148: 09. Hospitalisation | C148: Nombre de séjours hospitaliers (hospitalisation complète) chez les 15-44 ans | D148: 2018 | E148: PMSI
B149: 09. Hospitalisation | C149: Nombre de séjours hospitaliers (hospitalisation complète) chez les femmes de 45-74 ans | D149: 2018 | E149: PMSI
B150: 09. Hospitalisation | C150: Nombre de séjours hospitaliers (hospitalisation complète) chez les hommes de 45-74 ans | D150: 2018 | E150: PMSI
B151: 09. Hospitalisation | C151: Nombre de séjours hospitaliers (hospitalisation complète) chez les 45-74 ans | D151: 2018 | E151: PMSI
B152: 09. Hospitalisation | C152: Nombre de séjours hospitaliers (hospitalisation complète) chez les femmes de 75 ans et plus | D152: 2018 | E152: PMSI
B153: 09. Hospitalisation | C153: Nombre de séjours hospitaliers (hospitalisation complète) chez les hommes de 75 ans et plus | D153: 2018 | E153: PMSI
B154: 09. Hospitalisation | C154: Nombre de séjours hospitaliers (hospitalisation complète) chez les 75 ans et plus | D154: 2018 | E154: PMSI
B155: 09. Hospitalisation | C155: Taux standardisé d'hospitalisation chez les femmes pour 10 000 habitants | D155: 2018 Standardisation France RP 2006 | E155: PMSI, INSEE
B156: 09. Hospitalisation | C156: Taux standardisé d'hospitalisation chez les hommes pour 10 000 habitants | D156: 2018 Standardisation France RP 2006 | E156: PMSI, INSEE
B157: 09. Hospitalisation | C157: Taux standardisé d'hospitalisation pour 10 000 habitants | D157: 2018 Standardisation France RP 2006 | E157: PMSI, INSEE
B158: 09. Hospitalisation | C158: Taux standardisé d'hospitalisation pour maladies cardiovasculaires chez les femmes pour 10 000 habitants | D158: 2018 Standardisation France RP 2006 | E158: PMSI, INSEE
B159: 09. Hospitalisation | C159: Taux standardisé d'hospitalisation pour maladies cardiovasculaires chez les hommes pour 10 000 habitants | D159: 2018 Standardisation France RP 2006 | E159: PMSI, INSEE
B160: 09. Hospitalisation | C160: Taux standardisé d'hospitalisation pour maladies cardiovasculaires pour 10 000 habitants | D160: 2018 Standardisation France RP 2006 | E160: PMSI, INSEE
B161: 09. Hospitalisation | C161: Taux standardisé d'hospitalisation pour tumeur chez les femmes pour 10 000 habitants | D161: 2018 Standardisation France RP 2006 | E161: PMSI, INSEE
B162: 09. Hospitalisation | C162: Taux standardisé d'hospitalisation pour tumeur chez les hommes pour 10 000 habitants | D162: 2018 Standardisation France RP 2006 | E162: PMSI, INSEE
B163: 09. Hospitalisation | C163: Taux standardisé d'hospitalisation pour tumeur pour 10 000 habitants | D163: 2018 Standardisation France RP 2006 | E163: PMSI, INSEE
B164: 09. Hospitalisation | C164: Taux standardisé d'hospitalisation pour diabète chez les femmes pour 10 000 habitants | D164: 2018 Standardisation France RP 2006 | E164: PMSI, INSEE
B165: 09. Hospitalisation | C165: Taux standardisé d'hospitalisation pour diabète chez les hommes pour 10 000 habitants | D165: 2018 Standardisation France RP 2006 | E165: PMSI, INSEE
B166: 09. Hospitalisation | C166: Taux standardisé d'hospitalisation pour diabète pour 10 000 habitants | D166: 2018 Standardisation France RP 2006 | E166: PMSI, INSEE
B167: 10. Mortalité | C167: Nombre annuel moyen de décès féminins | D167: 2013-2015 | E167: INSERM CepiDC
B168: 10. Mortalité | C168: Nombre annuel moyen de décès masculins | D168: 2013-2015 | E168: INSERM CepiDC
B169: 10. Mortalité | C169: Nombre annuel moyen de décès | D169: 2013-2015 | E169: INSERM CepiDC
B170: 10. Mortalité | C170: Nombre annuel moyen de décès féminins prématurés (survenant avant 65 ans) | D170: 2013-2015 | E170: INSERM CepiDC
B171: 10. Mortalité | C171: Nombre annuel moyen de décès masculins prématurés (survenant avant 65 ans) | D171: 2013-2015 | E171: INSERM CepiDC
B172: 10. Mortalité | C172: Nombre annuel moyen de décès prématurés (survenant avant 65 ans) | D172: 2013-2015 | E172: INSERM CepiDC
B173: 10. Mortalité | C173: Part de décès féminins prématurés (survenant avant 65 ans) pour 100 décès | D173: 2013-2015 | E173: INSERM CepiDC
B174: 10. Mortalité | C174: Part de décès masculins prématurés (survenant avant 65 ans) pour 100 décès | D174: 2013-2015 | E174: INSERM CepiDC
B175: 10. Mortalité | C175: Part de décès prématurés (survenant avant 65 ans) pour 100 décès | D175: 2013-2015 | E175: INSERM CepiDC
B176: 10. Mortalité | C176: Nombre annuel moyen de décès par maladies cardiovasculaires chez les femmes | D176: 2013-2015 | E176: INSERM CepiDC
B177: 10. Mortalité | C177: Nombre annuel moyen de décès par maladies cardiovasculaires chez les hommes | D177: 2013-2015 | E177: INSERM CepiDC
B178: 10. Mortalité | C178: Nombre annuel moyen de décès par maladies cardiovasculaires | D178: 2013-2015 | E178: INSERM CepiDC
B179: 10. Mortalité | C179: Nombre annuel moyen de décès par tumeur chez les femmes | D179: 2013-2015 | E179: INSERM CepiDC
B180: 10. Mortalité | C180: Nombre annuel moyen de décès par tumeur chez les hommes | D180: 2013-2015 | E180: INSERM CepiDC
B181: 10. Mortalité | C181: Nombre annuel moyen de décès par tumeur | D181: 2013-2015 | E181: INSERM CepiDC
B182: 10. Mortalité | C182: Taux standardisé de mortalité chez les femmes pour 100.000 habitants | D182: 2013-2015 Standardisation France RP 2006 | E182: INSERM CepiDC, INSEE
B183: 10. Mortalité | C183: Taux standardisé de mortalité chez les hommes pour 100.000 habitants | D183: 2013-2015 Standardisation France RP 2006 | E183: INSERM CepiDC, INSEE
B184: 10. Mortalité | C184: Taux standardisé de mortalité pour 100 000 habitants | D184: 2013-2015 Standardisation France RP 2006 | E184: INSERM CepiDC, INSEE
B185: 10. Mortalité | C185: Taux standardisé de mortalité par maladies cardiovasculaires chez les femmes pour 100 000 habitants | D185: 2013-2015 Standardisation France RP 2006 | E185: INSERM CepiDC, INSEE
B186: 10. Mortalité | C186: Taux standardisé de mortalité par maladies cardiovasculaires chez les hommes pour 100 000 habitants | D186: 2013-2015 Standardisation France RP 2006 | E186: INSERM CepiDC, INSEE
B187: 10. Mortalité | C187: Taux standardisé de mortalité par maladies cardiovasculaires pour 100 000 habitants | D187: 2013-2015 Standardisation France RP 2006 | E187: INSERM CepiDC, INSEE
B188: 10. Mortalité | C188: Taux standardisé de mortalité par tumeur chez les femmes pour 100 000 habitants | D188: 2013-2015 Standardisation France RP 2006 | E188: INSERM CepiDC, INSEE
B189: 10. Mortalité | C189: Taux standardisé de mortalité par tumeur chez les hommes pour 100 000 habitants | D189: 2013-2015 Standardisation France RP 2006 | E189: INSERM CepiDC, INSEE
B190: 10. Mortalité | C190: Taux standardisé de mortalité par tumeur pour 100 000 habitants | D190: 2013-2015 Standardisation France RP 2006 | E190: INSERM CepiDC, INSEE
B191: 10. Mortalité | C191: Taux standardisé de mortalité prématurée chez les femmes pour 100 000 habitants | D191: 2013-2015 Standardisation France RP 2006 | E191: INSERM CepiDC, INSEE
B192: 10. Mortalité | C192: Taux standardisé de mortalité prématurée chez les hommes pour 100 000 habitants | D192: 2013-2015 Standardisation France RP 2006 | E192: INSERM CepiDC, INSEE
B193: 10. Mortalité | C193: Taux standardisé de mortalité prématurée pour 100 000 habitants | D193: 2013-2015 Standardisation France RP 2006 | E193: INSERM CepiDC, INSEE
B194: 11. Admissions en ALD | C194: Nombre annuel moyen d'admissions en ALD chez les femmes | D194: 2012-2014 | E194: CNAMTS, CCMSA, RSI, FNORS
B195: 11. Admissions en ALD | C195: Nombre annuel moyen d'admissions en ALD chez les hommes | D195: 2012-2014 | E195: CNAMTS, CCMSA, RSI, FNORS
B196: 11. Admissions en ALD | C196: Nombre annuel moyen d'admissions en ALD | D196: 2012-2014 | E196: CNAMTS, CCMSA, RSI, FNORS
B197: 11. Admissions en ALD | C197: Nombre annuel moyen d'admissions en ALD pour maladies cardiovasculaires chez les femmes | D197: 2012-2014 | E197: ALD n°1, ALD n°3, ALD n°5, ALD n°12, ALD n°13 CNAMTS, CCMSA, RSI, FNORS
B198: 11. Admissions en ALD | C198: Nombre annuel moyen d'admissions en ALD pour maladies cardiovasculaires chez les hommes | D198: 2012-2014 | E198: ALD n°1, ALD n°3, ALD n°5, ALD n°12, ALD n°13 CNAMTS, CCMSA, RSI, FNORS
B199: 11. Admissions en ALD | C199: Nombre annuel moyen d'admissions en ALD pour maladies cardiovasculaires | D199: 2012-2014 | E199: ALD n°1, ALD n°3, ALD n°5, ALD n°12, ALD n°13 CNAMTS, CCMSA, RSI, FNORS
B200: 11. Admissions en ALD | C200: Nombre annuel moyen d'admissions en ALD pour diabète chez les femmes | D200: 2012-2014 | E200: ALD n°8 CNAMTS, CCMSA, RSI, FNORS
B201: 11. Admissions en ALD | C201: Nombre annuel moyen d'admissions en ALD pour diabète chez les hommes | D201: 2012-2014 | E201: ALD n°8 CNAMTS, CCMSA, RSI, FNORS
B202: 11. Admissions en ALD | C202: Nombre annuel moyen d'admissions en ALD pour diabète | D202: 2012-2014 | E202: ALD n°8 CNAMTS, CCMSA, RSI, FNORS
B203: 11. Admissions en ALD | C203: Nombre annuel moyen d'admissions en ALD pour tumeur chez les femmes | D203: 2012-2014 | E203: ALD n°30 CNAMTS, CCMSA, RSI, FNORS
B204: 11. Admissions en ALD | C204: Nombre annuel moyen d'admissions en ALD pour tumeur chez les hommes | D204: 2012-2014 | E204: ALD n°30 CNAMTS, CCMSA, RSI, FNORS
B205: 11. Admissions en ALD | C205: Nombre annuel moyen d'admissions en ALD pour tumeur | D205: 2012-2014 | E205: ALD n°30 CNAMTS, CCMSA, RSI, FNORS
B206: 11. Admissions en ALD | C206: Nombre annuel moyen d'admissions en ALD chez les femmes de moins de 15 ans | D206: 2012-2014 | E206: CNAMTS, CCMSA, RSI, FNORS
B207: 11. Admissions en ALD | C207: Nombre annuel moyen d'admissions en ALD chez les hommes de moins de 15 ans | D207: 2012-2014 | E207: CNAMTS, CCMSA, RSI, FNORS
B208: 11. Admissions en ALD | C208: Nombre annuel moyen d'admissions en ALD chez les moins de 15 ans | D208: 2012-2014 | E208: CNAMTS, CCMSA, RSI, FNORS
B209: 11. Admissions en ALD | C209: Nombre annuel moyen d'admissions en ALD chez les femmes de 15-44 ans | D209: 2012-2014 | E209: CNAMTS, CCMSA, RSI, FNORS
B210: 11. Admissions en ALD | C210: Nombre annuel moyen d'admissions en ALD chez les hommes de 15-44 ans | D210: 2012-2014 | E210: CNAMTS, CCMSA, RSI, FNORS
B211: 11. Admissions en ALD | C211: Nombre annuel moyen d'admissions en ALD chez les 15-44 ans | D211: 2012-2014 | E211: CNAMTS, CCMSA, RSI, FNORS
B212: 11. Admissions en ALD | C212: Nombre annuel moyen d'admissions en ALD chez les femmes de 45-74 ans | D212: 2012-2014 | E212: CNAMTS, CCMSA, RSI, FNORS
B213: 11. Admissions en ALD | C213: Nombre annuel moyen d'admissions en ALD chez les hommes de 45-74 ans | D213: 2012-2014 | E213: CNAMTS, CCMSA, RSI, FNORS
B214: 11. Admissions en ALD | C214: Nombre annuel moyen d'admissions en ALD chez les 45-74 ans | D214: 2012-2014 | E214: CNAMTS, CCMSA, RSI, FNORS
B215: 11. Admissions en ALD | C215: Nombre annuel moyen d'admissions en ALD chez les femmes de 75 ans et plus | D215: 2012-2014 | E215: CNAMTS, CCMSA, RSI, FNORS
B216: 11. Admissions en ALD | C216: Nombre annuel moyen d'admissions en ALD chez les hommes de 75 ans et plus | D216: 2012-2014 | E216: CNAMTS, CCMSA, RSI, FNORS
B217: 11. Admissions en ALD | C217: Nombre annuel moyen d'admissions en ALD chez les 75 ans et plus | D217: 2012-2014 | E217: CNAMTS, CCMSA, RSI, FNORS
B218: 11. Admissions en ALD | C218: Taux standardisé d'admissions en ALD chez les femmes pour 100 000 habitants | D218: 2012-2014 Standardisation France RP 2006 | E218: CNAMTS, CCMSA, RSI, FNORS, INSEE
B219: 11. Admissions en ALD | C219: Taux standardisé d'admissions en ALD chez les hommes pour 100 000 habitants | D219: 2012-2014 Standardisation France RP 2006 | E219: CNAMTS, CCMSA, RSI, FNORS, INSEE
B220: 11. Admissions en ALD | C220: Taux standardisé d'admissions en ALD pour 100 000 habitants | D220: 2012-2014 Standardisation France RP 2006 | E220: CNAMTS, CCMSA, RSI, FNORS, INSEE
B221: 11. Admissions en ALD | C221: Taux standardisé d'admissions en ALD pour maladies cardiovasculaires chez les femmes pour 100 000 habitants | D221: 2012-2014 Standardisation France RP 2006 | E221: CNAMTS, CCMSA, RSI, FNORS, INSEE
B222: 11. Admissions en ALD | C222: Taux standardisé d'admissions en ALD pour maladies cardiovasculaires chez les hommes pour 100 000 habitants | D222: 2012-2014 Standardisation France RP 2006 | E222: CNAMTS, CCMSA, RSI, FNORS, INSEE
B223: 11. Admissions en ALD | C223: Taux standardisé d'admissions en ALD pour maladies cardiovasculaires pour 100 000 habitants | D223: 2012-2014 Standardisation France RP 2006 | E223: CNAMTS, CCMSA, RSI, FNORS, INSEE
B224: 11. Admissions en ALD | C224: Taux standardisé d'admissions en ALD pour tumeur chez les femmes pour 100 000 habitants | D224: 2012-2014 Standardisation France RP 2006 | E224: CNAMTS, CCMSA, RSI, FNORS, INSEE
B225: 11. Admissions en ALD | C225: Taux standardisé d'admissions en ALD pour tumeur chez les hommes pour 100 000 habitants | D225: 2012-2014 Standardisation France RP 2006 | E225: CNAMTS, CCMSA, RSI, FNORS, INSEE
B226: 11. Admissions en ALD | C226: Taux standardisé d'admissions en ALD pour tumeur pour 100.000 habitants | D226: 2012-2014 Standardisation France RP 2006 | E226: CNAMTS, CCMSA, RSI, FNORS, INSEE
B227: 11. Admissions en ALD | C227: Taux standardisé d'admissions en ALD pour diabète chez les femmes pour 100 000 habitants | D227: 2012-2014 Standardisation France RP 2006 | E227: CNAMTS, CCMSA, RSI, FNORS, INSEE
B228: 11. Admissions en ALD | C228: Taux standardisé d'admissions en ALD pour diabète chez les hommes pour 100 000 habitants | D228: 2012-2014 Standardisation France RP 2006 | E228: CNAMTS, CCMSA, RSI, FNORS, INSEE
B229: 11. Admissions en ALD | C229: Taux standardisé d'admissions en ALD pour diabète pour 100.000 habitants | D229: 2012-2014 Standardisation France RP 2006 | E229: CNAMTS, CCMSA, RSI, FNORS, INSEE
B230: 12. Inscriptions en ALD | C230: Nombre d'inscrits en ALD chez les femmes au 1er janvier | D230: 2018 | E230: CNAMTS, CCMSA, RSI, FNORS
B231: 12. Inscriptions en ALD | C231: Nombre d'inscrits en ALD chez les hommes au 1er janvier | D231: 2018 | E231: CNAMTS, CCMSA, RSI, FNORS
... 34 more rows

Sheet Méthodologie
B5: Ce travail, à visée descriptive, repose sur la collecte, la synthèse des données existantes et la mise à jour d’indicateurs communaux, régionaux et par micro-région les plus récents sur les thématiques Cadrage, Finance, Chômage, Logement, Formation et Santé.
B6: SOMMAIRE
B8: SOURCES D'INFORMATIONS
B10: Les indicateurs Santé-Social proviennent de diverses bases de données locales ou nationales : ARMOS oi, ARS OI, CAF Réunion, CGSS, Département de La Réunion, DEAL, INSEE, INSERM CépiDC, Pôle emploi, Régimes d'Assurance Maladie (CNAMTS, RSI, MSA).
B11: Les sources d'informations sont citées pour chaque indicateur dans l'onglet SOMMAIRE.
B13: Les principales sources de données utilisées sont :
B15: - les diagnostics principaux des séjours recensés en établissements de santé à partir du programme de médicalisation des systèmes d’information (PMSI)
B16: Les données d’hospitalisation permettent de dénombrer les maladies ou événements morbides « aigus » à l’origine d’un séjour hospitalier (indiqués comme diagnostic principal). Elles concernent les séjours effectués dans les unités de soins de courte durée médecine, chirurgie et obstétrique (MCO) des établissements de santé publics et privés. Les séjours sont affectés au lieu de résidence du patient : il s’agit de données domiciliées. Les séjours hospitaliers au cours d’une année peuvent concerner la même personne, tandis que tous les patients atteints d’une maladie chronique n’ont pas nécessairement recours à des soins hospitaliers chaque année. Les données présentées dans cette synthèse concernent les séjours hospitaliers (en hospitalisation complète) de patients résidant à La Réunion en 2015 : ensemble des séjours et séjours ayant pour diagnostic principal un des codes CIM10 correspondant au diabète (E10-E14), aux tumeurs (C00-D50) et aux maladies cardiovasculaires (I00-I99).
B18: - les admissions et inscriptions en affection de longue durée (ALD) prononcées par les 3 principaux régimes d’assurance maladie (CNAMTS, CCMSA, RSI)
B19: En cas d’affections comportant un traitement prolongé, le code de la Sécurité Sociale prévoit la suppression du ticket modérateur normalement à la charge de l’assuré dans le cadre du risque maladie. La liste de ces affections dites de Longue Durée est établie par décret et comporte 30 affections ou groupes d’affections. L’information sur la maladie dans les bases de données des services médicaux des différents régimes d’Assurance Maladie ne reflète pas totalement la réalité pour cette pathologie. En effet, les personnes atteintes d’une maladie chroniques ne sont pas nécessairement déclarées en ALD et de ce fait ne sont pas connues des services médicaux de l’Assurance Maladie. Les données présentées dans cette synthèse concernent : l'ensemble des ALD et ALD concernant le diabète (ALD n°8), les tumeurs (ALD n°30) et les maladies cardiovasculaires (ALD n°1, n°3, n°5, n°12 et n°13).
B21: Remarque importante concernant les ALD pour maladies cardiovasculaires : Depuis 2011, suite au décret n°2011-726 du 24 juin 2011, l’hypertension artérielle sévère a été supprimée de la liste des ALD 30. Cette évolution réglementaire s’appuie sur les avis rendus par la Haute Autorité de Santé (HAS), soulignant que l’hypertension artérielle isolée constitue un facteur de risque et non une pathologie avérée. Avant 2011, l’hypertension artérielle représentait le principal motif d’admission en ALD pour maladie cardiovasculaire. Cette suppression dans la liste des ALD a entrainé une baisse des admissions en ALD pour maladies cardiovasculaires comparativement aux données des autres éditions des indicateurs santé-social.
B23: - les statistiques de mortalité établies par l’INSERM Cépidc.
B24: Les données sont issues de la base de données nationale sur les causes médicales de décès. Les statistiques annuellement élaborées par le Centre d’épidémiologie sur les causes médicales de décès de l’Inserm (Cépidc) sont établies à partir des données recueillies sur le certificat médical rempli par le médecin ayant constaté le décès. Ce certificat comporte des données démographiques et une description du processus pathologique ayant conduit à la mort avec une cause initiale de décès notée sur la dernière ligne et définie comme étant la pathologie à l’origine du processus morbide ayant conduit au décès. L’analyse de ces données permet de suivre l’évolution des causes de décès, d’élaborer des indicateurs de mortalité contribuant à la définition des priorités de santé publique et d’évaluer l’impact des actions de santé. Les causes de mortalité sont codées selon la Classification internationale des maladies, 10ème révision, qui catégorise les maladies et définit les règles de sélection de la cause initiale de décès (code CIM 10). Les données présentées dans ce fichier concernent les décès domiciliés à La Réunion sur l'ensemble des décès et décès ayant pour cause initiale un des codes CIM10 correspondant au diabète (E10-E14), aux tumeurs (C00-D50) et aux maladies cardiovasculaires (I00-I99).
B26: - les effectifs de population de l’Insee (pour les effectifs de population et les calculs de taux).
B27: Les données utilisées pour les effectifs de population et les calculs de taux bruts par commune proviennent du recensement de population.
B29: - les statistiques de l'état-civil de l'Insee
B30: Les données concernant les naissances et les décès proviennent des statistiques d'état-civil exploitées par l'Insee.
B32: Afin de respecter le secret statistique, les effectifs strictement inférieurs à 5 ne sont pas précisés dans ces tableaux, excepté pour les professionnels de santé.
B34: CALCUL DES INDICATEURS
B35: Les taux utilisés dans le fichier sont des taux bruts annuels ou des taux standardisés annuels ou moyens sur des périodes triennales.
B36: Les taux standardisés sur l’âge ont été calculés à partir des effectifs moyens enregistrés pour une année donnée (hospitalisation) ou des effectifs moyens sur des périodes triennales (mortalité, admission en ALD) en prenant comme population de référence la population française au recensement de population 2006.
B37: Les taux standardisés (sur l'âge) sont des taux que l’on observerait dans la région (ou la commune) si elle avait la même structure par âge que la population de référence (ici la population de la France entière, deux sexes confondus, au recensement de population 2006). Un taux comparatif permet de comparer la situation de 2 populations en éliminant les effets liés aux différences de structures par âge.
B38: Le taux de mortalité infantile est le rapport du nombre d'enfants décédés à moins d'un an sur l'ensemble des enfants nés vivants.
B40: UTILISATION DES DONNEES
B41: Pour toute utilisation des indicateurs de ce fichier de données, merci d’indiquer les sources de données telles qu’elles figurent dans la rubrique sommaire.
B42: Et merci d’ajouter la mention suivante : " issu des Indicateurs Santé-Social édition 2019".
B43: L’ORS OI et l'ARS OI ne sont pas responsables des analyses, interprétations et conclusions faites par l’utilisateur à partir des données et indicateurs de cette source d'informations.

Sheet Définitions
B7: Thématique : CADRAGE
B9: Naissances domiciliées : naissances comptabilisées au domicile de la mère. Ici, les données présentées sont issues de l'Etat civil de La Réunion.
B11: Décès domiciliés : décès comptabilisés selon le domicile du défunt. Ici, les données présentées sont issues de l'Etat civil de La Réunion.
B14: Thématique : FINANCE
B16: Allocation personnalisée d'autonomie (APA) : allocation attribuée aux personnes âgées d'au moins 60 ans qui se trouvent en situation de perte d'autonomie, nécessitant une aide pour l’accomplissement des actes de la vie courante.
B17: L’APA concerne à la fois les personnes âgées résidant à domicile et celles demeurant en établissement. L'attribution de l'APA n'est pas soumise à une condition de ressources mais le montant de la somme perçue dépend du niveau du revenu.
B19: Allocataire : l’allocataire est le titulaire du dossier et peut percevoir une ou plusieurs allocations pour son propre compte ainsi que pour le compte des bénéficiaires dont il est responsable.
B21: Bénéficiaire d’une allocation : correspond à la personne qui ouvre droit à une prestation. Cette personne peut être soit l’allocataire, le conjoint ou le(s) enfant(s) à charge.
B23: Personnes couvertes : comprend l’allocataire et les ayants droit.
B25: Revenu de Solidarité Active (RSA) : en vigueur depuis le 1er juin 2010 en France métropolitaine et depuis le 1er janvier 2012 dans les départements d’outre-mer, il remplace le revenu minimum d’insertion (RMI), l’allocation de parent isolé (API) et les dispositifs associés d’intéressement à la reprise d’activité. Le RSA apporte également un complément de revenu à des travailleurs pauvres qui n’auraient pas pu bénéficier de ces aides. Depuis le 1er septembre 2010, le RSA est étendu au moins de 25 ans (RSA jeunes) sous condition de justifier de deux ans d’activité en équivalent temps plein, au cours des trois dernières années.
B27: RSO : Revenu de Solidarité – versée aux personnes de 55 ans ou plus ayant perçu de façon continue le RSA depuis 2 ans au moins et qui s’engagent à quitter le marché du travail et de l'insertion. Prestation soumise à condition de ressources. Cette allocation n’est pas cumulable avec l’AAH, la pension d’invalidité ou certaines allocations de vieillesse perçues par l’allocataire ou son conjoint ou concubin. Un RSO différentiel peut être servi.
B29: Allocation aux adultes handicapés (AAH) : créée en 1975, elle s’adresse aux personnes handicapées âgées de plus de 20 ans, ne pouvant prétendre ni à un avantage vieillesse ni à une rente d’accident du travail.
B30: Le titulaire doit justifier d’un taux d’incapacité d’au moins 80%, ou d’au moins 50% si la Commission des Droits et de l'Autonomie des Personnes Handicapées reconnaît qu’il lui est impossible de travailler en raison de son handicap.
B33: Thématique : CHOMAGE
B35: Demandes d’emploi en fin de mois (DEFM) : les demandeurs sont les personnes inscrites en fin de mois au Pôle Emploi. Ici les données présentées concernent les DEFM de catégories A et B au 31 décembre à La Réunion.
B37: Catégories de demandeurs d’emploi :
B39: - Catégorie A : elle regroupe les demandeurs d’emplois inscrits à Pôle Emploi, tenus de faire des actes positifs de recherche d’emploi et sans emploi.
B41: - Catégorie B : elle regroupe les demandeurs d’emplois inscrits à Pôle Emploi, tenus de faire des actes positifs de recherche d’emploi et ayant exercé une activité réduite courte (de 78 heures au plus au cours du mois).
B43: - Catégorie C : elle regroupe les demandeurs d’emplois inscrits à Pôle Emploi, tenus de faire des actes positifs de recherche d’emploi et ayant exercé une activité réduite longue (de plus de 78 heures au cours du mois).
B45: - Catégorie D : elle regroupe les demandeurs d’emplois inscrits à Pôle Emploi, non tenus de faire des actes positifs de recherche d’emploi pour diverses raisons (stage, formation, maladie,…) et sans emploi.
B47: - Catégorie E : elle regroupe les demandeurs d’emplois inscrits à Pôle Emploi, non tenus de faire des actes positifs de recherche d’emploi et en emploi (par exemple : bénéficiaires de contrats aidés).
B50: Thématique : FORMATION
B52: Allocation de Rentrée Scolaire (ARS) : créée en 1986, elle est versée annuellement, sous conditions de ressources, aux familles ayant au moins un enfant à charge scolarisé ou en apprentissage, âgé de 6 à 18 ans non révolus au 16 septembre suivant la rentrée. Le montant de l'ARS dépend de l'âge de l'enfant et vaut pour la dernière rentrée scolaire : 362,63 € pour un enfant de 6 à 10 ans, 382,64 € pour un enfant de 11 à 14 ans et 395,90 € pour un enfant de 15 à 18 ans
B54: Diplôme : les résultats du recensement de population font référence au diplôme de niveau le plus élevé que les individus ont déclaré posséder.
B55: Les catégories de diplôme utilisées sont les suivantes :
B56: - Aucun diplôme ou au plus BEPC, Brevet des collèges, DNB
B57: - Certificat d'aptitudes professionnelles, Brevet d'études professionnelles
B58: - Baccalauréat général, technologique ou professionnel
B59: - Diplôme d'études supérieures
B62: Thématique : LOGEMENT
B64: AL (Allocation de logement) : aide réservée aux personnes aux revenus modestes et ayant une charge de logement (loyer ou remboursement de prêt). Elle se subdivise en deux :
B65: - ALF (Allocation de Logement à caractère Familial) : versée aux allocataires ayant à charge au moins un enfant âgé de moins de 22 ans pour les DOM (moins de 21 ans pour la métropole), aux jeunes ménages sans enfant sous certaines conditions, aux personnes ou ménages ayant à leur charge un parent âgé ou infirme et justifiant d’une dépense de logement. Cette prestation est soumise à condition de ressources.
B66: - ALS (Allocation de Logement à caractère Social) : versée aux allocataires ayant à faire face à des dépenses de logement et ne bénéficiant pas déjà de l’ALF. Cette prestation est soumise à condition de ressources.
B68: Parc Locatif Social (PLS) : ensemble des programmes locatifs sociaux gérés par les organismes HLM (Habitation à Loyer Modéré) et les sociétés d’économie mixte de construction. Il n’inclut, en général, ni les programmes de logements-foyers ni les résidences de personnes âgées ou universitaires. Les nouvelles locations sont comptabilisées l’année de la première mise en location des logements.
B70: Résidences principales (RP) : logement occupé de façon habituelle et à titre principal par une ou plusieurs personnes qui constituent un ménage. Il y a ainsi égalité entre le nombre de résidences principales et le nombre de ménages.
B73: Thématique : SANTE
B75: Protection Universelle maladie (PUMA) : Le 1er janvier 2016, la protection universelle maladie (PUMA) entre en application, la CMU de base est supprimée. La protection universelle maladie assure aux personnes qui exercent une activité professionnelle en France ou qui résident en France de façon stable et régulière, la prise en charge des frais de santé en cas de maladie ou de maternité, à titre personnel et de manière continue tout au long de la vie.
B77: La Couverture Maladie Universelle Complémentaire (CMU-C) : Complémentaire santé gratuite qui prend en charge ce qui n'est pas couvert par les régimes d'assurance maladie obligatoire. La CMU-C est accordée pour un an sous condition de ressources. Au 1er Octobre 2014, le plafond annuel de ressources pour bénéficier de la CMU-C est fixé à 9 601 euros par an (soit 706 euros par mois) pour une personne seule dans les DOM. Ce montant évolue en fonction de la situation familiale et du lieu de résidence (en France métropolitaine ou dans un département d'outre-mer).
B79: Affection de Longue Durée (ALD) : Il s'agit des affections dont la gravité et/ou le caractère chronique nécessitent un traitement prolongé et une thérapeutique particulièrement coûteuse pour lesquelles le ticket modérateur est supprimé.
B81: Mortalité prématurée : ensemble des décès qui surviennent avant l’âge de 65 ans.

Sheet Cadrage
B10: Sources et année : Selon l'indicatateur, reportez-vous au tableau de la page SOMMAIRE (cliquez sur l'intitulé de chaque colonne)
A14: COMMUNE | B14: Population totale | C14: Population 0-14 ans | D14: Population 15-29 ans | E14: Population 30-44 ans | F14: Population 45-59 ans | G14: Population 60-74 ans | H14: Population 75 ans et plus | J14: Hommes | K14: Hommes 0-14 ans | L14: Hommes 15-29 ans | M14: Hommes 30-44 ans | N14: Hommes 45-59 ans | O14: Hommes 60-74 ans | P14: Hommes 75 ans et plus | R14: Femmes | S14: Femmes 0-14 ans | T14: Femmes 15-29 ans | U14: Femmes 30-44 ans | V14: Femmes 45-59 ans | W14: Femmes 60-74 ans | X14: Femmes 75 ans et plus | Z14: Nombre de naissances | AA14: Nombre de décès
A15: Les Avirons | B15: 11471 | C15: 2559.551018 | D15: 1919.020259 | E15: 2498.033341 | F15: 2639.4906 | G15: 1300.072519 | H15: 554.8322622 | J15: 5594.653886 | K15: 1341.339495 | L15: 982.5899118 | M15: 1144.033805 | N15: 1245.009739 | O15: 640.3470145 | P15: 241.3339216 | R15: 5876.346114 | S15: 1218.211524 | T15: 936.4303474 | U15: 1353.999536 | V15: 1394.480862 | W15: 659.7255043 | X15: 313.4983405 | Z15: 147 | AA15: 63
A16: Bras-Panon | B16: 12722 | C16: 3062.68361 | D16: 2584.296423 | E16: 2500.539624 | F16: 2816.153916 | G16: 1316.833832 | H16: 441.4925958 | J16: 6109.613614 | K16: 1542.199792 | L16: 1227.707455 | M16: 1187.550931 | N16: 1339.428655 | O16: 670.8905341 | P16: 141.8362461 | R16: 6612.386386 | S16: 1520.483817 | T16: 1356.588969 | U16: 1312.988693 | V16: 1476.72526 | W16: 645.9432974 | X16: 299.6563498 | Z16: 198 | AA16: 80
A17: Entre-Deux | B17: 6894 | C17: 1578.310948 | D17: 1293.786909 | E17: 1317.465376 | F17: 1492.37271 | G17: 780.1861194 | H17: 431.8779369 | J17: 3377.717706 | K17: 806.9294 | L17: 664.8722846 | M17: 615.8916306 | N17: 737.9957539 | O17: 394.4473423 | P17: 157.5812946 | R17: 3516.282294 | S17: 771.3815479 | T17: 628.9146249 | U17: 701.5737456 | V17: 754.3769564 | W17: 385.7387771 | X17: 274.2966424 | Z17: 77 | AA17: 55
A18: L'Étang-Salé | B18: 14230 | C18: 3238.669292 | D18: 2358.077587 | E18: 3063.710125 | F18: 3254.848528 | G18: 1701.392931 | H18: 613.301537 | J18: 7040.678707 | K18: 1671.490179 | L18: 1170.851677 | M18: 1433.209442 | N18: 1654.732267 | O18: 849.1314474 | P18: 261.2636947 | R18: 7189.321293 | S18: 1567.179113 | T18: 1187.225909 | U18: 1630.500684 | V18: 1600.116261 | W18: 852.2614836 | X18: 352.0378423 | Z18: 189 | AA18: 64
A19: Petite-Île | B19: 12236 | C19: 2608.545502 | D19: 1985.957971 | E19: 2397.148532 | F19: 2680.553094 | G19: 1860.865706 | H19: 702.9291951 | J19: 6076.336425 | K19: 1382.276751 | L19: 1014.681054 | M19: 1103.201421 | N19: 1333.943392 | O19: 931.8465753 | P19: 310.3872329 | R19: 6159.663575 | S19: 1226.268752 | T19: 971.2769173 | U19: 1293.947111 | V19: 1346.609702 | W19: 929.0191304 | X19: 392.5419622 | Z19: 154 | AA19: 97
A20: La Plaine-des-Palmistes | B20: 6365 | C20: 1735 | D20: 1135 | E20: 1227 | F20: 1253 | G20: 740 | H20: 275 | J20: 3126 | K20: 877 | L20: 608 | M20: 561 | N20: 628 | O20: 350 | P20: 102 | R20: 3239 | S20: 858 | T20: 527 | U20: 666 | V20: 625 | W20: 390 | X20: 173 | Z20: 94 | AA20: 39
A21: Le Port | B21: 34810 | C21: 8477.042412 | D21: 7883.465221 | E21: 6034.785312 | F21: 7042.725532 | G21: 3877.856351 | H21: 1494.125173 | J21: 16956.4727 | K21: 4408.518032 | L21: 4142.368013 | M21: 2822.258001 | N21: 3280.675644 | O21: 1779.10949 | P21: 523.543518 | R21: 17853.5273 | S21: 4068.524379 | T21: 3741.097208 | U21: 3212.527311 | V21: 3762.049888 | W21: 2098.74686 | X21: 970.5816548 | Z21: 594 | AA21: 187
A22: La Possession | B22: 32973 | C22: 8630.42006 | D22: 6507.09989 | E22: 7121.326566 | F22: 6552.012491 | G22: 3220.679914 | H22: 941.4610786 | J22: 15893.11655 | K22: 4291.013984 | L22: 3197.759997 | M22: 3173.271312 | N22: 3242.369488 | O22: 1580.216123 | P22: 408.4856417 | R22: 17079.88345 | S22: 4339.406076 | T22: 3309.339893 | U22: 3948.055254 | V22: 3309.643003 | W22: 1640.463791 | X22: 532.9754369 | Z22: 588 | AA22: 141
A23: Saint-André | B23: 55628 | C23: 14742.59883 | D23: 11776.47114 | E23: 10661.3386 | F23: 11248.07083 | G23: 5343.666906 | H23: 1855.8537 | J23: 26424.61836 | K23: 7417.732338 | L23: 5621.594772 | M23: 4784.251348 | N23: 5421.223459 | O23: 2470.912207 | P23: 708.9042381 | R23: 29203.38164 | S23: 7324.86649 | T23: 6154.876372 | U23: 5877.087248 | V23: 5826.847368 | W23: 2872.754699 | X23: 1146.949462 | Z23: 1012 | AA23: 292
A24: Saint-Benoît | B24: 38142 | C24: 9979.225446 | D24: 8056.172426 | E24: 7046.624581 | F24: 7622.113778 | G24: 3934.313997 | H24: 1503.549773 | J24: 18442.79786 | K24: 5167.243815 | L24: 4036.940051 | M24: 3041.783529 | N24: 3713.640049 | O24: 1884.702516 | P24: 598.4879025 | R24: 19699.20214 | S24: 4811.981631 | T24: 4019.232375 | U24: 4004.841052 | V24: 3908.473729 | W24: 2049.611481 | X24: 905.0618705 | Z24: 698 | AA24: 229
A25: Saint-Denis | B25: 147920 | C25: 32014.76012 | D25: 32595.76887 | E25: 27612.53267 | F25: 30489.17701 | G25: 18012.80684 | H25: 7194.954486 | J25: 68777.24375 | K25: 16206.41505 | L25: 15095.17547 | M25: 12536.66632 | N25: 14220.96365 | O25: 8229.014923 | P25: 2489.008332 | R25: 79142.75625 | S25: 15808.34507 | T25: 17500.5934 | U25: 15075.86635 | V25: 16268.21337 | W25: 9783.791922 | X25: 4705.946154 | Z25: 2461 | AA25: 858
A26: Saint-Joseph | B26: 37629 | C26: 8571.818993 | D26: 6694.047522 | E26: 7190.04512 | F26: 8349.522851 | G26: 4688.859707 | H26: 2134.705807 | J26: 18317.85757 | K26: 4346.357281 | L26: 3376.400158 | M26: 3450.207425 | N26: 4024.738845 | O26: 2267.268693 | P26: 852.8851725 | R26: 19311.14243 | S26: 4225.461712 | T26: 3317.647364 | U26: 3739.837695 | V26: 4324.784006 | W26: 2421.591015 | X26: 1281.820635 | Z26: 539 | AA26: 279
A27: Saint-Leu | B27: 33697 | C27: 7567.570793 | D27: 6196.498455 | E27: 7451.888928 | F27: 7233.072735 | G27: 3794.236065 | H27: 1453.733024 | J27: 16536.84988 | K27: 3810.955602 | L27: 3082.359319 | M27: 3527.950788 | N27: 3661.681766 | O27: 1889.19055 | P27: 564.7118573 | R27: 17160.15012 | S27: 3756.615192 | T27: 3114.139136 | U27: 3923.93814 | V27: 3571.390968 | W27: 1905.045515 | X27: 889.0211663 | Z27: 562 | AA27: 192
A28: Saint-Louis | B28: 53220 | C28: 13543.81984 | D28: 11192.00853 | E28: 10330.83082 | F28: 10557.39489 | G28: 5321.136246 | H28: 2274.809671 | J28: 25775.13903 | K28: 6967.010495 | L28: 5566.256901 | M28: 4714.958203 | N28: 5105.857842 | O28: 2547.80327 | P28: 873.2523147 | R28: 27444.86097 | S28: 6576.809343 | T28: 5625.75163 | U28: 5615.872622 | V28: 5451.537047 | W28: 2773.332975 | X28: 1401.557356 | Z28: 987 | AA28: 356
A29: Saint-Paul | B29: 105482 | C29: 23531.66414 | D29: 19772.62305 | E29: 22433.99248 | F29: 22971.27323 | G29: 12254.75832 | H29: 4517.688785 | J29: 51743.1034 | K29: 12051.89065 | L29: 10111.15301 | M29: 10541.43681 | N29: 11390.65964 | O29: 5907.827128 | P29: 1740.136153 | R29: 53738.8966 | S29: 11479.77349 | T29: 9661.470034 | U29: 11892.55566 | V29: 11580.61359 | W29: 6346.931191 | X29: 2777.552631 | Z29: 1415 | AA29: 571
A30: Saint-Pierre | B30: 84169 | C30: 19425.47973 | D30: 17250.6728 | E30: 17194.1856 | F30: 17188.00915 | G30: 9606.560463 | H30: 3504.092248 | J30: 40447.2373 | K30: 9894.823016 | L30: 8674.377697 | M30: 7843.102093 | N30: 8202.216135 | O30: 4502.060037 | P30: 1330.658326 | R30: 43721.7627 | S30: 9530.656718 | T30: 8576.295102 | U30: 9351.083511 | V30: 8985.793017 | W30: 5104.500425 | X30: 2173.433923 | Z30: 1267 | AA30: 536
A31: Saint-Philippe | B31: 5235 | C31: 1105.797934 | D31: 1049.044804 | E31: 942.4885512 | F31: 1280.244419 | G31: 602.3508897 | H31: 255.0734026 | J31: 2616.29395 | K31: 582.0222571 | L31: 516.7006783 | M31: 453.7656982 | N31: 664.4018041 | O31: 290.6976444 | P31: 108.7058681 | R31: 2618.70605 | S31: 523.7756766 | T31: 532.3441253 | U31: 488.7228529 | V31: 615.842615 | W31: 311.6532453 | X31: 146.3675345 | Z31: 75 | AA31: 44
A32: Sainte-Marie | B32: 33160 | C32: 7838.248163 | D32: 6784.281259 | E32: 6665.629906 | F32: 7276.42745 | G32: 3494.177502 | H32: 1101.23572 | J32: 16238.47803 | K32: 4060.743469 | L32: 3283.04888 | M32: 3171.771336 | N32: 3558.8694 | O32: 1735.483227 | P32: 428.561723 | R32: 16921.52197 | S32: 3777.504694 | T32: 3501.23238 | U32: 3493.85857 | V32: 3717.558051 | W32: 1758.694275 | X32: 672.6739967 | Z32: 545 | AA32: 169
A33: Sainte-Rose | B33: 6520 | C33: 1484.226598 | D33: 1232.283958 | E33: 1130.694184 | F33: 1522.799019 | G33: 802.5592143 | H33: 347.437027 | J33: 3276.238517 | K33: 770.0504867 | L33: 642.0473715 | M33: 541.4734952 | N33: 767.986998 | O33: 400.2637094 | P33: 154.4164564 | R33: 3243.761483 | S33: 714.176111 | T33: 590.2365868 | U33: 589.220689 | V33: 754.8120206 | W33: 402.2955049 | X33: 193.0205705 | Z33: 87 | AA33: 54
A34: Sainte-Suzanne | B34: 23224 | C34: 5725.29076 | D34: 4841.058715 | E34: 4535.941397 | F34: 5041.191829 | G34: 2300.779196 | H34: 779.7381038 | J34: 11190.97406 | K34: 2931.799959 | L34: 2448.36378 | M34: 2020.125834 | N34: 2485.448788 | O34: 1007.585751 | P34: 297.6499524 | R34: 12033.02594 | S34: 2793.490801 | T34: 2392.694934 | U34: 2515.815563 | V34: 2555.743041 | W34: 1293.193445 | X34: 482.0881513 | Z34: 365 | AA34: 100
A35: Salazie | B35: 7400 | C35: 1750.184818 | D35: 1514.863549 | E35: 1440.869357 | F35: 1553.121098 | G35: 798.0369543 | H35: 342.9242234 | J35: 3763.821116 | K35: 894.6752962 | L35: 761.7969984 | M35: 745.94541 | N35: 832.2151866 | O35: 389.358731 | P35: 139.8294941 | R35: 3636.178884 | S35: 855.5095215 | T35: 753.0665508 | U35: 694.923947 | V35: 720.9059119 | W35: 408.6782232 | X35: 203.0947293 | Z35: 102 | AA35: 66
A36: Le Tampon | B36: 77283 | C36: 18035.16651 | D36: 15873.41389 | E36: 14320.9845 | F36: 16090.32479 | G36: 9353.30561 | H36: 3609.804696 | J36: 37198.5251 | K36: 9352.683502 | L36: 7702.131243 | M36: 6558.861144 | N36: 7745.567765 | O36: 4459.808911 | P36: 1379.472532 | R36: 40084.4749 | S36: 8682.483006 | T36: 8171.282646 | U36: 7762.12336 | V36: 8344.757029 | W36: 4893.496699 | X36: 2230.332164 | Z36: 1224 | AA36: 453
A37: Les Trois-Bassins | B37: 7111 | C37: 1579.309369 | D37: 1522.916044 | E37: 1374.942563 | F37: 1551.589573 | G37: 760.2036254 | H37: 322.0388254 | J37: 3542.579553 | K37: 795.1442017 | L37: 798.1461524 | M37: 677.9429034 | N37: 778.386214 | O37: 373.4454986 | P37: 119.5145832 | R37: 3568.420447 | S37: 784.1651674 | T37: 724.7698919 | U37: 696.9996596 | V37: 773.2033589 | W37: 386.7581268 | X37: 202.5242422 | Z37: 96 | AA37: 44
A38: Cilaos | B38: 5403 | C38: 1198.161194 | D38: 928.8420473 | E38: 1061.511405 | F38: 1249.662203 | G38: 649.7580566 | H38: 315.0650951 | J38: 2737.966428 | K38: 627.7968568 | L38: 493.1470678 | M38: 509.9611692 | N38: 693.1511038 | O38: 308.9473491 | P38: 104.9628814 | R38: 2665.033572 | S38: 570.3643368 | T38: 435.6949795 | U38: 551.5502354 | V38: 556.5110989 | W38: 340.8107075 | X38: 210.1022137 | Z38: 69 | AA38: 42
A39: NORD | B39: =B34+B25+B32 -> 204304 | C39: =C34+C25+C32 -> 45578.29904 | D39: 44221.10884 | E39: 38814.10397 | F39: 42806.79629 | G39: 23807.76354 | H39: 9075.928309 | J39: 96206.69584 | K39: 23198.95848 | L39: 20826.58813 | M39: 17728.56349 | N39: 20265.28183 | O39: 10972.0839 | P39: 3215.220007 | R39: 108097.3042 | S39: 22379.34056 | T39: 23394.52071 | U39: 21085.54048 | V39: 22541.51446 | W39: 12835.67964 | X39: 5860.708302 | Z39: 3371 | AA39: =AA34+AA25+AA32 -> 1127
A40: EST | B40: =B16+B20+B23+B24+B33+B35 -> 126777 | C40: =C16+C20+C23+C24+C33+C35 -> 32753.9193 | D40: 26299.0875 | E40: 24007.06634 | F40: 26015.25864 | G40: 12935.4109 | H40: 4766.25732 | J40: 61143.08947 | K40: 16668.90173 | L40: 12898.08665 | M40: 10862.00471 | N40: 12702.49435 | O40: 6166.127697 | P40: 1845.474337 | R40: 65633.91053 | S40: 16085.01757 | T40: 13401.00085 | U40: 13145.06163 | V40: 13312.76429 | W40: 6769.283205 | X40: 2920.782982 | Z40: 2191 | AA40: =AA16+AA20+AA23+AA24+AA33+AA35 -> 760
A41: OUEST | B41: =B21+B22+B27+B29+B37 -> 214073 | C41: =C21+C22+C27+C29+C37 -> 49786.00678 | D41: 41882.60266 | E41: 44416.93585 | F41: 45350.67356 | G41: 23907.73427 | H41: 8729.046885 | J41: 104672.1221 | K41: 25357.52247 | L41: 21331.78649 | M41: 20742.85982 | N41: 22353.77275 | O41: 11529.78879 | P41: 3356.391753 | R41: 109400.8779 | S41: 24428.48431 | T41: 20550.81616 | U41: 23674.07603 | V41: 22996.90081 | W41: 12377.94548 | X41: 5372.655131 | Z41: 3255 | AA41: =AA21+AA22+AA27+AA29+AA37 -> 1135
A42: SUD | B42: =B15+B17+B18+B19+B26+B28+B30+B31+B36+B38 -> 307770 | C42: =C15+C17+C18+C19+C26+C28+C30+C31+C36+C38 -> 71865.32096 | D42: 60544.87232 | E42: 60316.40338 | F42: 64782.42324 | G42: 35864.48825 | H42: 14396.49185 | J42: 149182.4061 | K42: 36972.72923 | L42: 30162.00867 | M42: 27827.19203 | N42: 31407.61465 | O42: 17192.35828 | P42: 5620.503239 | R42: 158587.5939 | S42: 34892.59173 | T42: 30382.86365 | U42: 32489.21135 | V42: 33374.80859 | W42: 18672.12996 | X42: 8775.988614 | Z42: 4728 | AA42: =AA15+AA17+AA18+AA19+AA26+AA28+AA30+AA31+AA36+AA38 -> 1989
A43: LA REUNION | B43: =SUM(B39:B42) -> 852924 | C43: =SUM(C39:C42) -> 199983.5461 | D43: 172947.6713 | E43: 167554.5095 | F43: 178955.1517 | G43: 96515.39697 | H43: 36967.72437 | J43: 411204.3135 | K43: 102198.1119 | L43: 85218.46995 | M43: 77160.62005 | N43: 86729.16358 | O43: 45860.35867 | P43: 14037.58934 | R43: 441719.6865 | S43: 97785.43417 | T43: 87729.20137 | U43: 90393.88949 | V43: 92225.98815 | W43: 50655.03829 | X43: =SUM(X39:X42) -> 22930.13503 | Z43: 13545 | AA43: 5011

Sheet Finance
B9: Sources et année : Selon l'indicatateur, reportez-vous au tableau de la page SOMMAIRE (cliquez sur l'intitulé de chaque colonne)
B10: *Effectifs d'allocataires ou de personnes couvertes "Hors département" non ventilés par commune mais inclus dans le total régional
A14: COMMUNE | B14: Nombre de bénéficiaires de l'APA à domicile | C14: Nombre de bénéficiaires de l'APA en établissement | D14: Nombre de bénéficiaires de l'APA en famille d'accueil | E14: Nombre de bénéficiaires de l'APA | F14: Part de bénéficiaire de l'APA pour 100 habitants de 60 ans et plus | H14: Nombre d'allocataire d'au moins 1 minimum social | I14: Part d'allocataires d'au moins 1 minimum social pour 100 ménages | J14: Nombre de personnes couvertes d'au moins 1 minimum social | K14: Part de personnes couvertes d'au moins 1 minimum social pour 100 habitants | M14: Nombre d'allocataires du RSA | N14: Part d'allocataires du RSA pour 100 habitants de 25 à 59 ans | O14: Nombre de personnes couvertes par le RSA | P14: Part de personnes couvertes par le RSA pour 100 habitants | R14: Nombre d'allocataires du RSO | S14: Part d'allocataires du RSO pour 100 habitants de 55 ans et plus | T14: Nombre de personnes couvertes par le RSO | U14: Part de personnes couvertes par le RSO pour 100 habitants de 55 ans et plus | W14: Nombre d'allocataires de l'AAH | X14: Part d'allocataires de l'AAH pour 100 habitants de 20 à 59 ans | Y14: Nombre de personnes couvertes par l'AAH | Z14: Part de personnes couvertes par l'AAH pour 100 habitants de 20 à 59 ans | AB14: Nombre de bénéficiaire du minimum vieillesse | AC14: Part de bénéficiaires du minimum vieillesse pour 100 habitants de 60 ans et plus
A15: Les Avirons | B15: 211 | C15: 14 | D15: 8 | E15: 233 | F15: =E15/(Cadrage!G15+Cadrage!H15)*100 -> 12.56129168 | H15: 1144 | I15: 26.22408441 | J15: 2219 | K15: =J15/Cadrage!B15*100 -> 19.34443379 | M15: 915 | N15: 16.07677673 | O15: 1868 | P15: 16.28454363 | R15: 43 | S15: 1.669262096 | T15: 46 | U15: 1.785722242 | W15: 189 | X15: 3.05037151 | Y15: 291 | Z15: 4.696603753 | AB15: 310 | AC15: =AB15/(Cadrage!G15+Cadrage!H15)*100 -> 16.71244816
A16: Bras-Panon | B16: 295 | C16: 18 | D16: 7 | E16: 320 | F16: =E16/(Cadrage!G16+Cadrage!H16)*100 -> 18.19912361 | H16: 1818 | I16: 37.66332372 | J16: 3760 | K16: =J16/Cadrage!B16*100 -> 29.5551014 | M16: 1437 | N16: 23.38131865 | O16: 3165 | P16: 24.87816381 | R16: 73 | S16: 2.747799098 | T16: 80 | U16: 3.011286683 | W16: 309 | X16: 4.473596949 | Y16: 475 | Z16: 6.876888514 | AB16: 250 | AC16: =AB16/(Cadrage!G16+Cadrage!H16)*100 -> 14.21806532
A17: Entre-Deux | B17: 113 | C17: 8 | D17: 10 | E17: 131 | F17: =E17/(Cadrage!G17+Cadrage!H17)*100 -> 10.80800964 | H17: 638 | I17: 24.31666069 | J17: 1305 | K17: =J17/Cadrage!B17*100 -> 18.92950392 | M17: 474 | N17: 14.69150838 | O17: 1053 | P17: 15.27415144 | R17: 35 | S17: 2.151627975 | T17: 38 | U17: 2.33605323 | W17: 130 | X17: 3.614085375 | Y17: 200 | Z17: 5.560131347 | AB17: 184 | AC17: =AB17/(Cadrage!G17+Cadrage!H17)*100 -> 15.18071582
A18: L'Étang-Salé | B18: 339 | C18: 26 | D18: 9 | E18: 374 | F18: =E18/(Cadrage!G18+Cadrage!H18)*100 -> 16.15764003 | H18: 1461 | I18: 26.9639932 | J18: 2782 | K18: =J18/Cadrage!B18*100 -> 19.55024596 | M18: 1138 | N18: 16.22498012 | O18: 2317 | P18: 16.28250176 | R18: 74 | S18: 2.266097906 | T18: 82 | U18: 2.511081464 | W18: 252 | X18: 3.27621513 | Y18: 361 | Z18: 4.693308182 | AB18: 328 | AC18: =AB18/(Cadrage!G18+Cadrage!H18)*100 -> 14.17033671
A19: Petite-Île | B19: 258 | C19: 27 | D19: 20 | E19: 305 | F19: =E19/(Cadrage!G19+Cadrage!H19)*100 -> 11.89642744 | H19: 1533 | I19: 31.74223489 | J19: 2996 | K19: =J19/Cadrage!B19*100 -> 24.48512586 | M19: 1138 | N19: 19.7414133 | O19: 2435 | P19: 19.90029421 | R19: 118 | S19: 3.469730328 | T19: 126 | U19: 3.704966283 | W19: 280 | X19: 4.444638113 | Y19: 416 | Z19: 6.60346234 | AB19: 466 | AC19: =AB19/(Cadrage!G19+Cadrage!H19)*100 -> 18.17618094
A20: La Plaine-des-Palmistes | B20: 130 | C20: 11 | D20: 5 | E20: 146 | F20: =E20/(Cadrage!G20+Cadrage!H20)*100 -> 14.38423645 | H20: 714 | I20: 31.875 | J20: 1726 | K20: =J20/Cadrage!B20*100 -> 27.11704635 | M20: 565 | N20: 20.1426025 | O20: 1487 | P20: 23.36213668 | R20: 17 | S20: 1.219512195 | T20: 21 | U20: 1.506456241 | W20: 132 | X20: 4.243008679 | Y20: 193 | Z20: 6.203792993 | AB20: 120 | AC20: =AB20/(Cadrage!G20+Cadrage!H20)*100 -> 11.8226601
A21: Le Port | B21: 561 | C21: 36 | D21: 21 | E21: 618 | F21: =E21/(Cadrage!G21+Cadrage!H21)*100 -> 11.50413488 | H21: 6285 | I21: 51.8799005 | J21: 13648 | K21: =J21/Cadrage!B21*100 -> 39.20712439 | M21: 5189 | N21: 34.31330776 | O21: 11951 | P21: 34.33208848 | R21: 287 | S21: 3.808462314 | T21: 311 | U21: 4.126939999 | W21: 814 | X21: 4.594656989 | Y21: 1175 | Z21: 6.632336563 | AB21: 993 | AC21: =AB21/(Cadrage!G21+Cadrage!H21)*100 -> 18.48479924
A22: La Possession | B22: 254 | C22: 41 | D22: 17 | E22: 312 | F22: =E22/(Cadrage!G22+Cadrage!H22)*100 -> 7.496142022 | H22: 3368 | I22: 27.93695173 | J22: 7490 | K22: =J22/Cadrage!B22*100 -> 22.71555515 | M22: 2686 | N22: 16.90160927 | O22: 6406 | P22: 19.42801686 | R22: 122 | S22: 2.048175981 | T22: 129 | U22: 2.165694275 | W22: 566 | X22: 3.202959629 | Y22: 852 | Z22: 4.821416261 | AB22: 475 | AC22: =AB22/(Cadrage!G22+Cadrage!H22)*100 -> 11.41239571
A23: Saint-André | B23: 968 | C23: 95 | D23: 19 | E23: 1082 | F23: =E23/(Cadrage!G23+Cadrage!H23)*100 -> 15.02877843 | H23: 9363 | I23: 47.56258648 | J23: 22453 | K23: =J23/Cadrage!B23*100 -> 40.36276695 | M23: 7748 | N23: 30.81373276 | O23: 19853 | P23: 35.68886172 | R23: 300 | S23: 2.913673749 | T23: 340 | U23: 3.302163583 | W23: 1321 | X23: 4.548879003 | Y23: 1950 | Z23: 6.714847885 | AB23: 1136 | AC23: =AB23/(Cadrage!G23+Cadrage!H23)*100 -> 15.77882837
A24: Saint-Benoît | B24: 753 | C24: 62 | D24: 22 | E24: 837 | F24: =E24/(Cadrage!G24+Cadrage!H24)*100 -> 15.39207372 | H24: 7048 | I24: 52.17551519 | J24: 15978 | K24: =J24/Cadrage!B24*100 -> 41.89082901 | M24: 5668 | N24: 33.43410521 | O24: 13874 | P24: 36.37460018 | R24: 300 | S24: 3.914919216 | T24: 328 | U24: 4.280311677 | W24: 1086 | X24: 5.595381263 | Y24: 1598 | Z24: 8.233351066 | AB24: 817 | AC24: =AB24/(Cadrage!G24+Cadrage!H24)*100 -> 15.02428223
A25: Saint-Denis | B25: 1980 | C25: 254 | D25: 70 | E25: 2304 | F25: =E25/(Cadrage!G25+Cadrage!H25)*100 -> 9.140042108 | H25: 19414 | I25: 30.8379648 | J25: 41214 | K25: =J25/Cadrage!B25*100 -> 27.86235803 | M25: 15220 | N25: 22.44478578 | O25: 34847 | P25: 23.55800433 | R25: 1031 | S25: 2.982902201 | T25: 1131 | U25: 3.272223462 | W25: 3187 | X25: 4.060766041 | Y25: 4514 | Z25: 5.751583906 | AB25: 2886 | AC25: =AB25/(Cadrage!G25+Cadrage!H25)*100 -> 11.44885483
A26: Saint-Joseph | B26: 695 | C26: 67 | D26: 75 | E26: 837 | F26: =E26/(Cadrage!G26+Cadrage!H26)*100 -> 12.26631441 | H26: 6119 | I26: 42.09634604 | J26: 12756 | K26: =J26/Cadrage!B26*100 -> 33.89938611 | M26: 4662 | N26: 26.63267979 | O26: 10562 | P26: 28.06877674 | R26: 411 | S26: 4.409101708 | T26: 465 | U26: 4.988399742 | W26: 1053 | X26: 5.414015018 | Y26: 1593 | Z26: 8.190432977 | AB26: 1458 | AC26: =AB26/(Cadrage!G26+Cadrage!H26)*100 -> 21.36712833
A27: Saint-Leu | B27: 778 | C27: 37 | D27: 20 | E27: 835 | F27: =E27/(Cadrage!G27+Cadrage!H27)*100 -> 15.91091689 | H27: 5089 | I27: 40.30018272 | J27: 10259 | K27: =J27/Cadrage!B27*100 -> 30.44484672 | M27: 4147 | N27: 24.97095855 | O27: 8828 | P27: 26.19817788 | R27: 177 | S27: 2.422269897 | T27: 199 | U27: 2.723342991 | W27: 775 | X27: 4.201121365 | Y27: 1155 | Z27: 6.261026035 | AB27: 817 | AC27: =AB27/(Cadrage!G27+Cadrage!H27)*100 -> 15.56792706
A28: Saint-Louis | B28: 1257 | C28: 59 | D28: 41 | E28: 1357 | F28: =E28/(Cadrage!G28+Cadrage!H28)*100 -> 17.86479281 | H28: 9276 | I28: 49.7989575 | J28: 21262 | K28: =J28/Cadrage!B28*100 -> 39.95114619 | M28: 7697 | N28: 32.15285528 | O28: 18734 | P28: 35.20105224 | R28: 405 | S28: 3.857893462 | T28: 474 | U28: 4.5151642 | W28: 1187 | X28: 4.344652854 | Y28: 1810 | Z28: 6.624955068 | AB28: 1491 | AC28: =AB28/(Cadrage!G28+Cadrage!H28)*100 -> 19.62889173
A29: Saint-Paul | B29: 1454 | C29: 140 | D29: 35 | E29: 1629 | F29: =E29/(Cadrage!G29+Cadrage!H29)*100 -> 9.712357356 | H29: 13879 | I29: 36.26634676 | J29: 27334 | K29: =J29/Cadrage!B29*100 -> 25.91342599 | M29: 11074 | N29: 21.53720749 | O29: 23397 | P29: 22.18103563 | R29: 708 | S29: 3.019798761 | T29: 780 | U29: 3.326896941 | W29: 2121 | X29: 3.700066289 | Y29: 2938 | Z29: 5.125315774 | AB29: 2286 | AC29: =AB29/(Cadrage!G29+Cadrage!H29)*100 -> 13.62949596
A30: Saint-Pierre | B30: 1161 | C30: 140 | D30: 59 | E30: 1360 | F30: =E30/(Cadrage!G30+Cadrage!H30)*100 -> 10.37324403 | H30: 13062 | I30: 40.0312547 | J30: 26389 | K30: =J30/Cadrage!B30*100 -> 31.35239815 | M30: 10092 | N30: 25.43107654 | O30: 22078 | P30: 26.23055994 | R30: 620 | S30: 3.435938469 | T30: 676 | U30: 3.746281299 | W30: 2372 | X30: 5.267457616 | Y30: 3332 | Z30: 7.399312301 | AB30: 1889 | AC30: =AB30/(Cadrage!G30+Cadrage!H30)*100 -> 14.40813087
A31: Saint-Philippe | B31: 110 | C31: 4 | D31: 9 | E31: 123 | F31: =E31/(Cadrage!G31+Cadrage!H31)*100 -> 14.34528985 | H31: 801 | I31: 41.15648963 | J31: 1587 | K31: =J31/Cadrage!B31*100 -> 30.31518625 | M31: 616 | N31: 24.4237861 | O31: 1332 | P31: 25.44412607 | R31: 53 | S31: 4.362348929 | T31: 60 | U31: 4.938508221 | W31: 133 | X31: 4.677307864 | Y31: 182 | Z31: 6.40052655 | AB31: 202 | AC31: =AB31/(Cadrage!G31+Cadrage!H31)*100 -> 23.5589313
A32: Sainte-Marie | B32: 373 | C32: 32 | D32: 17 | E32: 422 | F32: =E32/(Cadrage!G32+Cadrage!H32)*100 -> 9.183069718 | H32: 3920 | I32: 32.94080383 | J32: 8624 | K32: =J32/Cadrage!B32*100 -> 26.00723764 | M32: 3047 | N32: 18.89386888 | O32: 7318 | P32: 22.06875754 | R32: 200 | S32: 3.055354738 | T32: 213 | U32: 3.253952796 | W32: 680 | X32: 3.731688946 | Y32: 968 | Z32: 5.31216897 | AB32: 496 | AC32: =AB32/(Cadrage!G32+Cadrage!H32)*100 -> 10.79337104
A33: Sainte-Rose | B33: 221 | C33: 10 | D33: 11 | E33: 242 | F33: =E33/(Cadrage!G33+Cadrage!H33)*100 -> 21.04354704 | H33: 1178 | I33: 49.44842342 | J33: 2541 | K33: =J33/Cadrage!B33*100 -> 38.97239264 | M33: 986 | N33: 33.19358701 | O33: 2243 | P33: 34.40184049 | R33: 45 | S33: 2.843119188 | T33: 47 | U33: 2.969480041 | W33: 149 | X33: 4.473000943 | Y33: 232 | Z33: 6.964672609 | AB33: 229 | AC33: =AB33/(Cadrage!G33+Cadrage!H33)*100 -> 19.91310856
A34: Sainte-Suzanne | B34: 373 | C34: 14 | D34: 9 | E34: 396 | F34: =E34/(Cadrage!G34+Cadrage!H34)*100 -> 12.85498381 | H34: 3082 | I34: 37.37400858 | J34: 6734 | K34: =J34/Cadrage!B34*100 -> 28.99586635 | M34: 2462 | N34: 22.52997262 | O34: 5779 | P34: 24.88374096 | R34: 132 | S34: 2.995424861 | T34: 149 | U34: 3.381199274 | W34: 493 | X34: 3.968857366 | Y34: 741 | Z34: 5.965361681 | AB34: 408 | AC34: =AB34/(Cadrage!G34+Cadrage!H34)*100 -> 13.24452877
A35: Salazie | B35: 181 | C35: 17 | D35: 11 | E35: 209 | F35: =E35/(Cadrage!G35+Cadrage!H35)*100 -> 18.31788882 | H35: 1395 | I35: 53.95675622 | J35: 3007 | K35: =J35/Cadrage!B35*100 -> 40.63513514 | M35: 1101 | N35: 31.67650383 | O35: 2574 | P35: 34.78378378 | R35: 74 | S35: 4.776926052 | T35: 82 | U35: 5.29335049 | W35: 221 | X35: 5.572393596 | Y35: 327 | Z35: 8.245125366 | AB35: 254 | AC35: =AB35/(Cadrage!G35+Cadrage!H35)*100 -> 22.26193187
A36: Le Tampon | B36: 1884 | C36: 70 | D36: 96 | E36: 2050 | F36: =E36/(Cadrage!G36+Cadrage!H36)*100 -> 15.81410596 | H36: 10988 | I36: 35.96978071 | J36: 23482 | K36: =J36/Cadrage!B36*100 -> 30.38443125 | M36: 8651 | N36: 24.56479859 | O36: 19948 | P36: 25.8116274 | R36: 554 | S36: 3.146941338 | T36: 604 | U36: 3.430961315 | W36: 1796 | X36: 4.485341197 | Y36: 2686 | Z36: 6.708032547 | AB36: 1893 | AC36: =AB36/(Cadrage!G36+Cadrage!H36)*100 -> 14.60297687
A37: Les Trois-Bassins | B37: 159 | C37: 13 | D37: 5 | E37: 177 | F37: =E37/(Cadrage!G37+Cadrage!H37)*100 -> 16.35493044 | H37: 1014 | I37: 40.85362592 | J37: 2020 | K37: =J37/Cadrage!B37*100 -> 28.40669385 | M37: 822 | N37: 24.00499603 | O37: 1748 | P37: 24.58163409 | R37: 44 | S37: 2.980183077 | T37: 48 | U37: 3.251108812 | W37: 148 | X37: 3.789410486 | Y37: 201 | Z37: 5.146429106 | AB37: 200 | AC37: =AB37/(Cadrage!G37+Cadrage!H37)*100 -> 18.48014739
A38: Cilaos | B38: 189 | C38: 11 | D38: 10 | E38: 210 | F38: =E38/(Cadrage!G38+Cadrage!H38)*100 -> 21.76564686 | H38: 940 | I38: 44.15292856 | J38: 1888 | K38: =J38/Cadrage!B38*100 -> 34.94354988 | M38: 751 | N38: 28.98031194 | O38: 1614 | P38: 29.87229317 | R38: 49 | S38: 3.744951797 | T38: 53 | U38: 4.050662148 | W38: 142 | X38: 4.929584536 | Y38: 207 | Z38: 7.1860845 | AB38: 232 | AC38: =AB38/(Cadrage!G38+Cadrage!H38)*100 -> 24.04585748
A39: NORD | B39: 2726 | C39: 300 | D39: 96 | E39: 3122 | F39: =E39/(Cadrage!G39+Cadrage!H39)*100 -> 9.494067801 | H39: 26416 | I39: 31.78768097 | J39: 56572 | K39: =J39/Cadrage!B39*100 -> 27.69010886 | M39: 20729 | N39: 21.85095018 | O39: 47944 | P39: 23.46699037 | R39: 1363 | S39: 2.994534304 | T39: 1493 | U39: 3.280146527 | W39: 4360 | X39: 3.995353955 | Y39: 6223 | Z39: 5.702543041 | AB39: =AB34+AB25+AB32 -> 3790 | AC39: =AB39/(Cadrage!G39+Cadrage!H39)*100 -> 11.52546988
A40: EST | B40: 2548 | C40: 213 | D40: 75 | E40: 2836 | F40: =E40/(Cadrage!G40+Cadrage!H40)*100 -> 16.02108889 | H40: 21516 | I40: 47.57171782 | J40: 49465 | K40: =J40/Cadrage!B40*100 -> 39.01732964 | M40: 17505 | N40: 30.44637462 | O40: 43196 | P40: 34.07242639 | R40: 809 | S40: 3.217745495 | T40: 898 | U40: 3.571737274 | W40: 3218 | X40: 4.89323554 | Y40: 4775 | Z40: 7.260783003 | AB40: =AB16+AB20+AB23+AB24+AB33+AB35 -> 2806 | AC40: =AB40/(Cadrage!G40+Cadrage!H40)*100 -> 15.85161333
A41: OUEST | B41: 3206 | C41: 267 | D41: 98 | E41: 3571 | F41: =E41/(Cadrage!G41+Cadrage!H41)*100 -> 10.94164275 | H41: 29635 | I41: 38.21423236 | J41: 60751 | K41: =J41/Cadrage!B41*100 -> 28.37863719 | M41: 23918 | N41: 23.34284094 | O41: 52330 | P41: 24.44493234 | R41: 1338 | S41: 2.92642885 | T41: 1467 | U41: 3.208573335 | W41: 4424 | X41: 3.844824821 | Y41: 6321 | Z41: 5.493475971 | AB41: =AB21+AB22+AB27+AB29+AB37 -> 4771 | AC41: =AB41/(Cadrage!G41+Cadrage!H41)*100 -> 14.61847594
A42: SUD | B42: 6217 | C42: 426 | D42: 337 | E42: 6980 | F42: =E42/(Cadrage!G42+Cadrage!H42)*100 -> 13.88751271 | H42: 45962 | I42: 39.06700727 | J42: 96666 | K42: =J42/Cadrage!B42*100 -> 31.40851935 | M42: 36134 | N42: 25.2413266 | O42: 81941 | P42: 26.62410241 | R42: 2362 | S42: 3.43010133 | T42: 2624 | U42: 3.810578277 | W42: 7534 | X42: 4.669299225 | Y42: 11078 | Z42: 6.865741547 | AB42: =AB15+AB17+AB18+AB19+AB26+AB28+AB30+AB31+AB36+AB38 -> 8453 | AC42: =AB42/(Cadrage!G42+Cadrage!H42)*100 -> 16.81821561
A43: LA REUNION | B43: 14697 | C43: 1206 | D43: 606 | E43: 16509 | F43: =E43/(Cadrage!G43+Cadrage!H43)*100 -> 12.36785583 | H43: 123601 | I43: 38.20402775 | J43: 263622 | K43: =J43/Cadrage!B43*100 -> 30.90802932 | M43: 98355 | N43: 24.71367408 | O43: 225569 | P43: 26.44655327 | R43: 5873 | S43: 3.170476733 | T43: 6483 | U43: 3.49977876 | W43: 19538 | X43: 4.329207641 | Y43: 28401 | Z43: 6.293061021 | AB43: =SUM(AB39:AB42) -> 19820 | AC43: =AB43/(Cadrage!G43+Cadrage!H43)*100 -> 14.84831925
H44: 72* | J44: 168* | M44: 69* | O44: 158* | R44: <5* | T44: <5* | W44: <5* | Y44: <5*

Sheet Chômage
B9: Sources et année : Selon l'indicatateur, reportez-vous au tableau de la page SOMMAIRE (cliquez sur l'intitulé de chaque colonne)
B10: NB : Les données présentées dans ce tableau sont arrondies à la dizaine. Pour cette raison, la somme des valeurs d'une colonne peut légèrement différer du total affiché
B11: *Effectifs d'allocataires ou de personnes couvertes "Hors département" non ventilés par commune mais inclus dans le total régional
A14: COMMUNE | B14: Nombre de demandeurs d'emploi (cat. A B) | C14: Nombre de demandeurs d’emploi (cat. A B) de moins de 25 ans | D14: Nombre de demandeurs d’emploi (cat. A B) de 25 à 49 ans | E14: Nombre de demandeurs d’emploi (cat. A B) de 50 ans ou plus | G14: Nombre de demandeurs d'emploi (cat. A B) Hommes | H14: Nombre de demandeurs d’emploi (cat. A B) de moins de 25 ans Hommes | I14: Nombre de demandeurs d’emploi (cat. A B) de 25 à 49 ans Hommes | J14: Nombre de demandeurs d’emploi (cat. A B) de 50 ans ou plus Hommes | L14: Nombre de demandeurs d'emploi (cat. A B) Femmes | M14: Nombre de demandeurs d’emploi (cat. A B) de moins de 25 ans Femmes | N14: Nombre de demandeurs d’emploi (cat. A B) de 25 à 49 ans Femmes | O14: Nombre de demandeurs d’emploi (cat. A B) de 50 ans ou plus Femmes
A15: Les Avirons | B15: 1770 | C15: 190 | D15: 1070 | E15: 510 | G15: 810 | H15: 90 | I15: 490 | J15: 230 | L15: 960 | M15: 100 | N15: 580 | O15: 280
A16: Bras-Panon | B16: 1990 | C16: 230 | D16: 1180 | E16: 590 | G16: 990 | H16: 100 | I16: 600 | J16: 290 | L16: 1010 | M16: 130 | N16: 580 | O16: 300
A17: Entre-Deux | B17: 1120 | C17: 160 | D17: 630 | E17: 340 | G17: 510 | H17: 80 | I17: 270 | J17: 160 | L17: 620 | M17: 70 | N17: 360 | O17: 190
A18: L'Étang-Salé | B18: 2490 | C18: 270 | D18: 1460 | E18: 760 | G18: 1120 | H18: 120 | I18: 650 | J18: 350 | L18: 1360 | M18: 150 | N18: 810 | O18: 400
A19: Petite-Île | B19: 2100 | C19: 190 | D19: 1190 | E19: 720 | G19: 1010 | H19: 90 | I19: 550 | J19: 370 | L19: 1100 | M19: 100 | N19: 640 | O19: 360
A20: La Plaine-des-Palmistes | B20: 920 | C20: 140 | D20: 550 | E20: 240 | G20: 440 | H20: 70 | I20: 260 | J20: 110 | L20: 490 | M20: 70 | N20: 290 | O20: 130
A21: Le Port | B21: 7090 | C21: 950 | D21: 4040 | E21: 2100 | G21: 3350 | H21: 440 | I21: 1910 | J21: 1000 | L21: 3750 | M21: 510 | N21: 2130 | O21: 1110
A22: La Possession | B22: 4910 | C22: 670 | D22: 3020 | E22: 1220 | G22: 2210 | H22: 310 | I22: 1300 | J22: 600 | L22: 2710 | M22: 370 | N22: 1720 | O22: 620
A23: Saint-André | B23: 9160 | C23: 1270 | D23: 5440 | E23: 2450 | G23: 4610 | H23: 660 | I23: 2680 | J23: 1270 | L23: 4570 | M23: 610 | N23: 2770 | O23: 1190
A24: Saint-Benoît | B24: 5750 | C24: 820 | D24: 3420 | E24: 1510 | G24: 2800 | H24: 370 | I24: 1680 | J24: 750 | L24: 2950 | M24: 450 | N24: 1740 | O24: 760
A25: Saint-Denis | B25: 23410 | C25: 2890 | D25: 14080 | E25: 6440 | G25: 11500 | H25: 1420 | I25: 6850 | J25: 3230 | L25: 11910 | M25: 1470 | N25: 7230 | O25: 3210
A26: Saint-Joseph | B26: 8170 | C26: 860 | D26: 4730 | E26: 2590 | G26: 3910 | H26: 410 | I26: 2220 | J26: 1280 | L26: 4260 | M26: 450 | N26: 2500 | O26: 1310
A27: Saint-Leu | B27: 7090 | C27: 780 | D27: 4310 | E27: 2000 | G27: 3460 | H27: 380 | I27: 2100 | J27: 980 | L27: 3620 | M27: 390 | N27: 2210 | O27: 1020
A28: Saint-Louis | B28: 11020 | C28: 1460 | D28: 6530 | E28: 3030 | G28: 5130 | H28: 680 | I28: 3000 | J28: 1450 | L28: 5900 | M28: 780 | N28: 3530 | O28: 1590
A29: Saint-Paul | B29: 17620 | C29: 2160 | D29: 10740 | E29: 4710 | G29: 8810 | H29: 1010 | I29: 5320 | J29: 2480 | L29: 8820 | M29: 1160 | N29: 5430 | O29: 2230
A30: Saint-Pierre | B30: 16230 | C30: 1870 | D30: 9630 | E30: 4720 | G30: 7690 | H30: 880 | I30: 4490 | J30: 2320 | L30: 8550 | M30: 1000 | N30: 5140 | O30: 2410
A31: Saint-Philippe | B31: 1210 | C31: 140 | D31: 660 | E31: 420 | G31: 550 | H31: 80 | I31: 280 | J31: 190 | L31: 660 | M31: 60 | N31: 370 | O31: 230
A32: Sainte-Marie | B32: 5060 | C32: 690 | D32: 3150 | E32: 1220 | G32: 2380 | H32: 340 | I32: 1430 | J32: 610 | L32: 2670 | M32: 350 | N32: 1710 | O32: 610
A33: Sainte-Rose | B33: 1230 | C33: 170 | D33: 680 | E33: 390 | G33: 610 | H33: 80 | I33: 330 | J33: 200 | L33: 610 | M33: 80 | N33: 350 | O33: 180
A34: Sainte-Suzanne | B34: 3540 | C34: 440 | D34: 2140 | E34: 960 | G34: 1730 | H34: 200 | I34: 1030 | J34: 500 | L34: 1800 | M34: 240 | N34: 1110 | O34: 450
A35: Salazie | B35: 1510 | C35: 190 | D35: 890 | E35: 430 | G35: 770 | H35: 90 | I35: 460 | J35: 220 | L35: 740 | M35: 100 | N35: 430 | O35: 210
A36: Le Tampon | B36: 14650 | C36: 1820 | D36: 8570 | E36: 4270 | G36: 6740 | H36: 820 | I36: 3860 | J36: 2060 | L36: 7930 | M36: 1010 | N36: 4710 | O36: 2210
A37: Les Trois-Bassins | B37: 1450 | C37: 190 | D37: 830 | E37: 440 | G37: 680 | H37: 80 | I37: 390 | J37: 210 | L37: 760 | M37: 110 | N37: 430 | O37: 220
A38: Cilaos | B38: 1440 | C38: 170 | D38: 830 | E38: 440 | G38: 760 | H38: 90 | I38: 440 | J38: 230 | L38: 680 | M38: 80 | N38: 400 | O38: 200
A39: NORD | B39: =B34+B25+B32 -> 32010 | C39: =C34+C25+C32 -> 4020 | D39: =D34+D25+D32 -> 19370 | E39: =E34+E25+E32 -> 8620 | G39: =G34+G25+G32 -> 15610 | H39: =H34+H25+H32 -> 1960 | I39: =I34+I25+I32 -> 9310 | J39: =J34+J25+J32 -> 4340 | L39: =L34+L25+L32 -> 16380 | M39: =M34+M25+M32 -> 2060 | N39: =N34+N25+N32 -> 10050 | O39: =O34+O25+O32 -> 4270
A40: EST | B40: =B16+B20+B23+B24+B33+B35 -> 20560 | C40: =C16+C20+C23+C24+C33+C35 -> 2820 | D40: =D16+D20+D23+D24+D33+D35 -> 12160 | E40: =E16+E20+E23+E24+E33+E35 -> 5610 | G40: =G16+G20+G23+G24+G33+G35 -> 10220 | H40: =H16+H20+H23+H24+H33+H35 -> 1370 | I40: =I16+I20+I23+I24+I33+I35 -> 6010 | J40: =J16+J20+J23+J24+J33+J35 -> 2840 | L40: =L16+L20+L23+L24+L33+L35 -> 10370 | M40: =M16+M20+M23+M24+M33+M35 -> 1440 | N40: =N16+N20+N23+N24+N33+N35 -> 6160 | O40: =O16+O20+O23+O24+O33+O35 -> 2770
A41: OUEST | B41: =B21+B22+B27+B29+B37 -> 38160 | C41: =C21+C22+C27+C29+C37 -> 4750 | D41: =D21+D22+D27+D29+D37 -> 22940 | E41: =E21+E22+E27+E29+E37 -> 10470 | G41: =G21+G22+G27+G29+G37 -> 18510 | H41: =H21+H22+H27+H29+H37 -> 2220 | I41: =I21+I22+I27+I29+I37 -> 11020 | J41: =J21+J22+J27+J29+J37 -> 5270 | L41: =L21+L22+L27+L29+L37 -> 19660 | M41: =M21+M22+M27+M29+M37 -> 2540 | N41: =N21+N22+N27+N29+N37 -> 11920 | O41: =O21+O22+O27+O29+O37 -> 5200
A42: SUD | B42: =B15+B17+B18+B19+B26+B28+B30+B31+B36+B38 -> 60200 | C42: =C15+C17+C18+C19+C26+C28+C30+C31+C36+C38 -> 7130 | D42: =D15+D17+D18+D19+D26+D28+D30+D31+D36+D38 -> 35300 | E42: =E15+E17+E18+E19+E26+E28+E30+E31+E36+E38 -> 17800 | G42: =G15+G17+G18+G19+G26+G28+G30+G31+G36+G38 -> 28230 | H42: =H15+H17+H18+H19+H26+H28+H30+H31+H36+H38 -> 3340 | I42: =I15+I17+I18+I19+I26+I28+I30+I31+I36+I38 -> 16250 | J42: =J15+J17+J18+J19+J26+J28+J30+J31+J36+J38 -> 8640 | L42: =L15+L17+L18+L19+L26+L28+L30+L31+L36+L38 -> 32020 | M42: =M15+M17+M18+M19+M26+M28+M30+M31+M36+M38 -> 3800 | N42: =N15+N17+N18+N19+N26+N28+N30+N31+N36+N38 -> 19040 | O42: =O15+O17+O18+O19+O26+O28+O30+O31+O36+O38 -> 9180
A43: LA REUNION | B43: 151000 | C43: 18710 | D43: 89790 | E43: 42500 | G43: 72550 | H43: 8880 | I43: 42590 | J43: 21080 | L43: 78450 | M43: 9830 | N43: 47200 | O43: 21420
B44: 60* | C44: 10* | D44: 40* | E44: 10* | G44: 40* | H44: 10* | I44: 20* | J44: 10* | L44: 30* | M44: 10* | N44: 20*

Sheet Formation
B9: Sources et année : Selon l'indicatateur, reportez-vous au tableau de la page SOMMAIRE (cliquez sur l'intitulé de chaque colonne)
B10: *Effectifs d'allocataires ou de personnes couvertes "Hors département" non ventilés par commune mais inclus dans le total régional
A14: COMMUNE | B14: Nombre d'enfants bénéficiaires de l'Allocation de Rentrée Scolaire (ARS) | C14: Nombre de personnes de 15 ans ou plus non scolarisés ne possédant aucun diplôme ou au plus BEPC, brevet des collèges, DNB | D14: Part des 15 ans ou plus non scolarisés ne possédant aucun diplôme ou au plus BEPC, brevet des collèges, DNB | E14: Effectif des 15-34 ans non scolarisés ne possédant aucun diplôme ou au plus BEPC, brevet des collèges, DNB | F14: Proportion des 15-34 ans non scolarisés ne possédant aucun diplôme ou au plus BEPC, brevet des collèges, DNB
A15: Les Avirons | B15: 1298 | C15: 3208.49122 | D15: =C15/(SUM(Cadrage!D15:H15))*100 -> 36.00414733 | E15: 387.4701845 | F15: 14.83537234
A16: Bras-Panon | B16: 2009 | C16: 3645.24582 | D16: =C16/(SUM(Cadrage!D16:H16))*100 -> 37.73813459 | E16: 442.0752025 | F16: 13.0891734
A17: Entre-Deux | B17: 856 | C17: 2508.347198 | D17: =C17/(SUM(Cadrage!D17:H17))*100 -> 47.1876209 | E17: 400.1185667 | F17: 23.53920719
A18: L'Étang-Salé | B18: 1648 | C18: 3961.612447 | D18: =C18/(SUM(Cadrage!D18:H18))*100 -> 36.04306478 | E18: 515.1104993 | F18: 16.00306691
A19: Petite-Île | B19: 1615 | C19: 4475.563736 | D19: =C19/(SUM(Cadrage!D19:H19))*100 -> 46.48750859 | E19: 367.8982545 | F19: 13.39366243
A20: La Plaine-des-Palmistes | B20: 1258 | C20: 1800 | D20: =C20/(SUM(Cadrage!D20:H20))*100 -> 38.87688985 | E20: 260 | F20: 17.10526316
A21: Le Port | B21: 6368 | C21: 13352.52792 | D21: =C21/(SUM(Cadrage!D21:H21))*100 -> 50.70652573 | E21: 2400.209215 | F21: 27.03787002
A22: La Possession | B22: 4750 | C22: 7514.345958 | D22: =C22/(SUM(Cadrage!D22:H22))*100 -> 30.8691436 | E22: 1230.49843 | F22: 12.58227216
A23: Saint-André | B23: 10786 | C23: 17177.60574 | D23: =C23/(SUM(Cadrage!D23:H23))*100 -> 42.01403251 | E23: 2873.288836 | F23: 19.03997828
A24: Saint-Benoît | B24: 7101 | C24: 12582.88156 | D24: =C24/(SUM(Cadrage!D24:H24))*100 -> 44.6791261 | E24: 2173.498442 | F24: 21.21512218
A25: Saint-Denis | B25: 20542 | C25: 40768.41158 | D25: =C25/(SUM(Cadrage!D25:H25))*100 -> 35.17391588 | E25: 6024.764877 | F25: 14.41411987
A26: Saint-Joseph | B26: 5835 | C26: 14140.12138 | D26: =C26/(SUM(Cadrage!D26:H26))*100 -> 48.66308737 | E26: 1690.84373 | F26: 19.14005158
A27: Saint-Leu | B27: 5068 | C27: 10668.52446 | D27: =C27/(SUM(Cadrage!D27:H27))*100 -> 40.82953507 | E27: 1576.211861 | F27: 18.86214302
A28: Saint-Louis | B28: 10372 | C28: 18277.30538 | D28: =C28/(SUM(Cadrage!D28:H28))*100 -> 46.06619211 | E28: 2960.280543 | F28: 20.83481446
A29: Saint-Paul | B29: 14106 | C29: 33466.48358 | D29: =C29/(SUM(Cadrage!D29:H29))*100 -> 40.83751852 | E29: 5438.684396 | F29: 20.71415507
A30: Saint-Pierre | B30: 12502 | C30: 25735.05484 | D30: =C30/(SUM(Cadrage!D30:H30))*100 -> 39.74923628 | E30: 4104.865935 | F30: 18.16033997
A31: Saint-Philippe | B31: 799 | C31: 2055.032713 | D31: =C31/(SUM(Cadrage!D31:H31))*100 -> 49.76827678 | E31: 277.4431895 | F31: 20.64036412
A32: Sainte-Marie | B32: 4867 | C32: 9376.910634 | D32: =C32/(SUM(Cadrage!D32:H32))*100 -> 37.0310502 | E32: 1484.188757 | F32: 16.63950751
A33: Sainte-Rose | B33: 1123 | C33: 2591.555134 | D33: =C33/(SUM(Cadrage!D33:H33))*100 -> 51.46290206 | E33: 386.0411411 | F33: 24.56367162
A34: Sainte-Suzanne | B34: 3580 | C34: 6985.720033 | D34: =C34/(SUM(Cadrage!D34:H34))*100 -> 39.92134469 | E34: 1003.316258 | F34: 16.16708545
A35: Salazie | B35: 1284 | C35: 3298.472917 | D35: =C35/(SUM(Cadrage!D35:H35))*100 -> 58.38196137 | E35: 649.9312703 | F35: 32.77690395
A36: Le Tampon | B36: 11627 | C36: 24754.57143 | D36: =C36/(SUM(Cadrage!D36:H36))*100 -> 41.78139516 | E36: 3681.376494 | F36: 17.96484989
A37: Les Trois-Bassins | B37: 1069 | C37: 2542.534714 | D37: =C37/(SUM(Cadrage!D37:H37))*100 -> 45.96306778 | E37: 411.0789151 | F37: 21.27331822
A38: Cilaos | B38: 870 | C38: 2473.735675 | D38: =C38/(SUM(Cadrage!D38:H38))*100 -> 58.83068982 | E38: 423.8123892 | F38: 33.99470072
A39: NORD | B39: =B34+B25+B32 -> 28989 | C39: 57131.04224 | D39: =C39/(SUM(Cadrage!D39:H39))*100 -> 35.99356746 | E39: =E34+E25+E32 -> 8512.269891 | F39: 14.95394292
A40: EST | B40: =B16+B20+B23+B24+B33+B35 -> 23561 | C40: 41095.76117 | D40: =C40/(SUM(Cadrage!D40:H40))*100 -> 43.70816278 | E40: =E16+E20+E23+E24+E33+E35 -> 6784.834892 | F40: 20.08074658
A41: OUEST | B41: =B21+B22+B27+B29+B37 -> 31361 | C41: 67544.41663 | D41: =C41/(SUM(Cadrage!D41:H41))*100 -> 41.11367267 | E41: =E21+E22+E27+E29+E37 -> 11056.68282 | F41: 20.02965345
A42: SUD | B42: =B15+B17+B18+B19+B26+B28+B30+B31+B36+B38 -> 47422 | C42: 101589.836 | D42: =C42/(SUM(Cadrage!D42:H42))*100 -> 43.06393431 | E42: =E15+E17+E18+E19+E26+E28+E30+E31+E36+E38 -> 14809.21979 | F42: 18.74440607
A43: LA REUNION | B43: =SUM(B39:B42)+56 -> 131389 | C43: 267361.0561 | D43: =C43/(SUM(Cadrage!D43:H43))*100 -> 40.94723408 | E43: =SUM(E39:E42) -> 41163.00739 | F43: 18.3
B44: 56*

Sheet Logement
B10: Sources et année : Selon l'indicatateur, reportez-vous au tableau de la page SOMMAIRE (cliquez sur l'intitulé de chaque colonne)
B11: *Effectifs d'allocataires ou de personnes couvertes "Hors département" non ventilés par commune mais inclus dans le total régional
A14: COMMUNE | B14: Nombre d'allocataires d'aides au logement | C14: Part d'allocataires d'aides au logement pour 100 ménages | D14: Nombre de logements sociaux | E14: Part de logements sociaux pour 100 habitations principales | F14: Nombre de demandeurs actifs de logements sociaux | G14: Part de demandeurs de logements sociaux pour 100 ménages | H14: Part de demandeurs de logement sociaux pour 100 logements sociaux existants | J14: ménage | K14: hab principale
A15: Les Avirons | B15: 1115 | C15: =B15/J15*100 -> 25.55931304 | D15: 564 | E15: =D15/K15*100 -> 12.7027027 | F15: 217 | G15: =F15/J15*100 -> 4.974323704 | H15: =F15/D15*100 -> 38.4751773 | J15: 4362.402066 | K15: 4440
A16: Bras-Panon | B16: 1837 | C16: =B16/J16*100 -> 38.05694482 | D16: 1618 | E16: =D16/K16*100 -> 33.77165519 | F16: 422 | G16: =F16/J16*100 -> 8.742531689 | H16: =F16/D16*100 -> 26.0815822 | J16: 4826.977071 | K16: 4791
A17: Entre-Deux | B17: 707 | C17: 26.94651897 | D17: 216 | E17: 8.30449827 | F17: 116 | G17: 4.421211034 | H17: 53.7037037 | J17: 2623.715518 | K17: 2601
A18: L'Étang-Salé | B18: 1100 | C18: 20.30143225 | D18: 811 | E18: 14.86164559 | F18: 451 | G18: 8.323587223 | H18: 55.61035758 | J18: 5418.336925 | K18: 5457
A19: Petite-Île | B19: 1268 | C19: 26.2551558 | D19: 199 | E19: 4 | F19: 174 | G19: 3.602836837 | H19: 87.43718593 | J19: 4829.527616 | K19: 4975
A20: La Plaine-des-Palmistes | B20: 826 | C20: 36.875 | D20: 365 | E20: 14.95288816 | F20: 184 | G20: 8.214285714 | H20: 50.4109589 | J20: 2240 | K20: 2441
A21: Le Port | B21: 6390 | C21: 52.74662915 | D21: 7127 | E21: 59.10598773 | F21: 1688 | G21: 13.93369484 | H21: 23.68457977 | J21: 12114.51822 | K21: 12058
A22: La Possession | B22: 3782 | C22: 31.37100696 | D22: 3707 | E22: 29.55668952 | F22: 1894 | G22: 15.71038794 | H22: 51.09252765 | J22: 12055.71758 | K22: 12542
A23: Saint-André | B23: 8760 | C23: 44.49944009 | D23: 4930 | E23: 24.5934351 | F23: 1885 | G23: 9.575507371 | H23: 38.23529412 | J23: 19685.64095 | K23: 20046
A24: Saint-Benoît | B24: 5934 | C24: 43.92870419 | D24: 4637 | E24: 33.10487613 | F24: 1171 | G24: 8.668775296 | H24: 25.25339659 | J24: 13508.25186 | K24: 14007
A25: Saint-Denis | B25: 27588 | C25: 43.82186942 | D25: 22556 | E25: 36.44530619 | F25: 6958 | G25: 11.05236217 | H25: 30.84766803 | J25: 62954.86789 | K25: 61890
A26: Saint-Joseph | B26: 5170 | C26: 35.56759422 | D26: 1869 | E26: 12.63264616 | F26: 1090 | G26: 7.498777118 | H26: 58.3199572 | J26: 14535.70339 | K26: 14795
A27: Saint-Leu | B27: 3194 | C27: 25.29353186 | D27: 1424 | E27: 10.7927846 | F27: 910 | G27: 7.206360047 | H27: 63.90449438 | J27: 12627.73431 | K27: 13194
A28: Saint-Louis | B28: 6995 | C28: 37.55322421 | D28: 3656 | E28: 19.18052568 | F28: 1149 | G28: 6.168499587 | H28: 31.42778993 | J28: 18626.89595 | K28: 19061
A29: Saint-Paul | B29: 8496 | C29: 22.20036617 | D29: 5703 | E29: 14.59986688 | F29: 3764 | G29: 9.835472959 | H29: 66.00035069 | J29: 38269.63905 | K29: 39062
A30: Saint-Pierre | B30: 11739 | C30: 35.97664208 | D30: 6752 | E30: 20.04572039 | F30: 3015 | G30: 9.240103576 | H30: 44.65343602 | J30: 32629.50437 | K30: 33683
A31: Saint-Philippe | B31: 600 | C31: 30.82883119 | D31: 148 | E31: 7.863974495 | F31: 94 | G31: 4.829850219 | H31: 63.51351351 | J31: 1946.230126 | K31: 1882
A32: Sainte-Marie | B32: 3721 | C32: 31.26855384 | D32: 2934 | E32: 23.31902718 | F32: 1215 | G32: 10.20996853 | H32: 41.41104294 | J32: 11900.13462 | K32: 12582
A33: Sainte-Rose | B33: 763 | C33: 32.02813843 | D33: 312 | E33: 12.88191577 | F33: 113 | G33: 4.743354708 | H33: 36.21794872 | J33: 2382.2802 | K33: 2422
A34: Sainte-Suzanne | B34: 2627 | C34: 31.85643107 | D34: 1827 | E34: 22.16157205 | F34: 674 | G34: 8.17329065 | H34: 36.89107827 | J34: 8246.372591 | K34: 8244
A35: Salazie | B35: 601 | C35: 23.24588565 | D35: 70 | E35: 2.765705255 | F35: 43 | G35: 1.663183167 | H35: 61.42857143 | J35: 2585.403753 | K35: 2531
A36: Le Tampon | B36: 11738 | C36: 38.42494412 | D36: 4125 | E36: 13.64899742 | F36: 2161 | G36: 7.074144167 | H36: 52.38787879 | J36: 30547.86486 | K36: 30222
A37: Les Trois-Bassins | B37: 486 | C37: 19.58073195 | D37: 177 | E37: 7.001582278 | F37: 161 | G37: 6.486621078 | H37: 90.96045198 | J37: 2482.031832 | K37: 2528
A38: Cilaos | B38: 471 | C38: 22.12343548 | D38: 62 | E38: 2.927289896 | F38: 12 | G38: 0.5636544071 | H38: 19.35483871 | J38: 2128.964104 | K38: 2118
A39: NORD | B39: =B34+B25+B32 -> 33936 | C39: 40.83686938 | D39: =D34+D25+D32 -> 27317 | E39: 33.02504957 | F39: =F34+F25+F32 -> 8847 | G39: 10.64603322 | H39: 32.38642604 | J39: =J34+J25+J32 -> 83101.3751 | K39: =K34+K25+K32 -> 82716
A40: EST | B40: =B16+B20+B23+B24+B33+B35 -> 18721 | C40: 41.39199337 | D40: =D16+D20+D23+D24+D33+D35 -> 11932 | E40: 25.80561443 | F40: =F16+F20+F23+F24+F33+F35 -> 3818 | G40: 8.44156993 | H40: 31.9979886 | J40: =J16+J20+J23+J24+J33+J35 -> 45228.55383 | K40: =K16+K20+K23+K24+K33+K35 -> 46238
A41: OUEST | B41: =B21+B22+B27+B29+B37 -> 22348 | C41: 28.81767048 | D41: =D21+D22+D27+D29+D37 -> 18138 | E41: 22.84843293 | F41: =F21+F22+F27+F29+F37 -> 8417 | G41: 10.85369306 | H41: 46.40533686 | J41: =J21+J22+J27+J29+J37 -> 77549.64099 | K41: =K21+K22+K27+K29+K37 -> 79384
A42: SUD | B42: =B15+B17+B18+B19+B26+B28+B30+B31+B36+B38 -> 40903 | C42: 34.76693352 | D42: =D15+D17+D18+D19+D26+D28+D30+D31+D36+D38 -> 18402 | E42: 15.43351729 | F42: =F15+F17+F18+F19+F26+F28+F30+F31+F36+F38 -> 8479 | G42: 7.207022206 | H42: 46.07651342 | J42: =J15+J17+J18+J19+J26+J28+J30+J31+J36+J38 -> 117649.1449 | K42: =K15+K17+K18+K19+K26+K28+K30+K31+K36+K38 -> 119234
A43: LA REUNION | B43: =SUM(B39:B42)+37 -> 115945 | C43: =B43/J43*100 -> 35.83762265 | D43: =SUM(D39:D42) -> 75789 | E43: 23.13659287 | F43: =SUM(F39:F42) -> 29561 | G43: 9.137056046 | H43: 39.004341 | J43: =SUM(J39:J42) -> 323528.7148 | K43: =SUM(K39:K42) -> 327572
B44: 37*

Sheet Santé générale
B10: Sources et année : Selon l'indicatateur, reportez-vous au tableau de la page SOMMAIRE (cliquez sur l'intitulé de chaque colonne)
A14: COMMUNE | B14: Nombre de naissances de mères mineures | C14: Taux de naissances de mères mineures pour 100 naissances vivantes | D14: Nombre de décès d'enfants de moins de un an | E14: Taux de mortalité infantile (pour 1 000 naissances vivantes)
A15: Les Avirons | B15: <5 | C15: nc | D15: 0 | E15: 0
A16: Bras-Panon | B16: <5 | C16: nc | D16: 0 | E16: 0
A17: Entre-Deux | B17: <5 | C17: nc | D17: 0 | E17: 0
A18: L'Étang-Salé | B18: <5 | C18: nc | D18: 0 | E18: 0
A19: Petite-Île | B19: <5 | C19: nc | D19: 0 | E19: 0
A20: La Plaine-des-Palmistes | B20: 7 | C20: 0.07446808511 | D20: <5 | E20: nc
A21: Le Port | B21: 17 | C21: 0.02861952862 | D21: <5 | E21: nc
A22: La Possession | B22: 9 | C22: 0.01530612245 | D22: <5 | E22: nc
A23: Saint-André | B23: 30 | C23: 0.02964426877 | D23: 5 | E23: 4.940711462
A24: Saint-Benoît | B24: 25 | C24: 0.03581661891 | D24: 6 | E24: 8.595988539
A25: Saint-Denis | B25: 49 | C25: 0.01991060544 | D25: 19 | E25: 7.720438846
A26: Saint-Joseph | B26: 11 | C26: 0.02040816327 | D26: <5 | E26: nc
A27: Saint-Leu | B27: 8 | C27: 0.01423487544 | D27: <5 | E27: nc
A28: Saint-Louis | B28: 25 | C28: 0.02532928065 | D28: 6 | E28: 6.079027356
A29: Saint-Paul | B29: 24 | C29: 0.01696113074 | D29: 5 | E29: 3.533568905
A30: Saint-Pierre | B30: 29 | C30: 0.0228887135 | D30: 9 | E30: 7.103393844
A31: Saint-Philippe | B31: 0 | C31: 0 | D31: <5 | E31: nc
A32: Sainte-Marie | B32: 7 | C32: 0.0128440367 | D32: <5 | E32: nc
A33: Sainte-Rose | B33: <5 | C33: nc | D33: 0 | E33: 0
A34: Sainte-Suzanne | B34: 9 | C34: 0.02465753425 | D34: 6 | E34: 16.43835616
A35: Salazie | B35: <5 | C35: nc | D35: <5 | E35: nc
A36: Le Tampon | B36: 33 | C36: 0.02696078431 | D36: 6 | E36: 4.901960784
A37: Les Trois-Bassins | B37: <5 | C37: nc | D37: 0 | E37: 0
A38: Cilaos | B38: 5 | C38: 0.07246376812 | D38: 0 | E38: 0
A39: NORD | B39: 65 | C39: 0.01928211213 | D39: 29 | E39: 8.60278849
A40: EST | B40: 70 | C40: 0.03194888179 | D40: 14 | E40: 6.389776358
A41: OUEST | B41: 62 | C41: 0.01904761905 | D41: 15 | E41: 4.608294931
A42: SUD | B42: 112 | C42: 0.02368866328 | D42: 24 | E42: 5.076142132
A43: LA REUNION | B43: 309 | C43: 0.02281284607 | D43: 82 | E43: 6.053894426

Sheet Accès aux soins
B10: Sources et année : Selon l'indicatateur, reportez-vous au tableau de la page SOMMAIRE (cliquez sur l'intitulé de chaque colonne)
A13: COMMUNE | B13: Nombre de bénéficiaires de la PUMA | E13: Part de bénéficiaires de la PUMA pour 100 habitants | G13: Nombre de bénéficiaires de la CMU complémentaire | J13: Part de bénéficiaires de la CMU complémentaire pour 100 habitants
B14: Femmes | C14: Hommes | D14: Ensemble | G14: Femmes | H14: Hommes | I14: Ensemble
A15: Les Avirons | B15: 893 | C15: 761 | D15: =C15+B15 -> 1654 | E15: =D15/Cadrage!B15*100 -> 14.41896958 | G15: 1437 | H15: 1177 | I15: =H15+G15 -> 2614 | J15: =I15/Cadrage!B15*100 -> 22.78789992
A16: Bras-Panon | B16: 1333 | C16: 1084 | D16: 2417 | E16: =D16/Cadrage!B16*100 -> 18.99858513 | G16: 2313 | H16: 1845 | I16: 4158 | J16: =I16/Cadrage!B16*100 -> 32.68354032
A17: Entre-Deux | B17: 496 | C17: 425 | D17: 921 | E17: =D17/Cadrage!B17*100 -> 13.35944299 | G17: 904 | H17: 771 | I17: 1675 | J17: =I17/Cadrage!B17*100 -> 24.2964897
A18: L'Étang-Salé | B18: 1130 | C18: 993 | D18: 2123 | E18: =D18/Cadrage!B18*100 -> 14.91918482 | G18: 1789 | H18: 1578 | I18: 3367 | J18: =I18/Cadrage!B18*100 -> 23.66127899
A19: Petite-Île | B19: 1212 | C19: 1011 | D19: 2223 | E19: =D19/Cadrage!B19*100 -> 18.16770186 | G19: 2005 | H19: 1687 | I19: 3692 | J19: =I19/Cadrage!B19*100 -> 30.17325924
A20: La Plaine-des-Palmistes | B20: 732 | C20: 630 | D20: 1362 | E20: =D20/Cadrage!B20*100 -> 21.3982718 | G20: 1186 | H20: 986 | I20: 2172 | J20: =I20/Cadrage!B20*100 -> 34.12411626
A21: Le Port | B21: 5955 | C21: 4421 | D21: 10376 | E21: =D21/Cadrage!B21*100 -> 29.80752657 | G21: 8272 | H21: 6471 | I21: 14743 | J21: =I21/Cadrage!B21*100 -> 42.35277219
A22: La Possession | B22: 3319 | C22: 2512 | D22: 5831 | E22: =D22/Cadrage!B22*100 -> 17.68416583 | G22: 4546 | H22: 3446 | I22: 7992 | J22: =I22/Cadrage!B22*100 -> 24.23801292
A23: Saint-André | B23: 9384 | C23: 7585 | D23: 16969 | E23: =D23/Cadrage!B23*100 -> 30.50442223 | G23: 12884 | H23: 10519 | I23: 23403 | J23: =I23/Cadrage!B23*100 -> 42.07054002
A24: Saint-Benoît | B24: 6439 | C24: 5400 | D24: 11839 | E24: =D24/Cadrage!B24*100 -> 31.03927429 | G24: 9043 | H24: 7393 | I24: 16436 | J24: =I24/Cadrage!B24*100 -> 43.09160505
A25: Saint-Denis | B25: 17956 | C25: 14716 | D25: 32672 | E25: =D25/Cadrage!B25*100 -> 22.08761493 | G25: 24585 | H25: 19330 | I25: 43915 | J25: =I25/Cadrage!B25*100 -> 29.68834505
A26: Saint-Joseph | B26: 4778 | C26: 4056 | D26: 8834 | E26: =D26/Cadrage!B26*100 -> 23.47657392 | G26: 7558 | H26: 6496 | I26: 14054 | J26: =I26/Cadrage!B26*100 -> 37.34885328
A27: Saint-Leu | B27: 4090 | C27: 3531 | D27: 7621 | E27: =D27/Cadrage!B27*100 -> 22.61625664 | G27: 5955 | H27: 5039 | I27: 10994 | J27: =I27/Cadrage!B27*100 -> 32.6260498
A28: Saint-Louis | B28: 9204 | C28: 7417 | D28: 16621 | E28: =D28/Cadrage!B28*100 -> 31.23074032 | G28: 12770 | H28: 10284 | I28: 23054 | J28: =I28/Cadrage!B28*100 -> 43.31830139
A29: Saint-Paul | B29: 10860 | C29: 9719 | D29: 20579 | E29: =D29/Cadrage!B29*100 -> 19.50948977 | G29: 16634 | H29: 14246 | I29: 30880 | J29: =I29/Cadrage!B29*100 -> 29.27513699
A30: Saint-Pierre | B30: 10548 | C30: 8850 | D30: 19398 | E30: =D30/Cadrage!B30*100 -> 23.0464898 | G30: 15409 | H30: 12718 | I30: 28127 | J30: =I30/Cadrage!B30*100 -> 33.4172914
A31: Saint-Philippe | B31: 705 | C31: 539 | D31: 1244 | E31: =D31/Cadrage!B31*100 -> 23.76313276 | G31: 1012 | H31: 907 | I31: 1919 | J31: =I31/Cadrage!B31*100 -> 36.65711557
A32: Sainte-Marie | B32: 3584 | C32: 2952 | D32: 6536 | E32: =D32/Cadrage!B32*100 -> 19.71049457 | G32: 5329 | H32: 4189 | I32: 9518 | J32: =I32/Cadrage!B32*100 -> 28.70325694
A33: Sainte-Rose | B33: 856 | C33: 751 | D33: 1607 | E33: =D33/Cadrage!B33*100 -> 24.64723926 | G33: 1461 | H33: 1269 | I33: 2730 | J33: =I33/Cadrage!B33*100 -> 41.87116564
A34: Sainte-Suzanne | B34: 2697 | C34: 2207 | D34: 4904 | E34: =D34/Cadrage!B34*100 -> 21.11608681 | G34: 4103 | H34: 3315 | I34: 7418 | J34: =I34/Cadrage!B34*100 -> 31.94109542
A35: Salazie | B35: 961 | C35: 942 | D35: 1903 | E35: =D35/Cadrage!B35*100 -> 25.71621622 | G35: 1750 | H35: 1720 | I35: 3470 | J35: =I35/Cadrage!B35*100 -> 46.89189189
A36: Le Tampon | B36: 9458 | C36: 7770 | D36: 17228 | E36: =D36/Cadrage!B36*100 -> 22.29209529 | G36: 14262 | H36: 11626 | I36: 25888 | J36: =I36/Cadrage!B36*100 -> 33.49766443
A37: Les Trois-Bassins | B37: 750 | C37: 640 | D37: 1390 | E37: =D37/Cadrage!B37*100 -> 19.54718042 | G37: 1337 | H37: 1115 | I37: 2452 | J37: =I37/Cadrage!B37*100 -> 34.48178878
A38: Cilaos | B38: 680 | C38: 688 | D38: 1368 | E38: =D38/Cadrage!B38*100 -> 25.31926707 | G38: 1154 | H38: 1159 | I38: 2313 | J38: =I38/Cadrage!B38*100 -> 42.80955025
A39: NORD | B39: =B34+B25+B32 -> 24237 | C39: =C34+C25+C32 -> 19875 | D39: =D34+D25+D32 -> 44112 | E39: =D39/Cadrage!B39*100 -> 21.59135406 | G39: =G34+G25+G32 -> 34017 | H39: =H34+H25+H32 -> 26834 | I39: =I34+I25+I32 -> 60851 | J39: =I39/Cadrage!B39*100 -> 29.78453677
A40: EST | B40: =B16+B20+B23+B24+B33+B35 -> 19705 | C40: =C16+C20+C23+C24+C33+C35 -> 16392 | D40: =D16+D20+D23+D24+D33+D35 -> 36097 | E40: =D40/Cadrage!B40*100 -> 28.47283025 | G40: =G16+G20+G23+G24+G33+G35 -> 28637 | H40: =H16+H20+H23+H24+H33+H35 -> 23732 | I40: =I16+I20+I23+I24+I33+I35 -> 52369 | J40: =I40/Cadrage!B40*100 -> 41.30796596
A41: OUEST | B41: =B21+B22+B27+B29+B37 -> 24974 | C41: =C21+C22+C27+C29+C37 -> 20823 | D41: =D21+D22+D27+D29+D37 -> 45797 | E41: =D41/Cadrage!B41*100 -> 21.39316962 | G41: =G21+G22+G27+G29+G37 -> 36744 | H41: =H21+H22+H27+H29+H37 -> 30317 | I41: =I21+I22+I27+I29+I37 -> 67061 | J41: =I41/Cadrage!B41*100 -> 31.32622984
A42: SUD | B42: =B15+B17+B18+B19+B26+B28+B30+B31+B36+B38 -> 39104 | C42: =C15+C17+C18+C19+C26+C28+C30+C31+C36+C38 -> 32510 | D42: =D15+D17+D18+D19+D26+D28+D30+D31+D36+D38 -> 71614 | E42: =D42/Cadrage!B42*100 -> 23.26867466 | G42: =G15+G17+G18+G19+G26+G28+G30+G31+G36+G38 -> 58300 | H42: =H15+H17+H18+H19+H26+H28+H30+H31+H36+H38 -> 48403 | I42: =I15+I17+I18+I19+I26+I28+I30+I31+I36+I38 -> 106703 | J42: =I42/Cadrage!B42*100 -> 34.6697209
A43: LA REUNION | B43: =SUM(B39:B42) -> 108020 | C43: =SUM(C39:C42) -> 89600 | D43: =SUM(D39:D42) -> 197620 | E43: =D43/Cadrage!B43*100 -> 23.16970797 | G43: =SUM(G39:G42)+G44 -> 160329 | H43: =SUM(H39:H42)+H44 -> 131525 | I43: =SUM(I39:I42)+I44 -> 291854 | J43: =I43/Cadrage!B43*100 -> 34.2180546
G44: 2631 | H44: 2239 | I44: =G44+H44 -> 4870

Sheet Offre de soins
B10: Sources et année : Selon l'indicatateur, reportez-vous au tableau de la page SOMMAIRE (cliquez sur l'intitulé de chaque colonne)
B11: *Effectifs de professionnels de santé non ventilés par commune mais inclus dans le total régional
A14: COMMUNE | B14: Nombre de médecins généralistes libéraux | C14: Densité de médecins généralistes libéraux (pour 100 000 habitants) | D14: Nombre de médecins spécialistes libéraux | E14: Densité de médecins spécialistes libéraux (pour 100 000 habitants) | F14: Nombre de médecins libéraux | G14: Densité de médecins libéraux (pour 100 000 habitants) | H14: Nombre de chirurgiens-dentistes libéraux | I14: Densité de chirurgiens-dentistes libéraux (pour 100 000 habitants) | J14: Nombre d'infirmiers libéraux | K14: Densité d'infirmiers libéraux (pour 100 000 habitants) | L14: Nombre de masseurs-kinésithérapeutes libéraux | M14: Densité de masseurs-kinésithérapeutes libéraux (pour 100 000 habitants) | N14: Nombre d'orthophonistes | O14: Desnité d'orthophonistes (pour 100 000 habitants) | P14: Nombre de psychologues | Q14: Densité de psychologues (pour 100 000 habitants)
A15: Les Avirons | B15: 11 | C15: 95.89399355 | D15: 0 | E15: =D15/Cadrage!$B$15*100000 -> 0 | F15: =B15+D15 -> 11 | G15: =F15/Cadrage!$B$15*100000 -> 95.89399355 | H15: 7 | I15: =H15/Cadrage!$B$15*100000 -> 61.02345044 | J15: 21 | K15: =J15/Cadrage!$B$15*100000 -> 183.0703513 | L15: 25.5 | M15: =L15/Cadrage!$B$15*100000 -> 222.2997123 | N15: 10 | O15: =N15/Cadrage!$B$15*100000 -> 87.17635777 | P15: 1 | Q15: =P15/Cadrage!$B$15*100000 -> 8.717635777
A16: Bras-Panon | B16: 12.5 | C16: 98.25499135 | D16: 1.5 | E16: =D16/Cadrage!$B16*100000 -> 11.79059896 | F16: =B16+D16 -> 14 | G16: =F16/Cadrage!$B16*100000 -> 110.0455903 | H16: 6.5 | I16: =H16/Cadrage!$B16*100000 -> 51.0925955 | J16: 20.5 | K16: =J16/Cadrage!$B16*100000 -> 161.1381858 | L16: 20.5 | M16: =L16/Cadrage!$B16*100000 -> 161.1381858 | N16: 7.5 | O16: =N16/Cadrage!$B16*100000 -> 58.95299481 | P16: 1.5 | Q16: =P16/Cadrage!$B16*100000 -> 11.79059896
A17: Entre-Deux | B17: 5 | C17: 72.52683493 | D17: 0 | E17: =D17/Cadrage!$B17*100000 -> 0 | F17: 5 | G17: =F17/Cadrage!$B17*100000 -> 72.52683493 | H17: 2 | I17: =H17/Cadrage!$B17*100000 -> 29.01073397 | J17: 14 | K17: =J17/Cadrage!$B17*100000 -> 203.0751378 | L17: 13.5 | M17: =L17/Cadrage!$B17*100000 -> 195.8224543 | N17: 4 | O17: =N17/Cadrage!$B17*100000 -> 58.02146794 | P17: 0 | Q17: =P17/Cadrage!$B17*100000 -> 0
A18: L'Étang-Salé | B18: 15 | C18: 105.4111033 | D18: 4.5 | E18: =D18/Cadrage!$B18*100000 -> 31.62333099 | F18: 19.5 | G18: =F18/Cadrage!$B18*100000 -> 137.0344343 | H18: 11 | I18: =H18/Cadrage!$B18*100000 -> 77.30147576 | J18: 42 | K18: =J18/Cadrage!$B18*100000 -> 295.1510892 | L18: 37 | M18: =L18/Cadrage!$B18*100000 -> 260.0140548 | N18: 9 | O18: =N18/Cadrage!$B18*100000 -> 63.24666198 | P18: 1 | Q18: =P18/Cadrage!$B18*100000 -> 7.027406887
A19: Petite-Île | B19: 12 | C19: 98.07126512 | D19: 1 | E19: =D19/Cadrage!$B19*100000 -> 8.172605427 | F19: 13 | G19: =F19/Cadrage!$B19*100000 -> 106.2438705 | H19: 3.5 | I19: =H19/Cadrage!$B19*100000 -> 28.60411899 | J19: 31 | K19: =J19/Cadrage!$B19*100000 -> 253.3507682 | L19: 22.5 | M19: =L19/Cadrage!$B19*100000 -> 183.8836221 | N19: 9.5 | O19: =N19/Cadrage!$B19*100000 -> 77.63975155 | P19: 1 | Q19: =P19/Cadrage!$B19*100000 -> 8.172605427
A20: La Plaine-des-Palmistes | B20: 2.5 | C20: 39.27729772 | D20: 0 | E20: =D20/Cadrage!$B20*100000 -> 0 | F20: 2.5 | G20: =F20/Cadrage!$B20*100000 -> 39.27729772 | H20: 0.5 | I20: =H20/Cadrage!$B20*100000 -> 7.855459544 | J20: 11 | K20: =J20/Cadrage!$B20*100000 -> 172.82011 | L20: 6.5 | M20: =L20/Cadrage!$B20*100000 -> 102.1209741 | N20: 0 | O20: =N20/Cadrage!$B20*100000 -> 0 | P20: 1 | Q20: =P20/Cadrage!$B20*100000 -> 15.71091909
A21: Le Port | B21: 49 | C21: 140.7641482 | D21: 83.6333335 | E21: =D21/Cadrage!$B21*100000 -> 240.2566317 | F21: 132.6333335 | G21: =F21/Cadrage!$B21*100000 -> 381.0207799 | H21: 17 | I21: =H21/Cadrage!$B21*100000 -> 48.83654122 | J21: 73 | K21: =J21/Cadrage!$B21*100000 -> 209.7098535 | L21: 45.5 | M21: =L21/Cadrage!$B21*100000 -> 130.7095662 | N21: 18 | O21: =N21/Cadrage!$B21*100000 -> 51.70927894 | P21: 1.5 | Q21: =P21/Cadrage!$B21*100000 -> 4.309106579
A22: La Possession | B22: 25 | C22: 75.81960998 | D22: 0 | E22: =D22/Cadrage!$B22*100000 -> 0 | F22: 25 | G22: =F22/Cadrage!$B22*100000 -> 75.81960998 | H22: 14 | I22: =H22/Cadrage!$B22*100000 -> 42.45898159 | J22: 67 | K22: =J22/Cadrage!$B22*100000 -> 203.1965548 | L22: 44 | M22: =L22/Cadrage!$B22*100000 -> 133.4425136 | N22: 20 | O22: =N22/Cadrage!$B22*100000 -> 60.65568799 | P22: 3.5 | Q22: =P22/Cadrage!$B22*100000 -> 10.6147454
A23: Saint-André | B23: 46.3333333 | C23: 83.29138797 | D23: 23.8333332 | E23: =D23/Cadrage!$B23*100000 -> 42.84413101 | F23: 70.1666665 | G23: =F23/Cadrage!$B23*100000 -> 126.135519 | H23: 25 | I23: =H23/Cadrage!$B23*100000 -> 44.94139642 | J23: 182 | K23: =J23/Cadrage!$B23*100000 -> 327.1733659 | L23: 70.5 | M23: =L23/Cadrage!$B23*100000 -> 126.7347379 | N23: 12.5 | O23: =N23/Cadrage!$B23*100000 -> 22.47069821 | P23: 2 | Q23: =P23/Cadrage!$B23*100000 -> 3.595311714
A24: Saint-Benoît | B24: 31.5 | C24: 82.58612553 | D24: 14.5666666 | E24: =D24/Cadrage!$B24*100000 -> 38.19062084 | F24: 46.0666666 | G24: =F24/Cadrage!$B24*100000 -> 120.7767464 | H24: 17 | I24: =H24/Cadrage!$B24*100000 -> 44.57028997 | J24: 78 | K24: =J24/Cadrage!$B24*100000 -> 204.4989775 | L24: 34 | M24: =L24/Cadrage!$B24*100000 -> 89.14057994 | N24: 8 | O24: =N24/Cadrage!$B24*100000 -> 20.9742541 | P24: 1 | Q24: =P24/Cadrage!$B24*100000 -> 2.621781763
A25: Saint-Denis | B25: 147.3333333 | C25: 99.6033892 | D25: 152.6499994 | E25: =D25/Cadrage!$B25*100000 -> 103.197674 | F25: 299.9833327 | G25: =F25/Cadrage!$B25*100000 -> 202.8010632 | H25: 86 | I25: =H25/Cadrage!$B25*100000 -> 58.13953488 | J25: 393.5 | K25: =J25/Cadrage!$B25*100000 -> 266.0221741 | L25: 179.6666665 | M25: =L25/Cadrage!$B25*100000 -> 121.4620514 | N25: 41 | O25: =N25/Cadrage!$B25*100000 -> 27.71768524 | P25: 20.3333333 | Q25: =P25/Cadrage!$B25*100000 -> 13.74616908
A26: Saint-Joseph | B26: 32.6666666 | C26: 86.81247602 | D26: 8.9999999 | E26: =D26/Cadrage!$B26*100000 -> 23.91772277 | F26: 41.6666665 | G26: =F26/Cadrage!$B26*100000 -> 110.7301988 | H26: 24 | I26: =H26/Cadrage!$B26*100000 -> 63.78059475 | J26: 105 | K26: =J26/Cadrage!$B26*100000 -> 279.040102 | L26: 57.9999999 | M26: =L26/Cadrage!$B26*100000 -> 154.1364371 | N26: 20.5 | O26: =N26/Cadrage!$B26*100000 -> 54.47925802 | P26: 1 | Q26: =P26/Cadrage!$B26*100000 -> 2.657524781
A27: Saint-Leu | B27: 34.5 | C27: 102.3830015 | D27: 11.0833332 | E27: =D27/Cadrage!$B27*100000 -> 32.89115708 | F27: 45.5833332 | G27: =F27/Cadrage!$B27*100000 -> 135.2741585 | H27: 22 | I27: =H27/Cadrage!$B27*100000 -> 65.28771107 | J27: 103 | K27: =J27/Cadrage!$B27*100000 -> 305.6651927 | L27: 81.5 | M27: =L27/Cadrage!$B27*100000 -> 241.8612933 | N27: 24.5 | O27: =N27/Cadrage!$B27*100000 -> 72.70676915 | P27: 11 | Q27: =P27/Cadrage!$B27*100000 -> 32.64385554
A28: Saint-Louis | B28: 49.5 | C28: 93.01014656 | D28: 16.9999999 | E28: =D28/Cadrage!$B28*100000 -> 31.94287843 | F28: 66.4999999 | G28: =F28/Cadrage!$B28*100000 -> 124.953025 | H28: 30 | I28: =H28/Cadrage!$B28*100000 -> 56.36978579 | J28: 138 | K28: =J28/Cadrage!$B28*100000 -> 259.3010147 | L28: 99 | M28: =L28/Cadrage!$B28*100000 -> 186.0202931 | N28: 41.5 | O28: =N28/Cadrage!$B28*100000 -> 77.97820368 | P28: 1 | Q28: =P28/Cadrage!$B28*100000 -> 1.87899286
A29: Saint-Paul | B29: 116 | C29: 109.9713695 | D29: 53.8333349 | E29: =D29/Cadrage!$B29*100000 -> 51.03556521 | F29: 169.8333349 | G29: =F29/Cadrage!$B29*100000 -> 161.0069347 | H29: 81.5 | I29: =H29/Cadrage!$B29*100000 -> 77.26436738 | J29: 297 | K29: =J29/Cadrage!$B29*100000 -> 281.5646271 | L29: 231.9999993 | M29: =L29/Cadrage!$B29*100000 -> 219.9427384 | N29: 67.5 | O29: =N29/Cadrage!$B29*100000 -> 63.99196071 | P29: 21 | Q29: =P29/Cadrage!$B29*100000 -> 19.90861
A30: Saint-Pierre | B30: 102.6666666 | C30: 121.9768164 | D30: 63.8666664 | E30: =D30/Cadrage!$B30*100000 -> 75.87908422 | F30: 166.533333 | G30: =F30/Cadrage!$B30*100000 -> 197.8559006 | H30: 58 | I30: =H30/Cadrage!$B30*100000 -> 68.90898074 | J30: 251 | K30: =J30/Cadrage!$B30*100000 -> 298.2095546 | L30: 231.3333333 | M30: =L30/Cadrage!$B30*100000 -> 274.8438657 | N30: 85.5 | O30: =N30/Cadrage!$B30*100000 -> 101.5813423 | P30: 18 | Q30: =P30/Cadrage!$B30*100000 -> 21.38554575
A31: Saint-Philippe | B31: 6 | C31: 114.6131805 | D31: 0 | E31: =D31/Cadrage!$B31*100000 -> 0 | F31: 6 | G31: =F31/Cadrage!$B31*100000 -> 114.6131805 | H31: 2 | I31: =H31/Cadrage!$B31*100000 -> 38.20439351 | J31: 13 | K31: =J31/Cadrage!$B31*100000 -> 248.3285578 | L31: 5 | M31: =L31/Cadrage!$B31*100000 -> 95.51098376 | N31: 0 | O31: =N31/Cadrage!$B31*100000 -> 0 | P31: 0 | Q31: =P31/Cadrage!$B31*100000 -> 0
A32: Sainte-Marie | B32: 22 | C32: 66.34499397 | D32: 0 | E32: =D32/Cadrage!$B32*100000 -> 0 | F32: 22 | G32: =F32/Cadrage!$B32*100000 -> 66.34499397 | H32: 9 | I32: =H32/Cadrage!$B32*100000 -> 27.1411339 | J32: 48 | K32: =J32/Cadrage!$B32*100000 -> 144.7527141 | L32: 41.5 | M32: =L32/Cadrage!$B32*100000 -> 125.1507841 | N32: 10.5 | O32: =N32/Cadrage!$B32*100000 -> 31.66465621 | P32: 2 | Q32: =P32/Cadrage!$B32*100000 -> 6.031363088
A33: Sainte-Rose | B33: 4 | C33: 61.34969325 | D33: 0 | E33: =D33/Cadrage!$B33*100000 -> 0 | F33: 4 | G33: =F33/Cadrage!$B33*100000 -> 61.34969325 | H33: 1.5 | I33: =H33/Cadrage!$B33*100000 -> 23.00613497 | J33: 21 | K33: =J33/Cadrage!$B33*100000 -> 322.0858896 | L33: 3 | M33: =L33/Cadrage!$B33*100000 -> 46.01226994 | N33: 1 | O33: =N33/Cadrage!$B33*100000 -> 15.33742331 | P33: 1 | Q33: =P33/Cadrage!$B33*100000 -> 15.33742331
A34: Sainte-Suzanne | B34: 13 | C34: 55.97657596 | D34: 0 | E34: =D34/Cadrage!$B34*100000 -> 0 | F34: 13 | G34: =F34/Cadrage!$B34*100000 -> 55.97657596 | H34: 6 | I34: =H34/Cadrage!$B34*100000 -> 25.83534275 | J34: 37.5 | K34: =J34/Cadrage!$B34*100000 -> 161.4708922 | L34: 13.5 | M34: =L34/Cadrage!$B34*100000 -> 58.12952118 | N34: 3 | O34: =N34/Cadrage!$B34*100000 -> 12.91767137 | P34: 0.5 | Q34: =P34/Cadrage!$B34*100000 -> 2.152945229
A35: Salazie | B35: 5 | C35: 67.56756757 | D35: 0 | E35: =D35/Cadrage!$B35*100000 -> 0 | F35: 5 | G35: =F35/Cadrage!$B35*100000 -> 67.56756757 | H35: 1 | I35: =H35/Cadrage!$B35*100000 -> 13.51351351 | J35: 25.5 | K35: =J35/Cadrage!$B35*100000 -> 344.5945946 | L35: 4 | M35: =L35/Cadrage!$B35*100000 -> 54.05405405 | N35: 0 | O35: =N35/Cadrage!$B35*100000 -> 0 | P35: 0 | Q35: =P35/Cadrage!$B35*100000 -> 0
A36: Le Tampon | B36: 67 | C36: 86.6943571 | D36: 52.9999997 | E36: =D36/Cadrage!$B36*100000 -> 68.57911792 | F36: 119.9999997 | G36: =F36/Cadrage!$B36*100000 -> 155.273475 | H36: 38 | I36: =H36/Cadrage!$B36*100000 -> 49.16993388 | J36: 204 | K36: =J36/Cadrage!$B36*100000 -> 263.9649082 | L36: 126.1666656 | M36: =L36/Cadrage!$B36*100000 -> 163.2528054 | N36: 34 | O36: =N36/Cadrage!$B36*100000 -> 43.99415137 | P36: 3 | Q36: =P36/Cadrage!$B36*100000 -> 3.881836885
A37: Les Trois-Bassins | B37: 6.5 | C37: 91.40767824 | D37: 0 | E37: =D37/Cadrage!$B37*100000 -> 0 | F37: 6.5 | G37: =F37/Cadrage!$B37*100000 -> 91.40767824 | H37: 3 | I37: =H37/Cadrage!$B37*100000 -> 42.18815919 | J37: 17 | K37: =J37/Cadrage!$B37*100000 -> 239.0662354 | L37: 13 | M37: =L37/Cadrage!$B37*100000 -> 182.8153565 | N37: 5 | O37: =N37/Cadrage!$B37*100000 -> 70.31359865 | P37: 0 | Q37: =P37/Cadrage!$B37*100000 -> 0
A38: Cilaos | B38: 4 | C38: 74.03294466 | D38: 0 | E38: =D38/Cadrage!$B38*100000 -> 0 | F38: 4 | G38: =F38/Cadrage!$B38*100000 -> 74.03294466 | H38: 2 | I38: =H38/Cadrage!$B38*100000 -> 37.01647233 | J38: 19 | K38: =J38/Cadrage!$B38*100000 -> 351.6564871 | L38: 8.5 | M38: =L38/Cadrage!$B38*100000 -> 157.3200074 | N38: 2 | O38: =N38/Cadrage!$B38*100000 -> 37.01647233 | P38: 0 | Q38: =P38/Cadrage!$B38*100000 -> 0
A39: NORD | B39: =B34+B25+B32 -> 182.3333333 | C39: =B39/Cadrage!$B39*100000 -> 89.24609078 | D39: =D34+D25+D32 -> 152.6499994 | E39: =D39/Cadrage!$B39*100000 -> 74.71708797 | F39: =F34+F25+F32 -> 334.9833327 | G39: =F39/Cadrage!$B39*100000 -> 163.9631787 | H39: =H34+H25+H32 -> 101 | I39: =H39/Cadrage!$B39*100000 -> 49.43613439 | J39: =J34+J25+J32 -> 479 | K39: =J39/Cadrage!$B39*100000 -> 234.4545383 | L39: =L34+L25+L32 -> 234.6666665 | M39: =L39/Cadrage!$B39*100000 -> 114.8615135 | N39: =N34+N25+N32 -> 54.5 | O39: =N39/Cadrage!$B39*100000 -> 26.6759339 | P39: =P34+P25+P32 -> 22.8333333 | Q39: =P39/Cadrage!$B39*100000 -> 11.17615578
A40: EST | B40: =B16+B20+B23+B24+B33+B35 -> 101.8333333 | C40: =B40/Cadrage!$B40*100000 -> 80.32476971 | D40: =D16+D20+D23+D24+D33+D35 -> 39.8999998 | E40: =D40/Cadrage!$B40*100000 -> 31.47258556 | F40: =F16+F20+F23+F24+F33+F35 -> 141.7333331 | G40: =F40/Cadrage!$B40*100000 -> 111.7973553 | H40: =H16+H20+H23+H24+H33+H35 -> 51.5 | I40: =H40/Cadrage!$B40*100000 -> 40.62251039 | J40: =J16+J20+J23+J24+J33+J35 -> 338 | K40: =J40/Cadrage!$B40*100000 -> 266.609874 | L40: =L16+L20+L23+L24+L33+L35 -> 138.5 | M40: =L40/Cadrage!$B40*100000 -> 109.2469454 | N40: =N16+N20+N23+N24+N33+N35 -> 29 | O40: =N40/Cadrage!$B40*100000 -> 22.87481168 | P40: =P16+P20+P23+P24+P33+P35 -> 6.5 | Q40: =P40/Cadrage!$B40*100000 -> 5.127112962
A41: OUEST | B41: =B21+B22+B27+B29+B37 -> 231 | C41: =B41/Cadrage!$B41*100000 -> 107.9071158 | D41: =D21+D22+D27+D29+D37 -> 148.5500016 | E41: =D41/Cadrage!$B41*100000 -> 69.39221742 | F41: =F21+F22+F27+F29+F37 -> 379.5500016 | G41: =F41/Cadrage!$B41*100000 -> 177.2993332 | H41: =H21+H22+H27+H29+H37 -> 137.5 | I41: =H41/Cadrage!$B41*100000 -> 64.23042607 | J41: =J21+J22+J27+J29+J37 -> 557 | K41: =J41/Cadrage!$B41*100000 -> 260.1916169 | L41: =L21+L22+L27+L29+L37 -> 415.9999993 | M41: =L41/Cadrage!$B41*100000 -> 194.3262342 | N41: =N21+N22+N27+N29+N37 -> 135 | O41: =N41/Cadrage!$B41*100000 -> 63.06260014 | P41: =P21+P22+P27+P29+P37 -> 37 | Q41: =P41/Cadrage!$B41*100000 -> 17.28382374
A42: SUD | B42: =B15+B17+B18+B19+B26+B28+B30+B31+B36+B38 -> 304.8333332 | C42: =B42/Cadrage!$B42*100000 -> 99.04582422 | D42: =D15+D17+D18+D19+D26+D28+D30+D31+D36+D38 -> 148.3666659 | E42: =D42/Cadrage!$B42*100000 -> 48.20699415 | F42: =F15+F17+F18+F19+F26+F28+F30+F31+F36+F38 -> 453.1999991 | G42: =F42/Cadrage!$B42*100000 -> 147.2528184 | H42: =H15+H17+H18+H19+H26+H28+H30+H31+H36+H38 -> 177.5 | I42: =H42/Cadrage!$B42*100000 -> 57.67293758 | J42: =J15+J17+J18+J19+J26+J28+J30+J31+J36+J38 -> 838 | K42: =J42/Cadrage!$B42*100000 -> 272.281249 | L42: =L15+L17+L18+L19+L26+L28+L30+L31+L36+L38 -> 626.4999988 | M42: =L42/Cadrage!$B42*100000 -> 203.5611004 | N42: =N15+N17+N18+N19+N26+N28+N30+N31+N36+N38 -> 216 | O42: =N42/Cadrage!$B42*100000 -> 70.18227897 | P42: =P15+P17+P18+P19+P26+P28+P30+P31+P36+P38 -> 26 | Q42: =P42/Cadrage!$B42*100000 -> 8.447866914
A43: LA REUNION | B43: =SUM(B39:B42) -> 819.9999998 | C43: =B43/Cadrage!$B43*100000 -> 96.13986707 | D43: =SUM(D39:D42) -> 489.4666667 | E43: =D43/Cadrage!$B43*100000 -> 57.38690278 | F43: =SUM(F39:F42) -> 1309.466666 | G43: =F43/Cadrage!$B43*100000 -> 153.5267699 | H43: =SUM(H39:H42) -> 467.5 | I43: =H43/Cadrage!$B43*100000 -> 54.81144862 | J43: 2212 | K43: =J43/Cadrage!$B43*100000 -> 259.3431537 | L43: =SUM(L39:L42)+1 -> 1416.666665 | M43: =L43/Cadrage!$B43*100000 -> 166.0952986 | N43: 434.5 | O43: =N43/Cadrage!$B43*100000 -> 50.94240518 | P43: 92.3333333 | Q43: =P43/Cadrage!$B43*100000 -> 10.82550536
L44: 1*

Sheet Hospitalisations
B10: Sources et année : Selon l'indicatateur, reportez-vous au tableau de la page SOMMAIRE (cliquez sur l'intitulé de chaque colonne)
B11: *Nombre de séjours non ventilés par commune mais inclus dans le total régional
A13: COMMUNE | B13: Nombre de séjours en hospitalisation complète | F13: Nombre de séjours en hospitalisation complète pour maladies cardiovasculaires | J13: Nombre de séjours en hospitalisation complète pour diabète | N13: Nombre de séjours en hospitalisation complète pour tumeur | R13: Nombre de séjours en hospitalisation complète chez les moins de 15 ans | V13: Nombre de séjours en hospitalisation complète chez les 15-44 ans | Z13: Nombre de séjours en hospitalisation complète chez les 45-74 ans | AD13: Nombre de séjours en hospitalisation complète chez les 75 ans et plus | AH13: Taux standaridisé d'hospitalisation (pour 10 000 habitants) | AL13: Taux standaridisé d'hospitalisation pour maladies cardiovasculaires (pour 10 000 habitants) | AP13: Taux standaridisé d'hospitalisation pour tumeur (pour 10 000 habitants) | AT13: Taux standaridisé d'hospitalisation pour diabète (pour 10 000 habitants)
B14: Femmes | C14: Hommes | D14: Ensemble | F14: Femmes | G14: Hommes | H14: Ensemble | J14: Femmes | K14: Hommes | L14: Ensemble | N14: Femmes | O14: Hommes | P14: Ensemble | R14: Femmes | S14: Hommes | T14: Ensemble | V14: Femmes | W14: Hommes | X14: Ensemble | Z14: Femmes | AA14: Hommes | AB14: Ensemble | AD14: Femmes | AE14: Hommes | AF14: Ensemble | AH14: Femmes | AI14: Hommes | AJ14: Ensemble | AL14: Femmes | AM14: Hommes | AN14: Ensemble | AP14: Femmes | AQ14: Hommes | AR14: Ensemble | AT14: Femmes | AU14: Hommes | AV14: Ensemble
A15: Les Avirons | B15: 704 | C15: 618 | D15: 1322 | F15: 88 | G15: 98 | H15: 186 | J15: <5 | K15: <5 | L15: 6 | N15: 40 | O15: 39 | P15: 79 | R15: 107 | S15: 124 | T15: 231 | V15: 268 | W15: 88 | X15: 356 | Z15: 201 | AA15: 277 | AB15: 478 | AD15: 128 | AE15: 129 | AF15: 257 | AH15: 1334.397864 | AI15: 1344.102899 | AJ15: 1330.380325 | AL15: 205.2320155 | AM15: 256.6240013 | AN15: 228.8728484 | AP15: 72.97465657 | AQ15: 84.08041993 | AR15: 76.92318732 | AT15: 5.709672033 | AU15: 4.831259698 | AV15: 5.338365987
A16: Bras-Panon | B16: 1042 | C16: 979 | D16: 2021 | F16: 107 | G16: 155 | H16: 262 | J16: 22 | K16: 19 | L16: 41 | N16: 52 | O16: 39 | P16: 91 | R16: 151 | S16: 186 | T16: 337 | V16: 426 | W16: 180 | X16: 606 | Z16: 300 | AA16: 469 | AB16: 769 | AD16: 165 | AE16: 144 | AF16: 309 | AH16: 1778.439523 | AI16: 2211.015637 | AJ16: 1935.825968 | AL16: 229.0868727 | AM16: 456.6587463 | AN16: 315.5859986 | AP16: 88.77446645 | AQ16: 112.4144702 | AR16: 93.50742969 | AT16: 38.79977464 | AU16: 43.17227299 | AV16: 39.17198193
A17: Entre-Deux | B17: 389 | C17: 350 | D17: 739 | F17: 31 | G17: 43 | H17: 74 | J17: <5 | K17: <5 | L17: 5 | N17: 25 | O17: 13 | P17: 38 | R17: 47 | S17: 69 | T17: 116 | V17: 150 | W17: 48 | X17: 198 | Z17: 103 | AA17: 162 | AB17: 265 | AD17: 89 | AE17: 71 | AF17: 160 | AH17: 1136.724267 | AI17: 1157.513408 | AJ17: 1138.636585 | AL17: 90.53144546 | AM17: 161.7312964 | AN17: 124.3168951 | AP17: 76.49951748 | AQ17: 52.14059966 | AR17: 64.99701042 | AT17: 10.54109903 | AU17: 2.716907597 | AV17: 7.178325836
A18: L'Étang-Salé | B18: 873 | C18: 835 | D18: 1708 | F18: 94 | G18: 125 | H18: 219 | J18: <5 | K18: <5 | L18: <5 | N18: 40 | O18: 47 | P18: 87 | R18: 154 | S18: 157 | T18: 311 | V18: 358 | W18: 163 | X18: 521 | Z18: 230 | AA18: 380 | AB18: 610 | AD18: 131 | AE18: 135 | AF18: 266 | AH18: 1356.958375 | AI18: 1400.970537 | AJ18: 1380.13955 | AL18: 184.4094677 | AM18: 240.7757213 | AN18: 214.4312838 | AP18: 65.8216788 | AQ18: 85.93431555 | AR18: 75.86791016 | AT18: 2.261644142 | AU18: 5.424636956 | AV18: 3.816332995
A19: Petite-Île | B19: 865 | C19: 821 | D19: 1686 | F19: 88 | G19: 97 | H19: 185 | J19: 5 | K19: 5 | L19: 10 | N19: 27 | O19: 50 | P19: 77 | R19: 135 | S19: 145 | T19: 280 | V19: 332 | W19: 134 | X19: 466 | Z19: 230 | AA19: 398 | AB19: 628 | AD19: 168 | AE19: 144 | AF19: 312 | AH19: 1469.708354 | AI19: 1425.243454 | AJ19: 1453.539746 | AL19: 162.9942606 | AM19: 186.6529673 | AN19: 177.7923925 | AP19: 45.43498202 | AQ19: 88.63983304 | AR19: 65.72096633 | AT19: 8.7908254 | AU19: 7.65710305 | AV19: 8.041862215
A20: La Plaine-des-Palmistes | B20: 540 | C20: 496 | D20: 1036 | F20: 73 | G20: 78 | H20: 151 | J20: 10 | K20: 7 | L20: 17 | N20: 24 | O20: 17 | P20: 41 | R20: 77 | S20: 89 | T20: 166 | V20: 205 | W20: 83 | X20: 288 | Z20: 152 | AA20: 249 | AB20: 401 | AD20: 106 | AE20: 75 | AF20: 181 | AH20: 1832.945695 | AI20: 1998.912264 | AJ20: 1913.806125 | AL20: 281.0650268 | AM20: 352.6508519 | AN20: 326.6201692 | AP20: 82.05997296 | AQ20: 68.40753352 | AR20: 76.99422798 | AT20: 36.8782303 | AU20: 28.36003728 | AV20: 32.48121163
A21: Le Port | B21: 3124 | C21: 2306 | D21: 5430 | F21: 257 | G21: 292 | H21: 549 | J21: 43 | K21: 30 | L21: 73 | N21: 107 | O21: 90 | P21: 197 | R21: 484 | S21: 486 | T21: 970 | V21: 1383 | W21: 400 | X21: 1783 | Z21: 827 | AA21: 1119 | AB21: 1946 | AD21: 430 | AE21: 301 | AF21: 731 | AH21: 1911.442174 | AI21: 1737.729728 | AJ21: 1792.837085 | AL21: 186.4361198 | AM21: 267.2713832 | AN21: 223.9287052 | AP21: 69.32752681 | AQ21: 76.67761893 | AR21: 71.53110223 | AT21: 25.23148158 | AU21: 21.03136274 | AV21: 23.24191003
A22: La Possession | B22: 2547 | C22: 2017 | D22: 4564 | F22: 158 | G22: 228 | H22: 386 | J22: 22 | K22: 24 | L22: 46 | N22: 90 | O22: 108 | P22: 198 | R22: 503 | S22: 536 | T22: 1039 | V22: 1237 | W22: 405 | X22: 1642 | Z22: 552 | AA22: 841 | AB22: 1393 | AD22: 255 | AE22: 235 | AF22: 490 | AH22: 1674.330304 | AI22: 1620.566121 | AJ22: 1653.137253 | AL22: 162.8140409 | AM22: 249.9883846 | AN22: 203.3823281 | AP22: 67.39443877 | AQ22: 110.9717652 | AR22: 86.40096498 | AT22: 19.04428982 | AU22: 19.83695377 | AV22: 19.89853506
A23: Saint-André | B23: 4916 | C23: 4043 | D23: 8959 | F23: 419 | G23: 571 | H23: 990 | J23: 59 | K23: 79 | L23: 138 | N23: 191 | O23: 135 | P23: 326 | R23: 773 | S23: 877 | T23: 1650 | V23: 2129 | W23: 786 | X23: 2915 | Z23: 1377 | AA23: 1859 | AB23: 3236 | AD23: 637 | AE23: 521 | AF23: 1158 | AH23: 1917.432982 | AI23: 2076.169328 | AJ23: 1958.452332 | AL23: 220.0775405 | AM23: 376.5158577 | AN23: 284.8785948 | AP23: 83.1385124 | AQ23: 78.10462261 | AR23: 79.19370682 | AT23: 24.49578547 | AU23: 37.91350035 | AV23: 31.17542679
A24: Saint-Benoît | B24: 3390 | C24: 2940 | D24: 6330 | F24: 323 | G24: 400 | H24: 723 | J24: 59 | K24: 49 | L24: 108 | N24: 129 | O24: 113 | P24: 242 | R24: 568 | S24: 582 | T24: 1150 | V24: 1452 | W24: 549 | X24: 2001 | Z24: 956 | AA24: 1380 | AB24: 2336 | AD24: 414 | AE24: 429 | AF24: 843 | AH24: 1902.095914 | AI24: 2006.099984 | AJ24: 1937.111811 | AL24: 235.2100096 | AM24: 317.7760265 | AN24: 275.1027262 | AP24: 76.83077593 | AQ24: 101.3527067 | AR24: 85.71235062 | AT24: 34.24732598 | AU24: 31.590402 | AV24: 33.1008161
A25: Saint-Denis | B25: 12599 | C25: 10699 | D25: 23298 | F25: 1103 | G25: 1391 | H25: 2494 | J25: 114 | K25: 129 | L25: 243 | N25: 576 | O25: 484 | P25: 1060 | R25: 1915 | S25: 2086 | T25: 4001 | V25: 5109 | W25: 1953 | X25: 7062 | Z25: 3669 | AA25: 5123 | AB25: 8792 | AD25: 1906 | AE25: 1537 | AF25: 3443 | AH25: 1685.74435 | AI25: 1852.255913 | AJ25: 1738.144251 | AL25: 166.0798397 | AM25: 278.0031272 | AN25: 214.0512095 | AP25: 78.92572416 | AQ25: 88.57607132 | AR25: 82.17787806 | AT25: 15.25522315 | AU25: 21.48534128 | AV25: 18.00768844
A26: Saint-Joseph | B26: 2772 | C26: 2611 | D26: 5383 | F26: 224 | G26: 358 | H26: 582 | J26: 16 | K26: 30 | L26: 46 | N26: 123 | O26: 117 | P26: 240 | R26: 490 | S26: 484 | T26: 974 | V26: 1042 | W26: 448 | X26: 1490 | Z26: 710 | AA26: 1227 | AB26: 1937 | AD26: 530 | AE26: 452 | AF26: 982 | AH26: 1513.333426 | AI26: 1598.386254 | AJ26: 1544.00913 | AL26: 128.2704415 | AM26: 235.4124302 | AN26: 178.7625216 | AP26: 66.43385113 | AQ26: 74.48604535 | AR26: 69.99539723 | AT26: 8.86152056 | AU26: 17.87610522 | AV26: 13.3726775
A27: Saint-Leu | B27: 2574 | C27: 2240 | D27: 4814 | F27: 211 | G27: 286 | H27: 497 | J27: 23 | K27: 16 | L27: 39 | N27: 98 | O27: 111 | P27: 209 | R27: 419 | S27: 456 | T27: 875 | V27: 1122 | W27: 411 | X27: 1533 | Z27: 689 | AA27: 1060 | AB27: 1749 | AD27: 344 | AE27: 313 | AF27: 657 | AH27: 1610.574031 | AI27: 1636.136352 | AJ27: 1614.539812 | AL27: 156.8685197 | AM27: 234.8602525 | AN27: 197.7457016 | AP27: 62.01941644 | AQ27: 84.73535022 | AR27: 71.65803049 | AT27: 16.46179357 | AU27: 11.74953236 | AV27: 14.29307737
A28: Saint-Louis | B28: 4144 | C28: 3567 | D28: 7711 | F28: 340 | G28: 423 | H28: 763 | J28: 18 | K28: 26 | L28: 44 | N28: 126 | O28: 129 | P28: 255 | R28: 777 | S28: 844 | T28: 1621 | V28: 1848 | W28: 653 | X28: 2501 | Z28: 915 | AA28: 1620 | AB28: 2535 | AD28: 604 | AE28: 450 | AF28: 1054 | AH28: 1630.597569 | AI28: 1705.103374 | AJ28: 1661.899744 | AL28: 168.8350904 | AM28: 251.7938125 | AN28: 210.6625987 | AP28: 52.62301446 | AQ28: 71.40711187 | AR28: 61.03260533 | AT28: 7.443979633 | AU28: 13.10518751 | AV28: 9.962253941
A29: Saint-Paul | B29: 8091 | C29: 7109 | D29: 15200 | F29: 751 | G29: 930 | H29: 1681 | J29: 70 | K29: 80 | L29: 150 | N29: 342 | O29: 364 | P29: 706 | R29: 1216 | S29: 1433 | T29: 2649 | V29: 3292 | W29: 1170 | X29: 4462 | Z29: 2383 | AA29: 3497 | AB29: 5880 | AD29: 1200 | AE29: 1009 | AF29: 2209 | AH29: 1638.270854 | AI29: 1665.106405 | AJ29: 1642.09611 | AL29: 175.8841496 | AM29: 255.9799024 | AN29: 214.3649022 | AP29: 70.66802707 | AQ29: 95.01514307 | AR29: 80.73049364 | AT29: 15.30185145 | AU29: 17.68851962 | AV29: 16.50042174
A30: Saint-Pierre | B30: 6043 | C30: 5526 | D30: 11569 | F30: 491 | G30: 711 | H30: 1202 | J30: 33 | K30: 40 | L30: 73 | N30: 258 | O30: 218 | P30: 476 | R30: 1094 | S30: 1222 | T30: 2316 | V30: 2522 | W30: 1102 | X30: 3624 | Z30: 1565 | AA30: 2475 | AB30: 4040 | AD30: 862 | AE30: 727 | AF30: 1589 | AH30: 1482.546927 | AI30: 1657.078549 | AJ30: 1549.804866 | AL30: 151.7183537 | AM30: 261.0137397 | AN30: 199.8438161 | AP30: 65.72027415 | AQ30: 74.57193829 | AR30: 68.63527173 | AT30: 8.074201658 | AU30: 11.17256857 | AV30: 9.445253894
A31: Saint-Philippe | B31: 407 | C31: 359 | D31: 766 | F31: 31 | G31: 61 | H31: 92 | J31: <5 | K31: <5 | L31: 5 | N31: 9 | O31: 9 | P31: 18 | R31: 64 | S31: 64 | T31: 128 | V31: 156 | W31: 55 | X31: 211 | Z31: 101 | AA31: 166 | AB31: 267 | AD31: 86 | AE31: 74 | AF31: 160 | AH31: 1719.678988 | AI31: 1671.872708 | AJ31: 1689.144044 | AL31: 152.9286613 | AM31: 345.2470249 | AN31: 238.8227279 | AP31: 38.28401097 | AQ31: 45.12439562 | AR31: 40.79572313 | AT31: 19.79399498 | AU31: 8.168652935 | AV31: 14.56743266
A32: Sainte-Marie | B32: 2703 | C32: 2072 | D32: 4775 | F32: 243 | G32: 283 | H32: 526 | J32: 25 | K32: 27 | L32: 52 | N32: 111 | O32: 71 | P32: 182 | R32: 443 | S32: 479 | T32: 922 | V32: 1157 | W32: 356 | X32: 1513 | Z32: 763 | AA32: 995 | AB32: 1758 | AD32: 340 | AE32: 242 | AF32: 582 | AH32: 1798.361575 | AI32: 1599.46315 | AJ32: 1704.916855 | AL32: 215.1467915 | AM32: 274.5972742 | AN32: 243.1412856 | AP32: 78.52265498 | AQ32: 66.33968905 | AR32: 72.83666437 | AT32: 17.43181716 | AU32: 22.21275818 | AV32: 19.02293423
A33: Sainte-Rose | B33: 608 | C33: 575 | D33: 1183 | F33: 84 | G33: 99 | H33: 183 | J33: 8 | K33: 10 | L33: 18 | N33: 28 | O33: 20 | P33: 48 | R33: 68 | S33: 79 | T33: 147 | V33: 243 | W33: 92 | X33: 335 | Z33: 179 | AA33: 301 | AB33: 480 | AD33: 118 | AE33: 103 | AF33: 221 | AH33: 2084.930993 | AI33: 2032.935208 | AJ33: 2053.884203 | AL33: 320.1835983 | AM33: 349.8115548 | AN33: 340.1753294 | AP33: 95.17430348 | AQ33: 72.64775498 | AR33: 83.56855418 | AT33: 26.26939793 | AU33: 32.89133086 | AV33: 29.69095977
A34: Sainte-Suzanne | B34: 1849 | C34: 1477 | D34: 3326 | F34: 164 | G34: 200 | H34: 364 | J34: 15 | K34: 21 | L34: 36 | N34: 55 | O34: 75 | P34: 130 | R34: 295 | S34: 271 | T34: 566 | V34: 820 | W34: 245 | X34: 1065 | Z34: 517 | AA34: 805 | AB34: 1322 | AD34: 217 | AE34: 156 | AF34: 373 | AH34: 1753.032564 | AI34: 1740.487895 | AJ34: 1724.843292 | AL34: 197.1854086 | AM34: 291.967901 | AN34: 236.1392449 | AP34: 53.96329674 | AQ34: 107.1328262 | AR34: 76.63443343 | AT34: 15.2962126 | AU34: 21.33330801 | AV34: 18.24024558
A35: Salazie | B35: 622 | C35: 613 | D35: 1235 | F35: 69 | G35: 86 | H35: 155 | J35: 11 | K35: 10 | L35: 21 | N35: 31 | O35: 15 | P35: 46 | R35: 95 | S35: 94 | T35: 189 | V35: 249 | W35: 93 | X35: 342 | Z35: 179 | AA35: 325 | AB35: 504 | AD35: 99 | AE35: 101 | AF35: 200 | AH35: 1832.969288 | AI35: 2059.027724 | AJ35: 1916.541153 | AL35: 246.7619043 | AM35: 382.1541538 | AN35: 304.3988468 | AP35: 93.85075767 | AQ35: 46.19002805 | AR35: 70.72087993 | AT35: 37.00891125 | AU35: 32.54294446 | AV35: 34.71665327
A36: Le Tampon | B36: 5810 | C36: 5046 | D36: 10856 | F36: 519 | G36: 653 | H36: 1172 | J36: 36 | K36: 39 | L36: 75 | N36: 237 | O36: 228 | P36: 465 | R36: 963 | S36: 1188 | T36: 2151 | V36: 2458 | W36: 865 | X36: 3323 | Z36: 1499 | AA36: 2344 | AB36: 3843 | AD36: 890 | AE36: 649 | AF36: 1539 | AH36: 1537.288488 | AI36: 1554.227737 | AJ36: 1541.433327 | AL36: 161.4058251 | AM36: 241.8712781 | AN36: 198.5915433 | AP36: 65.51639367 | AQ36: 77.57171854 | AR36: 70.53203398 | AT36: 9.424189386 | AU36: 12.33177212 | AV36: 10.78615872
A37: Les Trois-Bassins | B37: 558 | C37: 442 | D37: 1000 | F37: 54 | G37: 62 | H37: 116 | J37: <5 | K37: 15 | L37: 17 | N37: 26 | O37: 12 | P37: 38 | R37: 83 | S37: 95 | T37: 178 | V37: 215 | W37: 95 | X37: 310 | Z37: 164 | AA37: 188 | AB37: 352 | AD37: 96 | AE37: 64 | AF37: 160 | AH37: 1735.786839 | AI37: 1545.691023 | AJ37: 1631.865823 | AL37: 199.4973467 | AM37: 261.6018744 | AN37: 228.2704304 | AP37: 79.74486734 | AQ37: 40.82486231 | AR37: 60.68989111 | AT37: 5.447722247 | AU37: 38.62886227 | AV37: 22.27120115
A38: Cilaos | B38: 608 | C38: 524 | D38: 1132 | F38: 53 | G38: 55 | H38: 108 | J38: 6 | K38: <5 | L38: 9 | N38: 26 | O38: 26 | P38: 52 | R38: 86 | S38: 64 | T38: 150 | V38: 186 | W38: 72 | X38: 258 | Z38: 195 | AA38: 303 | AB38: 498 | AD38: 141 | AE38: 85 | AF38: 226 | AH38: 2288.829914 | AI38: 2300.307472 | AJ38: 2264.964366 | AL38: 201.6081642 | AM38: 266.4930607 | AN38: 232.5997606 | AP38: 99.36985828 | AQ38: 123.9759938 | AR38: 106.5297698 | AT38: 20.23075365 | AU38: 19.25005922 | AV38: 19.00245265
A39: NORD | B39: =B34+B25+B32 -> 17151 | C39: =C34+C25+C32 -> 14248 | D39: =D34+D25+D32 -> 31399 | F39: =F34+F25+F32 -> 1510 | G39: =G34+G25+G32 -> 1874 | H39: 3384 | J39: 154 | K39: 177 | L39: 331 | N39: =N34+N25+N32 -> 742 | O39: =O34+O25+O32 -> 630 | P39: 1372 | R39: =R34+R25+R32 -> 2653 | S39: =S34+S25+S32 -> 2836 | T39: 5489 | V39: =V34+V25+V32 -> 7086 | W39: =W34+W25+W32 -> 2554 | X39: 9640 | Z39: =Z34+Z25+Z32 -> 4949 | AA39: =AA34+AA25+AA32 -> 6923 | AB39: 11872 | AD39: =AD34+AD25+AD32 -> 2463 | AE39: =AE34+AE25+AE32 -> 1935 | AF39: 4398 | AH39: 1703.373583 | AI39: 1795.903265 | AJ39: 1726.273792 | AL39: 175.2430744 | AM39: 278.5519724 | AN39: 220.012876 | AP39: 76.01069218 | AQ39: 86.61094801 | AR39: 79.82452294 | AT39: 15.50514417 | AU39: 21.43925296 | AV39: 18.09579163
A40: EST | B40: =B16+B20+B23+B24+B33+B35 -> 11118 | C40: =C16+C20+C23+C24+C33+C35 -> 9646 | D40: =D16+D20+D23+D24+D33+D35 -> 20764 | F40: =F16+F20+F23+F24+F33+F35 -> 1075 | G40: =G16+G20+G23+G24+G33+G35 -> 1389 | H40: 2464 | J40: 169 | K40: 174 | L40: 343 | N40: =N16+N20+N23+N24+N33+N35 -> 455 | O40: =O16+O20+O23+O24+O33+O35 -> 339 | P40: 794 | R40: =R16+R20+R23+R24+R33+R35 -> 1732 | S40: =S16+S20+S23+S24+S33+S35 -> 1907 | T40: 3639 | V40: =V16+V20+V23+V24+V33+V35 -> 4704 | W40: =W16+W20+W23+W24+W33+W35 -> 1783 | X40: 6487 | Z40: =Z16+Z20+Z23+Z24+Z33+Z35 -> 3143 | AA40: =AA16+AA20+AA23+AA24+AA33+AA35 -> 4583 | AB40: 7726 | AD40: =AD16+AD20+AD23+AD24+AD33+AD35 -> 1539 | AE40: =AE16+AE20+AE23+AE24+AE33+AE35 -> 1373 | AF40: 2912 | AH40: 1893.927106 | AI40: 2040.290704 | AJ40: 1948.210113 | AL40: 236.7798917 | AM40: 356.6003235 | AN40: 291.1932308 | AP40: 82.83166562 | AQ40: 85.34156886 | AR40: 82.49568539 | AT40: 30.60568076 | AU40: 34.9672881 | AV40: 32.7819457
A41: OUEST | B41: =B21+B22+B27+B29+B37 -> 16894 | C41: =C21+C22+C27+C29+C37 -> 14114 | D41: =D21+D22+D27+D29+D37 -> 31008 | F41: =F21+F22+F27+F29+F37 -> 1431 | G41: =G21+G22+G27+G29+G37 -> 1798 | H41: 3229 | J41: 160 | K41: 165 | L41: 325 | N41: =N21+N22+N27+N29+N37 -> 663 | O41: =O21+O22+O27+O29+O37 -> 685 | P41: 1348 | R41: =R21+R22+R27+R29+R37 -> 2705 | S41: =S21+S22+S27+S29+S37 -> 3006 | T41: 5711 | V41: =V21+V22+V27+V29+V37 -> 7249 | W41: =W21+W22+W27+W29+W37 -> 2481 | X41: 9730 | Z41: =Z21+Z22+Z27+Z29+Z37 -> 4615 | AA41: =AA21+AA22+AA27+AA29+AA37 -> 6705 | AB41: 11320 | AD41: =AD21+AD22+AD27+AD29+AD37 -> 2325 | AE41: =AE21+AE22+AE27+AE29+AE37 -> 1922 | AF41: 4247 | AH41: 1682.00252 | AI41: 1660.037683 | AJ41: 1660.676935 | AL41: 173.5982879 | AM41: 253.2863874 | AN41: 211.881934 | AP41: 68.65988004 | AQ41: 90.48261124 | AR41: 77.39728206 | AT41: 16.91035189 | AU41: 18.23716217 | AV41: 17.70566743
A42: SUD | B42: =B15+B17+B18+B19+B26+B28+B30+B31+B36+B38 -> 22615 | C42: =C15+C17+C18+C19+C26+C28+C30+C31+C36+C38 -> 20257 | D42: =D15+D17+D18+D19+D26+D28+D30+D31+D36+D38 -> 42872 | F42: =F15+F17+F18+F19+F26+F28+F30+F31+F36+F38 -> 1959 | G42: =G15+G17+G18+G19+G26+G28+G30+G31+G36+G38 -> 2624 | H42: 4583 | J42: 126 | K42: 151 | L42: 277 | N42: =N15+N17+N18+N19+N26+N28+N30+N31+N36+N38 -> 911 | O42: =O15+O17+O18+O19+O26+O28+O30+O31+O36+O38 -> 876 | P42: 1787 | R42: =R15+R17+R18+R19+R26+R28+R30+R31+R36+R38 -> 3917 | S42: =S15+S17+S18+S19+S26+S28+S30+S31+S36+S38 -> 4361 | T42: 8278 | V42: =V15+V17+V18+V19+V26+V28+V30+V31+V36+V38 -> 9320 | W42: =W15+W17+W18+W19+W26+W28+W30+W31+W36+W38 -> 3628 | X42: 12948 | Z42: =Z15+Z17+Z18+Z19+Z26+Z28+Z30+Z31+Z36+Z38 -> 5749 | AA42: =AA15+AA17+AA18+AA19+AA26+AA28+AA30+AA31+AA36+AA38 -> 9352 | AB42: 15101 | AD42: =AD15+AD17+AD18+AD19+AD26+AD28+AD30+AD31+AD36+AD38 -> 3629 | AE42: =AE15+AE17+AE18+AE19+AE26+AE28+AE30+AE31+AE36+AE38 -> 2916 | AF42: 6545 | AH42: 1523.713351 | AI42: 1595.38835 | AJ42: 1550.310629 | AL42: 156.0871665 | AM42: 244.462293 | AN42: 197.3696451 | AP42: 63.56329933 | AQ42: 76.28463032 | AR42: 68.79702228 | AT42: 8.60177555 | AU42: 11.71141708 | AV42: 10.0985859
A43: LA REUNION | B43: =SUM(B39:B42)+B44 -> 67800 | C43: =SUM(C39:C42)+C44 -> 58305 | D43: 126105 | F43: =SUM(F39:F42)+F44 -> 5979 | G43: =SUM(G39:G42)+G44 -> 7690 | H43: =SUM(H39:H42)+H44 -> 13669 | J43: 609 | K43: 667 | L43: 1276 | N43: =SUM(N39:N42)+N44 -> 2775 | O43: =SUM(O39:O42)+O44 -> 2531 | P43: =SUM(P39:P42)+P44 -> 5306 | R43: =SUM(R39:R42) -> 11007 | S43: =SUM(S39:S42)+S44 -> 12112 | T43: =SUM(T39:T42)+T44 -> 23119 | V43: =SUM(V39:V42)+V44 -> 28364 | W43: =SUM(W39:W42)+W44 -> 10465 | X43: =SUM(X39:X42)+X44 -> 38829 | Z43: =SUM(Z39:Z42)+Z44 -> 18467 | AA43: =SUM(AA39:AA42)+AA44 -> 27581 | AB43: =SUM(AB39:AB42)+AB44 -> 46048 | AD43: =SUM(AD39:AD42)+AD44 -> 9962 | AE43: =SUM(AE39:AE42)+AE44 -> 8147 | AF43: =SUM(AF39:AF42)+AF44 -> 18109 | AH43: 1656.783261 | AI43: 1718.040479 | AJ43: 1674.078175 | AL43: 175.7731069 | AM43: 269.6210653 | AN43: 218.8917364 | AP43: 70.57766534 | AQ43: 83.49797528 | AR43: 75.49309514 | AT43: 15.33531584 | AU43: 18.84024274 | AV43: 17.01706064
B44: 22 | C44: 40 | D44: 62 | F44: 4 | G44: 5 | H44: 9 | N44: 4 | O44: 1 | P44: 5 | S44: 2 | T44: 2 | V44: 5 | W44: 19 | X44: 24 | Z44: 11 | AA44: 18 | AB44: 29 | AD44: 6 | AE44: 1 | AF44: 7

Sheet Mortalité
B10: Sources et année : Selon l'indicatateur, reportez-vous au tableau de la page SOMMAIRE (cliquez sur l'intitulé de chaque colonne)
A13: COMMUNE | B13: Nombre moyen de décès | F13: Nombre moyen de décès prématurés (survenant avant 65 ans) | J13: Part de décès prématurés pour 100 décès | N13: Nombre moyen de décès par maladies cardiovasculaires | R13: Nombre moyen de décès par tumeur | V13: Taux standardisé de mortalité (pour 100 000 habitants) | Z13: Taux standardisé de mortalité par maladies cardiovasculaires (pour 100 000 habitants) | AD13: Taux standardisé de mortalité par tumeur (pour 100 000 habitants) | AH13: Taux standardisé de mortalité prématurée (pour 100 000 habitants)
B14: Femmes | C14: Hommes | D14: Ensemble | F14: Femmes | G14: Hommes | H14: Ensemble | J14: Femmes | K14: Hommes | L14: Ensemble | N14: Femmes | O14: Hommes | P14: Ensemble | R14: Femmes | S14: Hommes | T14: Ensemble | V14: Femmes | W14: Hommes | X14: Ensemble | Z14: Femmes | AA14: Hommes | AB14: Ensemble | AD14: Femmes | AE14: Hommes | AF14: Ensemble | AH14: Femmes | AI14: Hommes | AJ14: Ensemble
A15: Les Avirons | B15: 26.66666667 | C15: 26.33333333 | D15: 53 | F15: 4 | G15: 9 | H15: 13 | J15: 15 | K15: 34.17721519 | L15: 24.52830189 | N15: 6.333333333 | O15: 6.333333333 | P15: 12.66666667 | R15: ns | S15: 5.666666667 | T15: 9.333333333 | V15: 642.4750148 | W15: 742.6019015 | X15: 709.1849181 | Z15: 165.0493357 | AA15: 198.788492 | AB15: 182.2027447 | AD15: 79.52035533 | AE15: 133.2993487 | AF15: 112.019222 | AH15: 68.01931381 | AI15: 154.6340563 | AJ15: 109.4788855
A16: Bras-Panon | B16: 31.33333333 | C16: 28.66666667 | D16: 60 | F16: 7.333333333 | G16: 8.333333333 | H16: 15.66666667 | J16: 23.40425532 | K16: 29.06976744 | L16: 26.11111111 | N16: 10 | O16: 6.666666667 | P16: 16.66666667 | R16: 7.666666667 | S16: 8.666666667 | T16: 16.33333333 | V16: 758.1598345 | W16: 1118.922064 | X16: 896.5205589 | Z16: 262.6908843 | AA16: 255.3632045 | AB16: 275.0342868 | AD16: 186.9603079 | AE16: 326.1475512 | AF16: 235.0831171 | AH16: 105.0122149 | AI16: 135.5642418 | AJ16: 120.2161144
A17: Entre-Deux | B17: 31 | C17: 31.33333333 | D17: 62.33333333 | F17: 3 | G17: 7.666666667 | H17: 11 | J17: 10.75268817 | K17: 24.46808511 | L17: 17.64705882 | N17: 6 | O17: 6.666666667 | P17: 12.66666667 | R17: 8.333333333 | S17: 12.33333333 | T17: 20.66666667 | V17: 902.4408593 | W17: 1329.413548 | X17: 1079.783338 | Z17: 175.6338782 | AA17: 272.1597822 | AB17: 213.9122005 | AD17: 256.9547581 | AE17: 548.2692474 | AF17: 374.9681978 | AH17: 96.6817817 | AI17: 231.4129529 | AJ17: 164.5099789
A18: L'Étang-Salé | B18: 27 | C18: 43.33333333 | D18: 70.33333333 | F18: 4.333333333 | G18: 17 | H18: 21.33333333 | J18: 16.04938272 | K18: 39.23076923 | L18: 30.33175355 | N18: 9.666666667 | O18: 9 | P18: 18.66666667 | R18: 5 | S18: 11.66666667 | T18: 16.66666667 | V18: 577.2977173 | W18: 1126.449585 | X18: 814.6057577 | Z18: 216.6614428 | AA18: 334.2199225 | AB18: 257.2714244 | AD18: 98.25115788 | AE18: 258.0003455 | AF18: 170.9326629 | AH18: 58.79166283 | AI18: 227.4204766 | AJ18: 144.0188041
A19: Petite-Île | B19: 30.66666667 | C19: 47.33333333 | D19: 78 | F19: 6.333333333 | G19: 16 | H19: 22.33333333 | J19: 20.65217391 | K19: 33.8028169 | L19: 28.63247863 | N19: 9 | O19: 12.66666667 | P19: 21.66666667 | R19: 6.666666667 | S19: 13.33333333 | T19: 20 | V19: 593.5280984 | W19: 1036.814774 | X19: 797.09489 | Z19: 181.8194235 | AA19: 317.4427518 | AB19: 241.8004455 | AD19: 122.8707402 | AE19: 263.4071458 | AF19: 187.5930152 | AH19: 96.76600125 | AI19: 238.8413969 | AJ19: 167.021229
A20: La Plaine-des-Palmistes | B20: 14.33333333 | C20: 15.33333333 | D20: 29.66666667 | F20: 3 | G20: 5.666666667 | H20: 9 | J20: 23.25581395 | K20: 36.95652174 | L20: 30.33707865 | N20: 5 | O20: 3 | P20: 8.333333333 | R20: ns | S20: ns | T20: 5.666666667 | V20: 577.9925791 | W20: 909.2310414 | X20: 716.8276107 | Z20: 200.3652271 | AA20: 262.106102 | AB20: 220.7526913 | AD20: 127.8954409 | AE20: 124.3956628 | AF20: 127.0479283 | AH20: 107.9777939 | AI20: 186.4746432 | AJ20: 147.8001811
A21: Le Port | B21: 83.66666667 | C21: 108 | D21: 191.6666667 | F21: 22.66666667 | G21: 50.66666667 | H21: 73.33333333 | J21: 27.09163347 | K21: 46.91358025 | L21: 38.26086957 | N21: 20 | O21: 19 | P21: 39 | R21: 19.33333333 | S21: 39.33333333 | T21: 58.66666667 | V21: 625.1685256 | W21: 1120.713981 | X21: 823.0342196 | Z21: 160.0198755 | AA21: 220.0746298 | AB21: 180.9356076 | AD21: 136.8527528 | AE21: 394.3262821 | AF21: 238.7766089 | AH21: 125.7075107 | AI21: 303.1036593 | AJ21: 210.2782639
A22: La Possession | B22: 53.33333333 | C22: 67.66666667 | D22: 121 | F22: 13.33333333 | G22: 29 | H22: 42.33333333 | J22: 25 | K22: 42.85714286 | L22: 34.9862259 | N22: 15.33333333 | O22: 15 | P22: 30.33333333 | R22: 11.66666667 | S22: 23 | T22: 34.66666667 | V22: 643.7652255 | W22: 845.3738902 | X22: 746.8456791 | Z22: 204.357021 | AA22: 219.0849729 | AB22: 214.6127836 | AD22: 106.9216172 | AE22: 255.9611268 | AF22: 173.7835447 | AH22: 84.71739932 | AI22: 182.4253878 | AJ22: 133.6313527
A23: Saint-André | B23: 125 | C23: 144 | D23: 269 | F23: 29 | G23: 66 | H23: 95 | J23: 23.2 | K23: 45.83333333 | L23: 35.31598513 | N23: 38 | O23: 26.33333333 | P23: 64.33333333 | R23: 25 | S23: 41 | T23: 66 | V23: 751.3700419 | W23: 1148.594091 | X23: 900.2273223 | Z23: 232.4451019 | AA23: 238.2711529 | AB23: 232.2045048 | AD23: 146.6868164 | AE23: 330.7796631 | AF23: 217.11298 | AH23: 104.1578855 | AI23: 260.97932 | AJ23: 178.6541382
A24: Saint-Benoît | B24: 86.33333333 | C24: 111.3333333 | D24: 197.6666667 | F24: 23.66666667 | G24: 49.33333333 | H24: 73 | J24: 27.41312741 | K24: 44.31137725 | L24: 36.93086003 | N24: 21 | O24: 25.33333333 | P24: 46.33333333 | R24: 20.66666667 | S24: 26.66666667 | T24: 47.33333333 | V24: 678.4701405 | W24: 1048.55322 | X24: 847.1773573 | Z24: 174.1610069 | AA24: 262.3933378 | AB24: 215.0966568 | AD24: 153.0382817 | AE24: 242.8546855 | AF24: 194.1320426 | AH24: 122.0855973 | AI24: 281.816133 | AJ24: 198.2299726
A25: Saint-Denis | B25: 363.6666667 | C25: 401 | D25: 764.6666667 | F25: 76 | G25: 163.3333333 | H25: 239.3333333 | J25: 20.89825848 | K25: 40.73150457 | L25: 31.29904098 | N25: 95.33333333 | O25: 87.33333333 | P25: 182.6666667 | R25: 88.33333333 | S25: 116 | T25: 204.3333333 | V25: 570.1648353 | W25: 954.0340962 | X25: 725.8150863 | Z25: 153.7549414 | AA25: 226.2922068 | AB25: 183.4830541 | AD25: 134.6004309 | AE25: 275.9034068 | AF25: 187.3256627 | AH25: 94.78260018 | AI25: 233.8431974 | AJ25: 159.2406532
A26: Saint-Joseph | B26: 102.6666667 | C26: 133 | D26: 235.6666667 | F26: 20.66666667 | G26: 46.66666667 | H26: 67.33333333 | J26: 20.12987013 | K26: 35.0877193 | L26: 28.57142857 | N26: 26.66666667 | O26: 32.33333333 | P26: 59 | R26: 21.66666667 | S26: 33.33333333 | T26: 55 | V26: 584.9361353 | W26: 1005.379793 | X26: 777.3126835 | Z26: 150.4345449 | AA26: 266.5828241 | AB26: 200.0448874 | AD26: 122.6097257 | AE26: 245.0407452 | AF26: 178.2267738 | AH26: 101.7832573 | AI26: 245.5122698 | AJ26: 171.200565
A27: Saint-Leu | B27: 67.33333333 | C27: 97.33333333 | D27: 164.6666667 | F27: 14.33333333 | G27: 38.66666667 | H27: 53 | J27: 21.28712871 | K27: 39.7260274 | L27: 32.18623482 | N27: 18.33333333 | O27: 23 | P27: 41.33333333 | R27: 17.33333333 | S27: 27.33333333 | T27: 44.66666667 | V27: 558.7768126 | W27: 1018.682778 | X27: 756.6076398 | Z27: 156.2857328 | AA27: 264.5508576 | AB27: 204.6698395 | AD27: 137.0079679 | AE27: 262.1005302 | AF27: 191.0442074 | AH27: 82.05386141 | AI27: 227.0180974 | AJ27: 154.2017458
A28: Saint-Louis | B28: 136.6666667 | C28: 143.3333333 | D28: 280 | F28: 28 | G28: 57 | H28: 85 | J28: 20.48780488 | K28: 39.76744186 | L28: 30.35714286 | N28: 35.33333333 | O28: 26.33333333 | P28: 61.66666667 | R28: 28.33333333 | S28: 43.33333333 | T28: 71.66666667 | V28: 687.75962 | W28: 1042.609017 | X28: 834.4158658 | Z28: 180.4389634 | AA28: 213.3062352 | AB28: 195.323154 | AD28: 140.8905424 | AE28: 300.7918571 | AF28: 203.5441069 | AH28: 102.7783507 | AI28: 232.0330785 | AJ28: 165.2642096
A29: Saint-Paul | B29: 215.3333333 | C29: 274.6666667 | D29: 490 | F29: 52.33333333 | G29: 114 | H29: 166.3333333 | J29: 24.30340557 | K29: 41.50485437 | L29: 33.94557823 | N29: 56.33333333 | O29: 60 | P29: 116.3333333 | R29: 48.66666667 | S29: 72 | T29: 120.6666667 | V29: 528.0056288 | W29: 914.8706828 | X29: 692.1597102 | Z29: 144.7898292 | AA29: 222.5566326 | AB29: 178.1421078 | AD29: 114.7717067 | AE29: 226.4764022 | AF29: 162.8690224 | AH29: 94.40183121 | AI29: 209.4827335 | AJ29: 150.9944401
A30: Saint-Pierre | B30: 216.3333333 | C30: 238.3333333 | D30: 454.6666667 | F30: 53.33333333 | G30: 100.6666667 | H30: 154 | J30: 24.65331279 | K30: 42.23776224 | L30: 33.87096774 | N30: 56.66666667 | O30: 51 | P30: 107.6666667 | R30: 49.66666667 | S30: 67.66666667 | T30: 117.3333333 | V30: 699.2640509 | W30: 1034.619927 | X30: 842.4068427 | Z30: 189.3084824 | AA30: 242.2627803 | AB30: 211.9710915 | AD30: 156.2910744 | AE30: 285.6983719 | AF30: 208.6453592 | AH30: 118.6084085 | AI30: 250.9384789 | AJ30: 181.1521179
A31: Saint-Philippe | B31: 11 | C31: 17.33333333 | D31: 28.33333333 | F31: 2 | G31: 8.666666667 | H31: 11 | J31: 21.21212121 | K31: 50 | L31: 38.82352941 | N31: 5 | O31: 4 | P31: 8.666666667 | R31: ns | S31: 5 | T31: 6.666666667 | V31: 563.4107437 | W31: 977.2036031 | X31: 756.500578 | Z31: 233.9039865 | AA31: 288.664399 | AB31: 260.1400404 | AD31: 67.40669643 | AE31: 293.6539111 | AF31: 166.1530806 | AH31: 83.20937816 | AI31: 295.4727894 | AJ31: 191.7924719
A32: Sainte-Marie | B32: 53.33333333 | C32: 77.66666667 | D32: 131 | F32: 14.66666667 | G32: 36.66666667 | H32: 51.33333333 | J32: 27.5 | K32: 47.21030043 | L32: 39.18575064 | N32: 13.33333333 | O32: 24.66666667 | P32: 38 | R32: 11.66666667 | S32: 16 | T32: 27.66666667 | V32: 547.9415654 | W32: 872.580191 | X32: 698.4523105 | Z32: 149.6166596 | AA32: 291.9029903 | AB32: 212.3461003 | AD32: 99.83697034 | AE32: 150.4470229 | AF32: 125.1046932 | AH32: 83.62839228 | AI32: 224.9299193 | AJ32: 151.7591073
A33: Sainte-Rose | B33: 18 | C33: 24.33333333 | D33: 42.33333333 | F33: 4 | G33: 9.333333333 | H33: 13.33333333 | J33: 22.22222222 | K33: 38.35616438 | L33: 31.49606299 | N33: 4 | O33: 4.666666667 | P33: 8.666666667 | R33: 5.666666667 | S33: 9 | T33: 14.66666667 | V33: 664.1120852 | W33: 949.2139251 | X33: 806.0168202 | Z33: 152.9997487 | AA33: 187.3203898 | AB33: 172.6218773 | AD33: 204.5717219 | AE33: 332.3439859 | AF33: 267.6756581 | AH33: 116.3284413 | AI33: 264.3387454 | AJ33: 191.5219719
A34: Sainte-Suzanne | B34: 50.33333333 | C34: 61.66666667 | D34: 112 | F34: 13 | G34: 20.66666667 | H34: 33.66666667 | J34: 25.82781457 | K34: 33.51351351 | L34: 30.05952381 | N34: 15.66666667 | O34: 16.66666667 | P34: 32.33333333 | R34: 9.333333333 | S34: 17 | T34: 26.33333333 | V34: 722.5599013 | W34: 1208.097988 | X34: 933.4079754 | Z34: 246.1493002 | AA34: 337.9773598 | AB34: 291.970568 | AD34: 119.9199405 | AE34: 304.3731338 | AF34: 201.3102543 | AH34: 108.181301 | AI34: 196.0826757 | AJ34: 149.2749833
A35: Salazie | B35: 20 | C35: 31.66666667 | D35: 51.66666667 | F35: 3 | G35: 11 | H35: 14 | J35: 15 | K35: 34.73684211 | L35: 27.09677419 | N35: 4 | O35: 5.333333333 | P35: 9.333333333 | R35: 5 | S35: 9 | T35: 14 | V35: 774.6992045 | W35: 1375.266172 | X35: 1057.397927 | Z35: 147.1243868 | AA35: 251.444831 | AB35: 190.8191634 | AD35: 195.2074837 | AE35: 398.7093335 | AF35: 290.3198337 | AH35: 84.08595951 | AI35: 296.7693619 | AJ35: 195.0979693
A36: Le Tampon | B36: 184.3333333 | C36: 227.3333333 | D36: 411.6666667 | F36: 41.66666667 | G36: 88.66666667 | H36: 130.3333333 | J36: 22.6039783 | K36: 39.00293255 | L36: 31.65991903 | N36: 48.66666667 | O36: 48.66666667 | P36: 97.33333333 | R36: 43.33333333 | S36: 61.33333333 | T36: 104.6666667 | V36: 622.5076982 | W36: 1026.07056 | X36: 798.2029947 | Z36: 170.7340323 | AA36: 239.2051262 | AB36: 201.5015769 | AD36: 137.9336497 | AE36: 257.5399091 | AF36: 188.555578 | AH36: 103.255352 | AI36: 240.1898667 | AJ36: 168.8156705
A37: Les Trois-Bassins | B37: 18.33333333 | C37: 25.66666667 | D37: 44 | F37: 3 | G37: 10 | H37: 13.33333333 | J37: 18.18181818 | K37: 38.96103896 | L37: 30.3030303 | N37: 4 | O37: 4 | P37: 7.666666667 | R37: ns | S37: 7.333333333 | T37: 11.33333333 | V37: 650.0763773 | W37: 1233.626091 | X37: 908.0913703 | Z37: 167.6076296 | AA37: 146.5537131 | AB37: 168.6032533 | AD37: 130.8890261 | AE37: 334.7033714 | AF37: 222.45328 | AH37: 86.97497073 | AI37: 276.6842448 | AJ37: 187.6121143
A38: Cilaos | B38: 14.33333333 | C38: 22.33333333 | D38: 36.66666667 | F38: 3 | G38: 11.33333333 | H38: 13.66666667 | J38: 16.27906977 | K38: 50.74626866 | L38: 37.27272727 | N38: 3 | O38: 4.666666667 | P38: 8.333333333 | R38: ns | S38: 5.666666667 | T38: 8.666666667 | V38: 552.163769 | W38: 1175.595036 | X38: 823.5136716 | Z38: 141.9903094 | AA38: 295.8853477 | AB38: 206.5400433 | AD38: 121.3315653 | AE38: 298.1801263 | AF38: 195.0330738 | AH38: 85.69474183 | AI38: 370.8218118 | AJ38: 236.2690094
A39: NORD | B39: =B34+B25+B32 -> 467.3333333 | C39: =C34+C25+C32 -> 540.3333333 | D39: =D34+D25+D32 -> 1007.666667 | F39: =F34+F25+F32 -> 103.6666667 | G39: =G34+G25+G32 -> 220.6666667 | H39: 324.3333333 | J39: =F39/B39*100 -> 22.18259629 | K39: =G39/C39*100 -> 40.83898828 | L39: 32.18656963 | N39: =N34+N25+N32 -> 124.3333333 | O39: =O34+O25+O32 -> 128.6666667 | P39: =P34+P25+P32 -> 253 | R39: =R34+R25+R32 -> 109.3333333 | S39: =S34+S25+S32 -> 149 | T39: 258.3333333 | V39: 579 | W39: 964 | X39: 739 | Z39: 160.6494142 | AA39: 246.6616485 | AB39: 196.867319 | AD39: 128.7074357 | AE39: 261.2888691 | AF39: 180.6619023 | AH39: 94.30239524 | AI39: 226.9876242 | AJ39: 156.2969924
A40: EST | B40: =B16+B20+B23+B24+B33+B35 -> 295 | C40: =C16+C20+C23+C24+C33+C35 -> 355.3333333 | D40: =D16+D20+D23+D24+D33+D35 -> 650.3333333 | F40: =F43-(F39+F41+F42) -> 70.33333333 | G40: =G16+G20+G23+G24+G33+G35 -> 149.6666667 | H40: 220 | J40: =F40/B40*100 -> 23.84180791 | K40: =G40/C40*100 -> 42.12007505 | L40: =H40/D40*100 -> 33.82880574 | N40: =N16+N20+N23+N24+N33+N35 -> 82 | O40: =O16+O20+O23+O24+O33+O35 -> 71.33333333 | P40: =P16+P20+P23+P24+P33+P35 -> 153.6666667 | R40: =R43-(R39+R41+R42) -> 67.66666667 | S40: =S43-(S39+S41+S42) -> 96.66666667 | T40: =T16+T20+T23+T24+T33+T35 -> 164 | V40: 712 | W40: 1082 | X40: 875 | Z40: 203.3729552 | AA40: 239.3575313 | AB40: 222.8708365 | AD40: 157.4972688 | AE40: 289.0341304 | AF40: 214.9467526 | AH40: 108.972926 | AI40: 252.497381 | AJ40: 178.1038024
A41: OUEST | B41: =B21+B22+B27+B29+B37 -> 438 | C41: =C21+C22+C27+C29+C37 -> 573.3333333 | D41: =D21+D22+D27+D29+D37 -> 1011.333333 | F41: 106 | G41: =G21+G22+G27+G29+G37 -> 242.3333333 | H41: 348.3333333 | J41: 24.20091324 | K41: 42.26744186 | L41: 34.44297956 | N41: 114 | O41: =O21+O22+O27+O29+O37 -> 121 | P41: =P21+P22+P27+P29+P37 -> 234.6666667 | R41: 101 | S41: =S21+S22+S27+S29+S37 -> 169 | T41: 270 | V41: 564.0986304 | W41: 965.8929411 | X41: 736.4596085 | Z41: 155.5046527 | AA41: 224.862432 | AB41: 185.7899448 | AD41: 122.8341361 | AE41: 265.2575371 | AF41: 183.4969243 | AH41: 95.41925742 | AI41: 225.5109093 | AJ41: 159.444358
A42: SUD | B42: =B15+B17+B18+B19+B26+B28+B30+B31+B36+B38 -> 780.6666667 | C42: =C15+C17+C18+C19+C26+C28+C30+C31+C36+C38 -> 930 | D42: =D15+D17+D18+D19+D26+D28+D30+D31+D36+D38 -> 1710.666667 | F42: 166 | G42: =G15+G17+G18+G19+G26+G28+G30+G31+G36+G38 -> 362.6666667 | H42: 529 | J42: 21.26387703 | K42: 38.99641577 | L42: 30.92361652 | N42: =N15+N17+N18+N19+N26+N28+N30+N36+N38+N31 -> 206.3333333 | O42: =O15+O17+O18+O19+O26+O28+O30+O31+O36+O38 -> 201.6666667 | P42: =P15+P17+P18+P19+P26+P28+P30+P31+P36+P38 -> 408.3333333 | R42: 171 | S42: =S15+S17+S18+S19+S26+S28+S30+S31+S36+S38 -> 259.3333333 | T42: 430.6666667 | V42: 649.257397 | W42: 1028.864536 | X42: 815.4969923 | Z42: 176.4529836 | AA42: 250.674229 | AB42: 207.6443815 | AD42: 138.3858916 | AE42: 272.9781468 | AF42: 195.6039248 | AH42: 102.7711731 | AI42: 242.053702 | AJ42: 169.9873244
A43: LA REUNION | B43: =SUM(B39:B42)+B44 -> 1981 | C43: =SUM(C39:C42)+C44 -> 2399 | D43: 4380 | F43: 446 | G43: =SUM(G39:G42)+G44 -> 975.3333333 | H43: =SUM(H39:H42)+H44 -> 1421.666667 | J43: 22.51388188 | K43: 40.65582882 | L43: 32.45814307 | N43: 527 | O43: 523 | P43: =SUM(P39:P42)+P44 -> 1049.666667 | R43: 449 | S43: 674 | T43: =SUM(T39:T42)+T44 -> 1123 | V43: 618.8586979 | W43: 1005.371623 | X43: 785.1605696 | Z43: 170.7258744 | AA43: 241.9818467 | AB43: 201.5008686 | AD43: 134.6226927 | AE43: 270.5552904 | AF43: 191.5347465 | AH43: 99.60925131 | AI43: 235.693578 | AJ43: 165.1001968

Sheet Admissions en ALD
B10: Sources et année : Selon l'indicatateur, reportez-vous au tableau de la page SOMMAIRE (cliquez sur l'intitulé de chaque colonne)
B11: *Nombre moyen d'admissions en ALD non ventilés par commune mais inclus dans le total régional
A13: COMMUNE | B13: Nombre annuel moyen d'admissions en ALD | F13: Nombre annuel moyen d'admissions en ALD pour maladies cardiovasculaires | J13: Nombre annuel moyen d'admissions en ALD pour diabète | N13: Nombre annuel moyen d'admissions en ALD pour tumeurs | R13: Nombre annuel moyen d'admissions en ALD chez les moins de 15 ans | V13: Nombre annuel moyen d'admissions en ALD chez les 15-44 ans | Z13: Nombre annuel moyen d'admissions en ALD chez les 45-74 ans | AD13: Nombre annuel moyen d'admissions en ALD chez les 75 ans et plus | AH13: Taux standaridisé d'admissions en ALD (pour 100 000 habitants) | AL13: Taux standaridisé d'admissions en ALD pour maladies cardiovasculaires (pour 100 000 habitants) | AP13: Taux standaridisé d'admissions en ALD pour tumeur (pour 100 000 habitants) | AT13: Taux standaridisé d'admissions en ALD pour diabète (pour 100 000 habitants)
B14: Femmes | C14: Hommes | D14: Ensemble | F14: Femmes | G14: Hommes | H14: Ensemble | J14: Femmes | K14: Hommes | L14: Ensemble | N14: Femmes | O14: Hommes | P14: Ensemble | R14: Femmes | S14: Hommes | T14: Ensemble | V14: Femmes | W14: Hommes | X14: Ensemble | Z14: Femmes | AA14: Hommes | AB14: Ensemble | AD14: Femmes | AE14: Hommes | AF14: Ensemble | AH14: Femmes | AI14: Hommes | AJ14: Ensemble | AL14: Femmes | AM14: Hommes | AN14: Ensemble | AP14: Femmes | AQ14: Hommes | AR14: Ensemble | AT14: Femmes | AU14: Hommes | AV14: Ensemble
A15: Les Avirons | B15: 73.33333333 | C15: 86.66666667 | D15: 160 | F15: 14.66666667 | G15: 25.33333333 | H15: 40 | J15: 18.66666667 | K15: 20.66666667 | L15: 39.33333333 | N15: 12.66666667 | O15: 15.33333333 | P15: 28 | R15: 4.666666667 | S15: 6.333333333 | T15: 11 | V15: 12.33333333 | W15: 13 | X15: 25.33333333 | Z15: 38.33333333 | AA15: 52.33333333 | AB15: 90.66666667 | AD15: 18 | AE15: 15 | AF15: 33 | AH15: 1673.463822 | AI15: 2349.464915 | AJ15: 1956.034485 | AL15: 380.9438743 | AM15: 820.4770744 | AN15: 565.5370689 | AP15: 273.8490971 | AQ15: 454.5018708 | AR15: 345.9019055 | AT15: 413.7336896 | AU15: 433.3738417 | AV15: 429.3764457
A16: Bras-Panon | B16: 95.66666667 | C16: 104.6666667 | D16: 200.3333333 | F16: 13 | G16: 27.66666667 | H16: 40.66666667 | J16: 38.33333333 | K16: 38 | L16: 76.33333333 | N16: 16.66666667 | O16: 11.66666667 | P16: 28.33333333 | R16: ns | S16: 7.333333333 | T16: 10.66666667 | V16: 19.66666667 | W16: 14 | X16: 33.66666667 | Z16: 59.33333333 | AA16: 63 | AB16: 122.3333333 | AD16: 13.33333333 | AE16: 20.33333333 | AF16: 33.66666667 | AH16: 2170.255604 | AI16: 2898.036188 | AJ16: 2475.870438 | AL16: 340.0431441 | AM16: 911.8072195 | AN16: 593.7143061 | AP16: 407.70113 | AQ16: 430.6067076 | AR16: 402.4492006 | AT16: 801.4449993 | AU16: 892.2935581 | AV16: 842.1969031
A17: Entre-Deux | B17: 41.33333333 | C17: 58 | D17: 99.33333333 | F17: 7.333333333 | G17: 18.66666667 | H17: 26 | J17: 11.33333333 | K17: 13.66666667 | L17: 25 | N17: 11 | O17: 12.33333333 | P17: 23.33333333 | R17: ns | S17: 2.333333333 | T17: ns | V17: 10.66666667 | W17: 6 | X17: 16.66666667 | Z17: 19 | AA17: 39.33333333 | AB17: 58.33333333 | AD17: 10.66666667 | AE17: 10 | AF17: 20.66666667 | AH17: 1431.173097 | AI17: 2280.732617 | AJ17: 1819.289179 | AL17: 268.1910012 | AM17: 719.5153523 | AN17: 485.8365197 | AP17: 382.4232475 | AQ17: 553.5125679 | AR17: 448.2139615 | AT17: 384.4497911 | AU17: 483.685866 | AV17: 433.4550115
A18: L'Étang-Salé | B18: 93.66666667 | C18: 113.6666667 | D18: 207.3333333 | F18: 19.66666667 | G18: 30.66666667 | H18: 50.33333333 | J18: 29 | K18: 29.66666667 | L18: 58.66666667 | N18: 13.66666667 | O18: 22 | P18: 35.66666667 | R18: 6.333333333 | S18: 6.333333333 | T18: 12.66666667 | V18: 20.66666667 | W18: 18.33333333 | X18: 39 | Z18: 44.66666667 | AA18: 72 | AB18: 116.6666667 | AD18: 22 | AE18: 17 | AF18: 39 | AH18: 1718.38102 | AI18: 2294.647841 | AJ18: 1983.363455 | AL18: 411.5395058 | AM18: 685.1800197 | AN18: 540.9859119 | AP18: 240.1605512 | AQ18: 496.0283936 | AR18: 353.408538 | AT18: 508.7037256 | AU18: 541.0812822 | AV18: 521.2189612
A19: Petite-Île | B19: 110 | C19: 136.6666667 | D19: 246.6666667 | F19: 16.66666667 | G19: 37.33333333 | H19: 54 | J19: 36 | K19: 46.33333333 | L19: 82.33333333 | N19: 21.33333333 | O19: 15.33333333 | P19: 36.66666667 | R19: ns | S19: 6 | T19: 10 | V19: 23.33333333 | W19: 20 | X19: 43.33333333 | Z19: 59 | AA19: 86 | AB19: 145 | AD19: 23.33333333 | AE19: 24.66666667 | AF19: 48 | AH19: 2120.885833 | AI19: 2857.445156 | AJ19: 2458.469889 | AL19: 354.5387623 | AM19: 913.8293996 | AN19: 600.3223298 | AP19: 392.3165508 | AQ19: 324.9249217 | AR19: 358.1894642 | AT19: 657.2730651 | AU19: 856.3773025 | AV19: 758.8210826
A20: La Plaine-des-Palmistes | B20: 37.66666667 | C20: 51 | D20: 88.66666667 | F20: 8.333333333 | G20: 13.33333333 | H20: 21.66666667 | J20: 14 | K20: 20 | L20: 34 | N20: 5 | O20: 4.666666667 | P20: 9.666666667 | R20: ns | S20: ns | T20: ns | V20: 7.666666667 | W20: 9.666666667 | X20: 17.33333333 | Z20: 18.66666667 | AA20: 35 | AB20: 53.66666667 | AD20: 9.333333333 | AE20: 4.666666667 | AF20: 14 | AH20: 1582.402246 | AI20: 2631.77528 | AJ20: 2051.576964 | AL20: 379.0898615 | AM20: 780.1647684 | AN20: 552.167251 | AP20: 208.0033591 | AQ20: 362.7347665 | AR20: 237.6196011 | AT20: 584.5110161 | AU20: 910.9561298 | AV20: 750.5871418
A21: Le Port | B21: 327.2060181 | C21: 342.2036796 | D21: 669.4096977 | F21: 63.66666667 | G21: 98.66666667 | H21: 162.3333333 | J21: 142 | K21: 102.6666667 | L21: 244.6666667 | N21: 36.33333333 | O21: 49.33333333 | P21: 85.66666667 | R21: 14.66666667 | S21: 14 | T21: 28.66666667 | V21: 74 | W21: 52 | X21: 126 | Z21: 181.8726848 | AA21: 220.3333333 | AB21: 402.2060181 | AD21: 56.33333333 | AE21: 54.87034627 | AF21: 111.2036796 | AH21: 2230.871802 | AI21: 3042.302892 | AJ21: 2556.751332 | AL21: 489.151387 | AM21: 971.7938504 | AN21: 693.0124134 | AP21: 252.7902434 | AQ21: 479.4540294 | AR21: 346.2806878 | AT21: 925.6566266 | AU21: 824.7648224 | AV21: 872.4729421
A22: La Possession | B22: 197.1273152 | C22: 224.7963204 | D22: 421.9236356 | F22: 31.66666667 | G22: 61.66666667 | H22: 93.33333333 | J22: 61 | K22: 59.33333333 | L22: 120.3333333 | N22: 38.33333333 | O22: 34 | P22: 72.33333333 | R22: 9 | S22: 15 | T22: 24 | V22: 52.66666667 | W22: 42.33333333 | X22: 95 | Z22: 105.7939818 | AA22: 137.3333333 | AB22: 243.1273152 | AD22: 29.33333333 | AE22: 30.12965373 | AF22: 59.46298707 | AH22: 1840.387127 | AI22: 2476.054432 | AJ22: 2123.067319 | AL22: 338.4372336 | AM22: 757.5892357 | AN22: 531.182377 | AP22: 349.185401 | AQ22: 433.3372892 | AR22: 379.6016893 | AT22: 568.7869238 | AU22: 567.9836785 | AV22: 570.0599279
A23: Saint-André | B23: 403.6666667 | C23: 461 | D23: 864.6666667 | F23: 68.33333333 | G23: 127.6666667 | H23: 196 | J23: 154 | K23: 157 | L23: 311 | N23: 56 | O23: 57.33333333 | P23: 113.3333333 | R23: 13 | S23: 16.66666667 | T23: 29.66666667 | V23: 93.33333333 | W23: 92 | X23: 185.3333333 | Z23: 229.3333333 | AA23: 294.6666667 | AB23: 524 | AD23: 67.33333333 | AE23: 57 | AF23: 124.3333333 | AH23: 2106.095793 | AI23: 2867.648452 | AJ23: 2427.641735 | AL23: 414.1442459 | AM23: 859.4642989 | AN23: 611.7713203 | AP23: 299.4032717 | AQ23: 402.6694081 | AR23: 340.1244997 | AT23: 748.371296 | AU23: 855.845775 | AV23: 790.5381945
A24: Saint-Benoît | B24: 265.3333333 | C24: 331.6666667 | D24: 597 | F24: 50.33333333 | G24: 85.33333333 | H24: 135.6666667 | J24: 103.3333333 | K24: 109 | L24: 212.3333333 | N24: 33.66666667 | O24: 40 | P24: 73.66666667 | R24: 11.33333333 | S24: 17 | T24: 28.33333333 | V24: 65.66666667 | W24: 63.33333333 | X24: 129 | Z24: 142.3333333 | AA24: 211 | AB24: 353.3333333 | AD24: 45.66666667 | AE24: 40.33333333 | AF24: 86 | AH24: 1906.100261 | AI24: 2904.56939 | AJ24: 2331.889648 | AL24: 411.7973822 | AM24: 836.1732954 | AN24: 595.088536 | AP24: 235.2611778 | AQ24: 392.6778498 | AR24: 298.0087753 | AT24: 697.2088472 | AU24: 854.5500142 | AV24: 765.8224718
A25: Saint-Denis | B25: 1186.666667 | C25: 1248.666667 | D25: 2435.333333 | F25: 246.6666667 | G25: 342 | H25: 588.6666667 | J25: 350.6666667 | K25: 342.6666667 | L25: 693.3333333 | N25: 204.6666667 | O25: 211 | P25: 415.6666667 | R25: 50.33333333 | S25: 66 | T25: 116.3333333 | V25: 245.6666667 | W25: 233 | X25: 478.6666667 | Z25: 633.3333333 | AA25: 772.3333333 | AB25: 1405.666667 | AD25: 254.3333333 | AE25: 176.3333333 | AF25: 430.6666667 | AH25: 1880.521697 | AI25: 2583.744837 | AJ25: 2178.275329 | AL25: 431.8864602 | AM25: 769.1474014 | AN25: 577.8771117 | AP25: 320.9482306 | AQ25: 484.5635896 | AR25: 383.566163 | AT25: 535.5731357 | AU25: 655.114588 | AV25: 585.8257843
A26: Saint-Joseph | B26: 306 | C26: 341.3333333 | D26: 647.3333333 | F26: 72 | G26: 99.66666667 | H26: 171.6666667 | J26: 87 | K26: 94.33333333 | L26: 181.3333333 | N26: 50.33333333 | O26: 52.66666667 | P26: 103 | R26: 15.33333333 | S26: 25.33333333 | T26: 40.66666667 | V26: 55.66666667 | W26: 45.66666667 | X26: 101.3333333 | Z26: 154 | AA26: 210.3333333 | AB26: 364.3333333 | AD26: 80.66666667 | AE26: 60 | AF26: 140.6666667 | AH26: 1956.689131 | AI26: 2468.391036 | AJ26: 2191.42955 | AL26: 500.2935609 | AM26: 774.0201475 | AN26: 630.7542798 | AP26: 315.268076 | AQ26: 411.2455835 | AR26: 356.8311418 | AT26: 536.582768 | AU26: 610.0107684 | AV26: 574.472099
A27: Saint-Leu | B27: 257.6666667 | C27: 287.6666667 | D27: 545.3333333 | F27: 52.66666667 | G27: 83 | H27: 135.6666667 | J27: 76 | K27: 79.33333333 | L27: 155.3333333 | N27: 46.66666667 | O27: 40.66666667 | P27: 87.33333333 | R27: 12 | S27: 15.33333333 | T27: 27.33333333 | V27: 55.33333333 | W27: 57.33333333 | X27: 112.6666667 | Z27: 137.3333333 | AA27: 174.3333333 | AB27: 311.6666667 | AD27: 53 | AE27: 40.66666667 | AF27: 93.66666667 | AH27: 1983.461772 | AI27: 2533.472835 | AJ27: 2231.826398 | AL27: 462.2409161 | AM27: 855.9541972 | AN27: 636.2471041 | AP27: 354.8910293 | AQ27: 388.5515528 | AR27: 363.8187767 | AT27: 549.1783752 | AU27: 608.2984029 | AV27: 578.1743158
A28: Saint-Louis | B28: 356 | C28: 411.3333333 | D28: 767.3333333 | F28: 67 | G28: 108.6666667 | H28: 175.6666667 | J28: 123.6666667 | K28: 124.3333333 | L28: 248 | N28: 48.66666667 | O28: 61 | P28: 109.6666667 | R28: 21.33333333 | S28: 33.33333333 | T28: 54.66666667 | V28: 75.33333333 | W28: 63 | X28: 138.3333333 | Z28: 180 | AA28: 255 | AB28: 435 | AD28: 78.66666667 | AE28: 59.33333333 | AF28: 138 | AH28: 1715.549758 | AI28: 2446.458959 | AJ28: 2030.194667 | AL28: 353.9952768 | AM28: 729.1143485 | AN28: 515.4220672 | AP28: 240.4238849 | AQ28: 398.5603919 | AR28: 307.9625414 | AT28: 577.2376738 | AU28: 693.0329665 | AV28: 628.1490642
A29: Saint-Paul | B29: 814 | C29: 919.3333333 | D29: 1733.333333 | F29: 174.6666667 | G29: 266.6666667 | H29: 441.3333333 | J29: 270 | K29: 248.3333333 | L29: 518.3333333 | N29: 135.6666667 | O29: 136 | P29: 271.6666667 | R29: 27 | S29: 42.66666667 | T29: 69.66666667 | V29: 190.6666667 | W29: 172.3333333 | X29: 363 | Z29: 419.3333333 | AA29: 561.3333333 | AB29: 980.6666667 | AD29: 175.3333333 | AE29: 142 | AF29: 317.3333333 | AH29: 1976.537299 | AI29: 2622.01741 | AJ29: 2270.2945 | AL29: 488.1400068 | AM29: 838.1647837 | AN29: 651.922802 | AP29: 325.3649241 | AQ29: 420.4677577 | AR29: 365.2665718 | AT29: 609.1604711 | AU29: 624.2543813 | AV29: 613.7801859
A30: Saint-Pierre | B30: 716.3333333 | C30: 747 | D30: 1463.333333 | F30: 135 | G30: 194.3333333 | H30: 329.3333333 | J30: 235.6666667 | K30: 211.3333333 | L30: 447 | N30: 108 | O30: 116.6666667 | P30: 224.6666667 | R30: 29.33333333 | S30: 39.33333333 | T30: 68.66666667 | V30: 167.3333333 | W30: 147 | X30: 314.3333333 | Z30: 368 | AA30: 448 | AB30: 816 | AD30: 150 | AE30: 111.6666667 | AF30: 261.6666667 | AH30: 2164.301701 | AI30: 2935.013658 | AJ30: 2472.008172 | AL30: 463.8136789 | AM30: 871.7800697 | AN30: 631.410824 | AP30: 325.7869858 | AQ30: 488.9105701 | AR30: 388.5192683 | AT30: 669.316193 | AU30: 727.1405156 | AV30: 691.602237
A31: Saint-Philippe | B31: 43.66666667 | C31: 53 | D31: 96.66666667 | F31: 13 | G31: 16.33333333 | H31: 29.33333333 | J31: 11.33333333 | K31: 15 | L31: 26.33333333 | N31: 5.666666667 | O31: 7 | P31: 12.66666667 | R31: ns | S31: ns | T31: ns | V31: 8.666666667 | W31: 11.66666667 | X31: 20.33333333 | Z31: 22.33333333 | AA31: 33.66666667 | AB31: 56 | AD31: 10.66666667 | AE31: 5.666666667 | AF31: 16.33333333 | AH31: 2137.528078 | AI31: 3053.111387 | AJ31: 2448.313718 | AL31: 743.7018749 | AM31: 861.4873303 | AN31: 810.2951976 | AP31: 261.1863763 | AQ31: 520.7581382 | AR31: 335.8878068 | AT31: 501.9926767 | AU31: 817.6221372 | AV31: 599.6994144
A32: Sainte-Marie | B32: 201.6666667 | C32: 253.3333333 | D32: 455 | F32: 31.66666667 | G32: 59.33333333 | H32: 91 | J32: 69.66666667 | K32: 84 | L32: 153.6666667 | N32: 31.66666667 | O32: 40.66666667 | P32: 72.33333333 | R32: 9.666666667 | S32: 15 | T32: 24.66666667 | V32: 47.33333333 | W32: 45.66666667 | X32: 93 | Z32: 109.6666667 | AA32: 162.6666667 | AB32: 272.3333333 | AD32: 35 | AE32: 30 | AF32: 65 | AH32: 1721.04465 | AI32: 2606.534834 | AJ32: 2100.719834 | AL32: 342.9479964 | AM32: 683.4591456 | AN32: 504.999406 | AP32: 260.5321108 | AQ32: 491.0684416 | AR32: 346.8638314 | AT32: 551.2102993 | AU32: 762.0830311 | AV32: 643.2124757
A33: Sainte-Rose | B33: 47.66666667 | C33: 56.66666667 | D33: 104.3333333 | F33: 8 | G33: 16 | H33: 24 | J33: 22.33333333 | K33: 17.66666667 | L33: 40 | N33: 5 | O33: 11.33333333 | P33: 16.33333333 | R33: ns | S33: ns | T33: ns | V33: 10.33333333 | W33: 10.33333333 | X33: 20.66666667 | Z33: 29.66666667 | AA33: 34 | AB33: 63.66666667 | AD33: 5.666666667 | AE33: 10.33333333 | AF33: 16 | AH33: 1742.784455 | AI33: 2346.680975 | AJ33: 1986.941594 | AL33: 330.9431286 | AM33: 706.8645268 | AN33: 493.6611355 | AP33: 168.3993955 | AQ33: 515.2090107 | AR33: 327.7791071 | AT33: 805.813977 | AU33: 661.4779946 | AV33: 727.0495065
A34: Sainte-Suzanne | B34: 171.6666667 | C34: 180.3333333 | D34: 352 | F34: 30.66666667 | G34: 55.33333333 | H34: 86 | J34: 67.66666667 | K34: 57 | L34: 124.6666667 | N34: 25 | O34: 23.66666667 | P34: 48.66666667 | R34: 7.333333333 | S34: 9.666666667 | T34: 17 | V34: 38.33333333 | W34: 31 | X34: 69.33333333 | Z34: 91.33333333 | AA34: 112.3333333 | AB34: 203.6666667 | AD34: 34.33333333 | AE34: 27.33333333 | AF34: 61.66666667 | AH34: 2084.458468 | AI34: 3194.859352 | AJ34: 2436.153184 | AL34: 444.4248616 | AM34: 1041.836717 | AN34: 691.9759952 | AP34: 290.845575 | AQ34: 458.4783508 | AR34: 356.9924553 | AT34: 762.4703999 | AU34: 909.1637434 | AV34: 768.4760452
A35: Salazie | B35: 48.66666667 | C35: 67.66666667 | D35: 116.3333333 | F35: 10 | G35: 22.66666667 | H35: 32.66666667 | J35: 17.66666667 | K35: 14.33333333 | L35: 32 | N35: 7.333333333 | O35: 12.66666667 | P35: 20 | R35: ns | S35: ns | T35: 6.333333333 | V35: 11.66666667 | W35: 10.66666667 | X35: 22.33333333 | Z35: 27.33333333 | AA35: 42.33333333 | AB35: 69.66666667 | AD35: 7 | AE35: 11 | AF35: 18 | AH35: 1620.194933 | AI35: 2476.546103 | AJ35: 2008.552885 | AL35: 336.03559 | AM35: 819.239367 | AN35: 576.5592779 | AP35: 255.6195023 | AQ35: 567.9927255 | AR35: 392.0889082 | AT35: 581.4633739 | AU35: 498.3892431 | AV35: 528.2323679
A36: Le Tampon | B36: 620.3333333 | C36: 690.6666667 | D36: 1311 | F36: 117 | G36: 190 | H36: 307 | J36: 189 | K36: 209.3333333 | L36: 398.3333333 | N36: 106.3333333 | O36: 101.3333333 | P36: 207.6666667 | R36: 32 | S36: 45 | T36: 77 | V36: 125.6666667 | W36: 109.6666667 | X36: 235.3333333 | Z36: 319.6666667 | AA36: 436.3333333 | AB36: 756 | AD36: 142.6666667 | AE36: 99 | AF36: 241.6666667 | AH36: 2033.627021 | AI36: 2674.479751 | AJ36: 2334.490067 | AL36: 432.7351154 | AM36: 812.6245321 | AN36: 609.5922902 | AP36: 339.1426925 | AQ36: 437.7549614 | AR36: 378.6632929 | AT36: 602.5058097 | AU36: 732.0943362 | AV36: 666.7582626
A37: Les Trois-Bassins | B37: 56.33333333 | C37: 57 | D37: 113.3333333 | F37: 8.333333333 | G37: 15 | H37: 23.33333333 | J37: 19.33333333 | K37: 16.33333333 | L37: 35.66666667 | N37: 10.66666667 | O37: 8.333333333 | P37: 19 | R37: ns | S37: ns | T37: 6.333333333 | V37: 14 | W37: 10.66666667 | X37: 24.66666667 | Z37: 25 | AA37: 36 | AB37: 61 | AD37: 13.33333333 | AE37: 8 | AF37: 21.33333333 | AH37: 1901.495563 | AI37: 2417.118958 | AJ37: 2112.219956 | AL37: 324.7276952 | AM37: 803.4866545 | AN37: 519.0682508 | AP37: 357.3245081 | AQ37: 376.8615569 | AR37: 363.8579896 | AT37: 667.9292342 | AU37: 585.6817216 | AV37: 627.6626476
A38: Cilaos | B38: 54 | C38: 55 | D38: 109 | F38: 11.66666667 | G38: 10.66666667 | H38: 22.33333333 | J38: 14.33333333 | K38: 15.66666667 | L38: 30 | N38: 10 | O38: 13.66666667 | P38: 23.66666667 | R38: ns | S38: 5.666666667 | T38: 9.333333333 | V38: 10.66666667 | W38: 8.666666667 | X38: 19.33333333 | Z38: 27.66666667 | AA38: 33.33333333 | AB38: 61 | AD38: 12 | AE38: 7.333333333 | AF38: 19.33333333 | AH38: 2278.961948 | AI38: 2891.271361 | AJ38: 2442.586379 | AL38: 513.0645992 | AM38: 834.3100429 | AN38: 550.8196184 | AP38: 429.6338851 | AQ38: 713.5365293 | AR38: 551.3573683 | AT38: 591.4515527 | AU38: 672.829116 | AV38: 635.9267339
A39: NORD | B39: =B34+B25+B32 -> 1560 | C39: =C34+C25+C32 -> 1682.333333 | D39: =D34+D25+D32 -> 3242.333333 | F39: =F34+F25+F32 -> 309 | G39: =G34+G25+G32 -> 456.6666667 | H39: =H34+H25+H32 -> 765.6666667 | J39: =J34+J25+J32 -> 488 | K39: =K34+K25+K32 -> 483.6666667 | L39: 971.6666667 | N39: =N34+N25+N32 -> 261.3333333 | O39: =O34+O25+O32 -> 275.3333333 | P39: =P34+P25+P32 -> 536.6666667 | R39: =R34+R25+R32 -> 67.33333333 | S39: =S34+S25+S32 -> 90.66666667 | T39: 158 | V39: =V34+V25+V32 -> 331.3333333 | W39: =W34+W25+W32 -> 309.6666667 | X39: 641 | Z39: =Z34+Z25+Z32 -> 834.3333333 | AA39: =AA34+AA25+AA32 -> 1047.333333 | AB39: 1881.666667 | AD39: =AD34+AD25+AD32 -> 323.6666667 | AE39: =AE34+AE25+AE32 -> 233.6666667 | AF39: 557.3333333
A40: EST | B40: =B16+B20+B23+B24+B33+B35 -> 898.6666667 | C40: =C16+C20+C23+C24+C33+C35 -> 1072.666667 | D40: =D16+D20+D23+D24+D33+D35 -> 1971.333333 | F40: =F16+F20+F23+F24+F33+F35 -> 158 | G40: =G16+G20+G23+G24+G33+G35 -> 292.6666667 | H40: =H16+H20+H23+H24+H33+H35 -> 450.6666667 | J40: =J16+J20+J23+J24+J33+J35 -> 349.6666667 | K40: =K16+K20+K23+K24+K33+K35 -> 356 | L40: 705.6666667 | N40: =N16+N20+N23+N24+N33+N35 -> 123.6666667 | O40: =O16+O20+O23+O24+O33+O35 -> 137.6666667 | P40: =P16+P20+P23+P24+P33+P35 -> 261.3333333 | R40: =R43-(R42+R41+R39) -> 33.66666667 | S40: =S43-(S42+S41+S39) -> 48.33333333 | T40: =T43-(T42+T41+T39) -> 83 | V40: =V16+V20+V23+V24+V33+V35 -> 208.3333333 | W40: =W16+W20+W23+W24+W33+W35 -> 200 | X40: 408.3333333 | Z40: =Z16+Z20+Z23+Z24+Z33+Z35 -> 506.6666667 | AA40: =AA16+AA20+AA23+AA24+AA33+AA35 -> 680 | AB40: 1186.666667 | AD40: =AD16+AD20+AD23+AD24+AD33+AD35 -> 148.3333333 | AE40: =AE16+AE20+AE23+AE24+AE33+AE35 -> 143.6666667 | AF40: 292
A41: OUEST | B41: =B21+B22+B27+B29+B37 -> 1652.333333 | C41: =C21+C22+C27+C29+C37 -> 1831 | D41: =D21+D22+D27+D29+D37 -> 3483.333333 | F41: =F21+F22+F27+F29+F37 -> 331 | G41: =G21+G22+G27+G29+G37 -> 525 | H41: =H21+H22+H27+H29+H37 -> 856 | J41: =J21+J22+J27+J29+J37 -> 568.3333333 | K41: =K21+K22+K27+K29+K37 -> 506 | L41: 1074.333333 | N41: =N21+N22+N27+N29+N37 -> 267.6666667 | O41: =O21+O22+O27+O29+O37 -> 268.3333333 | P41: =P21+P22+P27+P29+P37 -> 536 | R41: 67 | S41: 89 | T41: =T21+T22+T27+T29+T37 -> 156 | V41: =V21+V22+V27+V29+V37 -> 386.6666667 | W41: =W21+W22+W27+W29+W37 -> 334.6666667 | X41: 721.3333333 | Z41: =Z21+Z22+Z27+Z29+Z37 -> 869.3333333 | AA41: =AA21+AA22+AA27+AA29+AA37 -> 1129.333333 | AB41: 1998.666667 | AD41: =AD21+AD22+AD27+AD29+AD37 -> 327.3333333 | AE41: =AE21+AE22+AE27+AE29+AE37 -> 275.6666667 | AF41: 603 | AH41: 1997.272408 | AI41: 2644.021104 | AJ41: 2283.355307 | AL41: 462.312413 | AM41: 849.8920364 | AN41: 638.0043385 | AP41: 321.1162101 | AQ41: 424.4092394 | AR41: 363.3257763 | AT41: 645.1485448 | AU41: 643.8008696 | AV41: 642.3185258
A42: SUD | B42: =B15+B17+B18+B19+B26+B28+B30+B31+B36+B38 -> 2414.666667 | C42: =C15+C17+C18+C19+C26+C28+C30+C31+C36+C38 -> 2693.333333 | D42: =D15+D17+D18+D19+D26+D28+D30+D31+D36+D38 -> 5108 | F42: =F15+F17+F18+F19+F26+F28+F30+F31+F36+F38 -> 474 | G42: =G15+G17+G18+G19+G26+G28+G30+G31+G36+G38 -> 731.6666667 | H42: =H15+H17+H18+H19+H26+H28+H30+H31+H36+H38 -> 1205.666667 | J42: =J15+J17+J18+J19+J26+J28+J30+J31+J36+J38 -> 756 | K42: =K15+K17+K18+K19+K26+K28+K30+K31+K36+K38 -> 780.3333333 | L42: 1536.333333 | N42: =N15+N17+N18+N19+N26+N28+N30+N31+N36+N38 -> 387.6666667 | O42: =O15+O17+O18+O19+O26+O28+O30+O31+O36+O38 -> 417.3333333 | P42: =P15+P17+P18+P19+P26+P28+P30+P31+P36+P38 -> 805 | R42: 120 | S42: 172 | T42: 291 | V42: =V15+V17+V18+V19+V26+V28+V30+V31+V36+V38 -> 510.3333333 | W42: =W15+W17+W18+W19+W26+W28+W30+W31+W36+W38 -> 443 | X42: 953.3333333 | Z42: =Z15+Z17+Z18+Z19+Z26+Z28+Z30+Z31+Z36+Z38 -> 1232.666667 | AA42: =AA15+AA17+AA18+AA19+AA26+AA28+AA30+AA31+AA36+AA38 -> 1666.333333 | AB42: 2899 | AD42: =AD15+AD17+AD18+AD19+AD26+AD28+AD30+AD31+AD36+AD38 -> 548.6666667 | AE42: =AE15+AE17+AE18+AE19+AE26+AE28+AE30+AE31+AE36+AE38 -> 409.6666667 | AF42: 958.3333333 | AH42: 1964.515172 | AI42: 2631.58993 | AJ42: 2260.355241 | AL42: 429.5350725 | AM42: 797.032075 | AN42: 593.9404051 | AP42: 312.3570104 | AQ42: 443.8938288 | AR42: 366.8055505 | AT42: 589.6601927 | AU42: 683.4159923 | AV42: 633.7857164
A43: LA REUNION | B43: =SUM(B39:B42)+B44 -> 6546.666667 | C43: =SUM(C39:C42)+C44 -> 7300.333333 | D43: 13846 | F43: =SUM(F39:F42)+F44 -> 1276 | G43: =SUM(G39:G42)+G44 -> 2011 | H43: =SUM(H39:H42)+H44 -> 3287 | J43: =SUM(J39:J42)+J44 -> 2169 | K43: =SUM(K39:K42)+K44 -> 2132 | L43: =SUM(L39:L42)+L44 -> 4301 | N43: =SUM(N39:N42)+N44 -> 1044.333333 | O43: =SUM(O39:O42)+O44 -> 1103.666667 | P43: =SUM(P39:P42)+P44 -> 2148 | R43: 288 | S43: 400 | T43: 688 | V43: =SUM(V39:V42)+V44 -> 1440.666667 | W43: =SUM(W39:W42)+W44 -> 1289.333333 | X43: =SUM(X39:X42)+X44 -> 2730 | Z43: =SUM(Z39:Z42)+Z44 -> 3456 | AA43: =SUM(AA39:AA42)+AA44 -> 4535 | AB43: =SUM(AB39:AB42)+AB44 -> 7991 | AD43: =SUM(AD39:AD42)+AD44 -> 1351 | AE43: =SUM(AE39:AE42)+AE44 -> 1068.666667 | AF43: =SUM(AF39:AF42)+AF44 -> 2419.666667 | AH43: 1949.666813 | AI43: 2646.885595 | AJ43: 2254.958592 | AL43: 430.3353982 | AM43: 809.8550289 | AN43: 599.8241578 | AP43: 308.0958343 | AQ43: 442.9951216 | AR43: 362.5754359 | AT43: 613.9037615 | AU43: 691.3056594 | AV43: 648.2476007
B44: 21 | C44: 21 | D44: 41 | F44: 4 | G44: 5 | H44: 9 | J44: 7 | K44: 6 | L44: 13 | N44: 4 | O44: 5 | P44: 9 | V44: 4 | W44: 2 | X44: 6 | Z44: 13 | AA44: 12 | AB44: 25 | AD44: 3 | AE44: 6 | AF44: 9

Sheet Inscriptions en ALD
B10: Sources et année : Selon l'indicatateur, reportez-vous au tableau de la page SOMMAIRE (cliquez sur l'intitulé de chaque colonne)
B11: *Nombre d'inscrits en ALD non ventilés par commune mais inclus dans le total régional
A13: COMMUNE | B13: Nombre d'inscrits en ALD | F13: Nombre d'inscrits en ALD pour maladies cardiovasculaires | J13: Nombre d'inscrits en ALD pour diabète | N13: Nombre d'inscrits en ALD pour tumeurs | R13: Nombre d'inscrits en ALD chez les moins de 15 ans | V13: Nombre d'inscrits en ALD chez les 15-44 ans | Z13: Nombre d'inscrits en ALD chez les 45-74 ans | AD13: Nombre d'inscrits en ALD chez les 75 ans et plus | AH13: Taux standaridisé d'inscrits en ALD (pour 10 000 habitants) | AL13: Taux standaridisé d'inscrits en ALD pour maladies cardiovasculaires (pour 10 000 habitants) | AP13: Taux standaridisé d'inscrits en ALD pour tumeur (pour 10 000 habitants) | AT13: Taux standaridisé d'inscrits en ALD pour diabète (pour 10 000 habitants)
B14: Femmes | C14: Hommes | D14: Ensemble | F14: Femmes | G14: Hommes | H14: Ensemble | J14: Femmes | K14: Hommes | L14: Ensemble | N14: Femmes | O14: Hommes | P14: Ensemble | R14: Femmes | S14: Hommes | T14: Ensemble | V14: Femmes | W14: Hommes | X14: Ensemble | Z14: Femmes | AA14: Hommes | AB14: Ensemble | AD14: Femmes | AE14: Hommes | AF14: Ensemble | AH14: Femmes | AI14: Hommes | AJ14: Ensemble | AL14: Femmes | AM14: Hommes | AN14: Ensemble | AP14: Femmes | AQ14: Hommes | AR14: Ensemble | AT14: Femmes | AU14: Hommes | AV14: Ensemble
A15: Les Avirons | B15: 828 | C15: 879 | D15: 1707 | F15: 127 | G15: 226 | H15: 353 | J15: 317 | K15: 269 | L15: 586 | N15: 83 | O15: 109 | P15: 192 | R15: 22 | S15: 27 | T15: 49 | V15: 97 | W15: 110 | X15: 207 | Z15: 488 | AA15: 565 | AB15: 1053 | AD15: 221 | AE15: 177 | AF15: 398 | AH15: 1647.550518 | AI15: 1938.697934 | AJ15: 1785.351262 | AL15: 279.9141375 | AM15: 532.6804721 | AN15: 400.6888294 | AP15: 146.2234222 | AQ15: 241.8559016 | AR15: 188.5346596 | AT15: 626.7806725 | AU15: 566.1464063 | AV15: 601.154395
A16: Bras-Panon | B16: 1261 | C16: 1037 | D16: 2298 | F16: 136 | G16: 232 | H16: 368 | J16: 518 | K16: 367 | L16: 885 | N16: 100 | O16: 72 | P16: 172 | R16: 33 | S16: 43 | T16: 76 | V16: 145 | W16: 136 | X16: 281 | Z16: 786 | AA16: 697 | AB16: 1483 | AD16: 297 | AE16: 161 | AF16: 458 | AH16: 2404.935292 | AI16: 2440.777534 | AJ16: 2407.466144 | AL16: 277.064092 | AM16: 611.0456255 | AN16: 415.5869384 | AP16: 198.3234724 | AQ16: 191.1702124 | AR16: 185.6893179 | AT16: 980.4855069 | AU16: 774.7508654 | AV16: 895.161448
A17: Entre-Deux | B17: 538 | C17: 535 | D17: 1073 | F17: 71 | G17: 131 | H17: 202 | J17: 209 | K17: 191 | L17: 400 | N17: 56 | O17: 59 | P17: 115 | R17: 14 | S17: 18 | T17: 32 | V17: 56 | W17: 59 | X17: 115 | Z17: 301 | AA17: 356 | AB17: 657 | AD17: 167 | AE17: 102 | AF17: 269 | AH17: 1634.255775 | AI17: 1868.19847 | AJ17: 1746.251211 | AL17: 214.7098391 | AM17: 477.940242 | AN17: 334.4325654 | AP17: 181.6352071 | AQ17: 240.3253799 | AR17: 205.9221725 | AT17: 646.1185417 | AU17: 663.6772961 | AV17: 654.2924243
A18: L'Étang-Salé | B18: 1118 | C18: 1136 | D18: 2254 | F18: 154 | G18: 262 | H18: 416 | J18: 399 | K18: 384 | L18: 783 | N18: 112 | O18: 121 | P18: 233 | R18: 28 | S18: 48 | T18: 76 | V18: 141 | W18: 135 | X18: 276 | Z18: 651 | AA18: 719 | AB18: 1370 | AD18: 298 | AE18: 234 | AF18: 532 | AH18: 1865.043925 | AI18: 2011.23532 | AJ18: 1935.708993 | AL18: 274.8748971 | AM18: 516.9833757 | AN18: 387.4283159 | AP18: 181.9501266 | AQ18: 246.0443543 | AR18: 207.6478097 | AT18: 663.7440317 | AU18: 651.8498259 | AV18: 659.0286922
A19: Petite-Île | B19: 1224 | C19: 1248 | D19: 2472 | F19: 159 | G19: 296 | H19: 455 | J19: 457 | K19: 425 | L19: 882 | N19: 94 | O19: 92 | P19: 186 | R19: 24 | S19: 45 | T19: 69 | V19: 158 | W19: 154 | X19: 312 | Z19: 745 | AA19: 841 | AB19: 1586 | AD19: 297 | AE19: 208 | AF19: 505 | AH19: 2028.432279 | AI19: 2151.27553 | AJ19: 2092.948714 | AL19: 280.1418355 | AM19: 528.4397968 | AN19: 401.3975241 | AP19: 152.0618833 | AQ19: 158.9624474 | AR19: 155.5706672 | AT19: 733.9709628 | AU19: 708.7157995 | AV19: 722.314798
A20: La Plaine-des-Palmistes | B20: 491 | C20: 545 | D20: 1036 | F20: 73 | G20: 134 | H20: 207 | J20: 188 | K20: 204 | L20: 392 | N20: 45 | O20: 41 | P20: 86 | R20: 12 | S20: 24 | T20: 36 | V20: 77 | W20: 73 | X20: 150 | Z20: 294 | AA20: 358 | AB20: 652 | AD20: 108 | AE20: 90 | AF20: 198 | AH20: 1766.04821 | AI20: 2330.267173 | AJ20: 2016.105184 | AL20: 258.6802898 | AM20: 662.558952 | AN20: 427.534997 | AP20: 150.8277121 | AQ20: 181.7799838 | AR20: 166.2951302 | AT20: 686.4708257 | AU20: 831.7014071 | AV20: 756.3244891
A21: Le Port | B21: 3846 | C21: 3286 | D21: 7132 | F21: 573 | G21: 783 | H21: 1356 | J21: 1647 | K21: 1166 | L21: 2813 | N21: 242 | O21: 248 | P21: 490 | R21: 65 | S21: 93 | T21: 158 | V21: 414 | W21: 382 | X21: 796 | Z21: 2395 | AA21: 2203 | AB21: 4598 | AD21: 972 | AE21: 608 | AF21: 1580 | AH21: 2515.30682 | AI21: 2799.715083 | AJ21: 2633.335876 | AL21: 392.8336017 | AM21: 721.5036107 | AN21: 534.1642285 | AP21: 176.1276725 | AQ21: 248.8908888 | AR21: 203.310125 | AT21: 1062.209828 | AU21: 961.668508 | AV21: 1016.363938
A22: La Possession | B22: 2215 | C22: 2253 | D22: 4468 | F22: 338 | G22: 533 | H22: 871 | J22: 744 | K22: 694 | L22: 1438 | N22: 231 | O22: 203 | P22: 434 | R22: 64 | S22: 121 | T22: 185 | V22: 356 | W22: 289 | X22: 645 | Z22: 1328 | AA22: 1469 | AB22: 2797 | AD22: 467 | AE22: 374 | AF22: 841 | AH22: 1918.328662 | AI22: 2131.516574 | AJ22: 2024.11419 | AL22: 327.254807 | AM22: 562.9047931 | AN22: 438.6124754 | AP22: 181.7029333 | AQ22: 235.2686239 | AR22: 204.8181559 | AT22: 643.4215052 | AU22: 627.3082482 | AV22: 637.8372779
A23: Saint-André | B23: 5248 | C23: 4734 | D23: 9982 | F23: 701 | G23: 1084 | H23: 1785 | J23: 2188 | K23: 1631 | L23: 3819 | N23: 359 | O23: 325 | P23: 684 | R23: 81 | S23: 178 | T23: 259 | V23: 739 | W23: 679 | X23: 1418 | Z23: 3256 | AA23: 3079 | AB23: 6335 | AD23: 1172 | AE23: 798 | AF23: 1970 | AH23: 2464.725708 | AI23: 2718.508732 | AJ23: 2559.005134 | AL23: 358.8208673 | AM23: 686.8684786 | AN23: 497.5099479 | AP23: 178.3941979 | AQ23: 217.7660165 | AR23: 189.878359 | AT23: 1022.298363 | AU23: 888.5622024 | AV23: 959.1404739
A24: Saint-Benoît | B24: 3338 | C24: 3157 | D24: 6495 | F24: 412 | G24: 713 | H24: 1125 | J24: 1392 | K24: 1143 | L24: 2535 | N24: 229 | O24: 206 | P24: 435 | R24: 90 | S24: 139 | T24: 229 | V24: 494 | W24: 419 | X24: 913 | Z24: 2067 | AA24: 2077 | AB24: 4144 | AD24: 687 | AE24: 522 | AF24: 1209 | AH24: 2156.541903 | AI24: 2341.486835 | AJ24: 2239.234989 | AL24: 286.406204 | AM24: 554.9861136 | AN24: 411.1199329 | AP24: 152.4981292 | AQ24: 176.2899112 | AR24: 160.4488975 | AT24: 891.2871485 | AU24: 831.0656894 | AV24: 862.4019123
A25: Saint-Denis | B25: 13461 | C25: 11866 | D25: 25327 | F25: 1969 | G25: 2956 | H25: 4925 | J25: 4762 | K25: 3722 | L25: 8484 | N25: 1353 | O25: 1095 | P25: 2448 | R25: 255 | S25: 385 | T25: 640 | V25: 1633 | W25: 1497 | X25: 3130 | Z25: 7703 | AA25: 7651 | AB25: 15354 | AD25: 3870 | AE25: 2333 | AF25: 6203 | AH25: 1923.011614 | AI25: 2247.544275 | AJ25: 2055.061726 | AL25: 293.311282 | AM25: 608.7655025 | AN25: 422.0478488 | AP25: 194.0431326 | AQ25: 224.0416388 | AR25: 200.7965651 | AT25: 680.8025531 | AU25: 676.8409406 | AV25: 680.4502578
A26: Saint-Joseph | B26: 3690 | C26: 3543 | D26: 7233 | F26: 554 | G26: 853 | H26: 1407 | J26: 1403 | K26: 1172 | L26: 2575 | N26: 299 | O26: 271 | P26: 570 | R26: 73 | S26: 146 | T26: 219 | V26: 421 | W26: 416 | X26: 837 | Z26: 2199 | AA26: 2305 | AB26: 4504 | AD26: 997 | AE26: 676 | AF26: 1673 | AH26: 2028.372224 | AI26: 2231.107073 | AJ26: 2128.708618 | AL26: 314.3566627 | AM26: 563.5738108 | AN26: 431.4884147 | AP26: 163.4039684 | AQ26: 218.4647936 | AR26: 185.1383452 | AT26: 767.7622226 | AU26: 718.2378162 | AV26: 748.5508319
A27: Saint-Leu | B27: 3179 | C27: 2875 | D27: 6054 | F27: 459 | G27: 700 | H27: 1159 | J27: 1136 | K27: 912 | L27: 2048 | N27: 261 | O27: 246 | P27: 507 | R27: 70 | S27: 92 | T27: 162 | V27: 430 | W27: 317 | X27: 747 | Z27: 1954 | AA27: 1968 | AB27: 3922 | AD27: 725 | AE27: 498 | AF27: 1223 | AH27: 2182.33618 | AI27: 2251.205726 | AJ27: 2208.5013 | AL27: 335.2787389 | AM27: 604.8077347 | AN27: 457.870436 | AP27: 185.7879327 | AQ27: 220.8063803 | AR27: 197.076618 | AT27: 775.836262 | AU27: 674.7135608 | AV27: 730.0095464
A28: Saint-Louis | B28: 5023 | C28: 4427 | D28: 9450 | F28: 621 | G28: 1008 | H28: 1629 | J28: 2104 | K28: 1598 | L28: 3702 | N28: 357 | O28: 364 | P28: 721 | R28: 133 | S28: 188 | T28: 321 | V28: 635 | W28: 547 | X28: 1182 | Z28: 2984 | AA28: 2871 | AB28: 5855 | AD28: 1271 | AE28: 821 | AF28: 2092 | AH28: 2282.349302 | AI28: 2434.571941 | AJ28: 2349.371561 | AL28: 301.3239776 | AM28: 608.5767007 | AN28: 436.814543 | AP28: 166.1144179 | AQ28: 226.9767758 | AR28: 190.0749093 | AT28: 955.4503357 | AU28: 853.7086648 | AV28: 910.6644461
A29: Saint-Paul | B29: 10137 | C29: 9742 | D29: 19879 | F29: 1415 | G29: 2339 | H29: 3754 | J29: 3598 | K29: 2856 | L29: 6454 | N29: 848 | O29: 796 | P29: 1644 | R29: 210 | S29: 278 | T29: 488 | V29: 1321 | W29: 1273 | X29: 2594 | Z29: 6157 | AA29: 6490 | AB29: 12647 | AD29: 2449 | AE29: 1701 | AF29: 4150 | AH29: 2196.595529 | AI29: 2448.238357 | AJ29: 2310.155776 | AL29: 330.3544749 | AM29: 638.6753283 | AN29: 470.7159546 | AP29: 183.8609078 | AQ29: 230.7963149 | AR29: 202.2927258 | AT29: 773.2442254 | AU29: 691.4451118 | AV29: 735.493379
A30: Saint-Pierre | B30: 8672 | C30: 7968 | D30: 16640 | F30: 1163 | G30: 1782 | H30: 2945 | J30: 3288 | K30: 2571 | L30: 5859 | N30: 691 | O30: 619 | P30: 1310 | R30: 163 | S30: 254 | T30: 417 | V30: 1203 | W30: 1151 | X30: 2354 | Z30: 5222 | AA30: 5139 | AB30: 10361 | AD30: 2084 | AE30: 1424 | AF30: 3508 | AH30: 2360.768088 | AI30: 2650.629182 | AJ30: 2491.473019 | AL30: 349.7348504 | AM30: 656.6013087 | AN30: 486.1831594 | AP30: 187.9564196 | AQ30: 244.9894854 | AR30: 208.6598754 | AT30: 888.0033935 | AU30: 827.8362856 | AV30: 863.2505567
A31: Saint-Philippe | B31: 514 | C31: 517 | D31: 1031 | F31: 70 | G31: 134 | H31: 204 | J31: 207 | K31: 181 | L31: 388 | N31: 34 | O31: 34 | P31: 68 | R31: 13 | S31: 17 | T31: 30 | V31: 56 | W31: 61 | X31: 117 | Z31: 294 | AA31: 343 | AB31: 637 | AD31: 151 | AE31: 96 | AF31: 247 | AH31: 2254.364343 | AI31: 2432.75657 | AJ31: 2345.289525 | AL31: 334.1008339 | AM31: 673.8954363 | AN31: 495.4862738 | AP31: 144.7083689 | AQ31: 186.9347597 | AR31: 160.98975 | AT31: 868.6531582 | AU31: 781.4623491 | AV31: 830.7911174
A32: Sainte-Marie | B32: 3217 | C32: 3099 | D32: 6316 | F32: 439 | G32: 645 | H32: 1084 | J32: 1137 | K32: 955 | L32: 2092 | N32: 259 | O32: 222 | P32: 481 | R32: 75 | S32: 113 | T32: 188 | V32: 444 | W32: 463 | X32: 907 | Z32: 1963 | AA32: 2060 | AB32: 4023 | AD32: 735 | AE32: 463 | AF32: 1198 | AH32: 2496.208037 | AI32: 2657.816101 | AJ32: 2582.19551 | AL32: 384.6285405 | AM32: 615.5917265 | AN32: 494.7631702 | AP32: 206.3955066 | AQ32: 236.9034601 | AR32: 218.5038389 | AT32: 885.3117958 | AU32: 828.1560084 | AV32: 860.0105103
A33: Sainte-Rose | B33: 656 | C33: 605 | D33: 1261 | F33: 53 | G33: 117 | H33: 170 | J33: 308 | K33: 223 | L33: 531 | N33: 46 | O33: 58 | P33: 104 | R33: 8 | S33: 16 | T33: 24 | V33: 78 | W33: 81 | X33: 159 | Z33: 432 | AA33: 399 | AB33: 831 | AD33: 138 | AE33: 109 | AF33: 247 | AH33: 2157.12111 | AI33: 2116.927736 | AJ33: 2135.310052 | AL33: 177.5054003 | AM33: 422.5961528 | AN33: 294.0537349 | AP33: 142.1511926 | AQ33: 234.7555526 | AR33: 181.9953417 | AT33: 998.8409866 | AU33: 733.3460275 | AV33: 871.9455704
A34: Sainte-Suzanne | B34: 2032 | C34: 1858 | D34: 3890 | F34: 284 | G34: 421 | H34: 705 | J34: 832 | K34: 695 | L34: 1527 | N34: 172 | O34: 122 | P34: 294 | R34: 36 | S34: 59 | T34: 95 | V34: 281 | W34: 252 | X34: 533 | Z34: 1267 | AA34: 1264 | AB34: 2531 | AD34: 448 | AE34: 283 | AF34: 731 | AH34: 2207.082667 | AI34: 2510.5198 | AJ34: 2326.320685 | AL34: 343.5697982 | AM34: 625.5717268 | AN34: 466.9336019 | AP34: 177.556392 | AQ34: 196.4593087 | AR34: 182.9468697 | AT34: 893.9810178 | AU34: 881.0536227 | AV34: 884.8379757
A35: Salazie | B35: 725 | C35: 646 | D35: 1371 | F35: 91 | G35: 161 | H35: 252 | J35: 266 | K35: 196 | L35: 462 | N35: 57 | O35: 48 | P35: 105 | R35: 12 | S35: 12 | T35: 24 | V35: 91 | W35: 92 | X35: 183 | Z35: 435 | AA35: 439 | AB35: 874 | AD35: 187 | AE35: 103 | AF35: 290 | AH35: 2373.448749 | AI35: 2240.885171 | AJ35: 2313.341533 | AL35: 303.2941926 | AM35: 580.3330614 | AN35: 433.6334083 | AP35: 184.9767627 | AQ35: 186.7958514 | AR35: 179.501791 | AT35: 870.8452095 | AU35: 664.9535825 | AV35: 776.4239067
A36: Le Tampon | B36: 6997 | C36: 6770 | D36: 13767 | F36: 1011 | G36: 1642 | H36: 2653 | J36: 2573 | K36: 2275 | L36: 4848 | N36: 623 | O36: 583 | P36: 1206 | R36: 165 | S36: 306 | T36: 471 | V36: 981 | W36: 817 | X36: 1798 | Z36: 4104 | AA36: 4367 | AB36: 8471 | AD36: 1747 | AE36: 1280 | AF36: 3027 | AH36: 1992.865329 | AI36: 2320.721404 | AJ36: 2139.502952 | AL36: 305.5629546 | AM36: 601.1733564 | AN36: 438.0671738 | AP36: 179.9924874 | AQ36: 235.0574261 | AR36: 200.4182133 | AT36: 733.8465875 | AU36: 765.6326042 | AV36: 748.9895532
A37: Les Trois-Bassins | B37: 677 | C37: 637 | D37: 1314 | F37: 72 | G37: 112 | H37: 184 | J37: 294 | K37: 228 | L37: 522 | N37: 64 | O37: 43 | P37: 107 | R37: 6 | S37: 23 | T37: 29 | V37: 85 | W37: 91 | X37: 176 | Z37: 422 | AA37: 433 | AB37: 855 | AD37: 164 | AE37: 90 | AF37: 254 | AH37: 2223.54458 | AI37: 2361.824987 | AJ37: 2294.603249 | AL37: 250.4712703 | AM37: 462.1952452 | AN37: 350.1033498 | AP37: 186.8032344 | AQ37: 208.9955081 | AR37: 194.4742912 | AT37: 954.4273468 | AU37: 817.4235015 | AV37: 892.9844886
A38: Cilaos | B38: 671 | C38: 582 | D38: 1253 | F38: 98 | G38: 131 | H38: 229 | J38: 246 | K38: 190 | L38: 436 | N38: 47 | O38: 50 | P38: 97 | R38: 20 | S38: 18 | T38: 38 | V38: 71 | W38: 64 | X38: 135 | Z38: 352 | AA38: 388 | AB38: 740 | AD38: 228 | AE38: 112 | AF38: 340 | AH38: 2575.323795 | AI38: 2729.493 | AJ38: 2602.771791 | AL38: 373.4105716 | AM38: 681.5006873 | AN38: 491.9303181 | AP38: 186.6288275 | AQ38: 270.0341271 | AR38: 216.6949715 | AT38: 947.232825 | AU38: 811.3185777 | AV38: 891.4415321
A39: NORD | B39: =B34+B25+B32 -> 18710 | C39: =C34+C25+C32 -> 16823 | D39: =D34+D25+D32 -> 35533 | F39: =F34+F25+F32 -> 2692 | G39: =G34+G25+G32 -> 4022 | H39: 6714 | J39: =J34+J25+J32 -> 6731 | K39: =K34+K25+K32 -> 5372 | L39: 12103 | N39: =N34+N25+N32 -> 1784 | O39: =O34+O25+O32 -> 1439 | P39: 3223 | R39: 602 | S39: 969 | T39: 1571 | V39: =V34+V25+V32 -> 2358 | W39: =W34+W25+W32 -> 2212 | X39: 4570 | Z39: =Z34+Z25+Z32 -> 10933 | AA39: =AA34+AA25+AA32 -> 10975 | AB39: 21908 | AD39: =AD34+AD25+AD32 -> 5053 | AE39: =AE34+AE25+AE32 -> 3079 | AF39: 8132 | AH39: 2027.662144 | AI39: 2334.507855 | AJ39: 2156.365939 | AL39: 309.1863739 | AM39: 611.6143226 | AN39: 436.0265947 | AP39: 194.0927211 | AQ39: 223.8003005 | AR39: 201.7342927 | AT39: 729.5448174 | AU39: 718.8270921 | AV39: 726.0176437
A40: EST | B40: =B16+B20+B23+B24+B33+B35 -> 11719 | C40: =C16+C20+C23+C24+C33+C35 -> 10724 | D40: =D16+D20+D23+D24+D33+D35 -> 22443 | F40: =F16+F20+F23+F24+F33+F35 -> 1466 | G40: =G16+G20+G23+G24+G33+G35 -> 2441 | H40: 3907 | J40: =J16+J20+J23+J24+J33+J35 -> 4860 | K40: =K16+K20+K23+K24+K33+K35 -> 3764 | L40: 8624 | N40: =N16+N20+N23+N24+N33+N35 -> 836 | O40: =O16+O20+O23+O24+O33+O35 -> 750 | P40: 1586 | R40: 415 | S40: 607 | T40: 1022 | V40: =V16+V20+V23+V24+V33+V35 -> 1624 | W40: =W16+W20+W23+W24+W33+W35 -> 1480 | X40: 3104 | Z40: =Z16+Z20+Z23+Z24+Z33+Z35 -> 7270 | AA40: =AA16+AA20+AA23+AA24+AA33+AA35 -> 7049 | AB40: 14319 | AD40: =AD16+AD20+AD23+AD24+AD33+AD35 -> 2589 | AE40: =AE16+AE20+AE23+AE24+AE33+AE35 -> 1783 | AF40: 4372 | AH40: 2288.884949 | AI40: 2458.901841 | AJ40: 2364.938977 | AL40: 306.4681428 | AM40: 603.1216888 | AN40: 439.8922853 | AP40: 168.3616894 | AQ40: 197.4804597 | AR40: 177.5877985 | AT40: 944.2646671 | AU40: 826.7761876 | AV40: 891.9653426
A41: OUEST | B41: =B21+B22+B27+B29+B37 -> 20054 | C41: =C21+C22+C27+C29+C37 -> 18793 | D41: =D21+D22+D27+D29+D37 -> 38847 | F41: =F21+F22+F27+F29+F37 -> 2857 | G41: =G21+G22+G27+G29+G37 -> 4467 | H41: 7324 | J41: =J21+J22+J27+J29+J37 -> 7419 | K41: =K21+K22+K27+K29+K37 -> 5856 | L41: 13275 | N41: =N21+N22+N27+N29+N37 -> 1646 | O41: =O21+O22+O27+O29+O37 -> 1536 | P41: 3182 | R41: 655 | S41: 1067 | T41: 1722 | V41: =V21+V22+V27+V29+V37 -> 2606 | W41: =W21+W22+W27+W29+W37 -> 2352 | X41: 4958 | Z41: =Z21+Z22+Z27+Z29+Z37 -> 12256 | AA41: =AA21+AA22+AA27+AA29+AA37 -> 12563 | AB41: 24819 | AD41: =AD21+AD22+AD27+AD29+AD37 -> 4777 | AE41: =AE21+AE22+AE27+AE29+AE37 -> 3271 | AF41: 8048 | AH41: 2207.429687 | AI41: 2420.833266 | AJ41: 2303.650776 | AL41: 338.1472353 | AM41: 629.1402858 | AN41: 470.2209079 | AP41: 183.0107779 | AQ41: 231.5552188 | AR41: 201.635842 | AT41: 809.5926476 | AU41: 724.8245497 | AV41: 771.2517305
A42: SUD | B42: =B15+B17+B18+B19+B26+B28+B30+B31+B36+B38 -> 29275 | C42: =C15+C17+C18+C19+C26+C28+C30+C31+C36+C38 -> 27605 | D42: =D15+D17+D18+D19+D26+D28+D30+D31+D36+D38 -> 56880 | F42: =F15+F17+F18+F19+F26+F28+F30+F31+F36+F38 -> 4028 | G42: =G15+G17+G18+G19+G26+G28+G30+G31+G36+G38 -> 6465 | H42: 10493 | J42: =J15+J17+J18+J19+J26+J28+J30+J31+J36+J38 -> 11203 | K42: =K15+K17+K18+K19+K26+K28+K30+K31+K36+K38 -> 9256 | L42: 20459 | N42: =N15+N17+N18+N19+N26+N28+N30+N31+N36+N38 -> 2396 | O42: =O15+O17+O18+O19+O26+O28+O30+O31+O36+O38 -> 2302 | P42: 4698 | R42: 1693 | S42: 2683 | T42: 4376 | V42: =V15+V17+V18+V19+V26+V28+V30+V31+V36+V38 -> 3819 | W42: =W15+W17+W18+W19+W26+W28+W30+W31+W36+W38 -> 3514 | X42: 7333 | Z42: =Z15+Z17+Z18+Z19+Z26+Z28+Z30+Z31+Z36+Z38 -> 17340 | AA42: =AA15+AA17+AA18+AA19+AA26+AA28+AA30+AA31+AA36+AA38 -> 17894 | AB42: 35234 | AD42: =AD15+AD17+AD18+AD19+AD26+AD28+AD30+AD31+AD36+AD38 -> 7461 | AE42: =AE15+AE17+AE18+AE19+AE26+AE28+AE30+AE31+AE36+AE38 -> 5130 | AF42: 12591 | AH42: 2126.555052 | AI42: 2359.356928 | AJ42: 2234.718974 | AL42: 312.4698083 | AM42: 596.5237114 | AN42: 441.5286675 | AP42: 174.6867222 | AQ42: 229.6766909 | AR42: 195.913747 | AT42: 810.3981845 | AU42: 768.3785201 | AV42: 793.3167518
A43: LA REUNION | B43: =SUM(B39:B42)+B44 -> 80804 | C43: =SUM(C39:C42)+C44 -> 75026 | D43: 155830 | F43: =SUM(F39:F42)+F44 -> 11186 | G43: =SUM(G39:G42)+G44 -> 17649 | H43: =SUM(H39:H42)+H44 -> 28835 | J43: =SUM(J39:J42)+J44 -> 30523 | K43: =SUM(K39:K42)+K44 -> 24553 | L43: =SUM(L39:L42)+L44 -> 55076 | N43: =SUM(N39:N42)+N44 -> 6734 | O43: =SUM(O39:O42)+O44 -> 6113 | P43: =SUM(P39:P42)+P44 -> 12847 | R43: =SUM(R39:R42)+R44 -> 3386 | S43: =SUM(S39:S42)+S44 -> 5366 | T43: =SUM(T39:T42)+T44 -> 8752 | V43: =SUM(V39:V42)+V44 -> 10609 | W43: =SUM(W39:W42)+W44 -> 9732 | X43: =SUM(X39:X42)+X44 -> 20341 | Z43: =SUM(Z39:Z42)+Z44 -> 48411 | AA43: =SUM(AA39:AA42)+AA44 -> 49197 | AB43: =SUM(AB39:AB42)+AB44 -> 97608 | AD43: =SUM(AD39:AD42)+AD44 -> 20091 | AE43: =SUM(AE39:AE42)+AE44 -> 13414 | AF43: =SUM(AF39:AF42)+AF44 -> 33505 | AH43: 2169.512243 | AI43: 2412.574125 | AJ43: 2278.65434 | AL43: 321.1210083 | AM43: 616.551643 | AN43: 452.8101057 | AP43: 183.3068936 | AQ43: 227.5667696 | AR43: 199.0792819 | AT43: 816.4178036 | AU43: 762.6008927 | AV43: 793.5813294
B44: 1046 | C44: 1081 | D44: 2127 | F44: 143 | G44: 254 | H44: 397 | J44: 310 | K44: 305 | L44: 615 | N44: 72 | O44: 86 | P44: 158 | R44: 21 | S44: 40 | T44: 61 | V44: 202 | W44: 174 | X44: 376 | Z44: 612 | AA44: 716 | AB44: 1328 | AD44: 211 | AE44: 151 | AF44: 362
